Workbook

Sheet 償却資産入力
C1: 賦課期日 | D1: 2024-01-01 | E1: =D1 -> 2024-01-01 | F1: =MATCH(E1,N4:BI4,0) -> 46 | G1: 取得最小年月
D2: ↑クリアしたら必ず入力 | G2: =MIN(G5:G34) -> 1978-01-01
D3: （例）令和6年度申告の場合：2024/1/1
B4: 行番号 | C4: 資産の種類 | D4: 資産コード | E4: 資産の名称等 | F4: 数量 | G4: 取得年月 | H4: 年号 | I4: 前年 | J4: 取得価額 | K4: 耐用年数 | L4: 減価率 | M4: 減価率/2 | N4: =DATE(YEAR(G2)+1,1,1) -> 1979-01-01 | O4: =EDATE(N4,12) -> 1980-01-01 | P4: =EDATE(O4,12) -> 1981-01-01 | Q4: 1982-01-01 | R4: 1983-01-01 | S4: 1984-01-01 | T4: 1985-01-01 | U4: 1986-01-01 | V4: 1987-01-01 | W4: 1988-01-01 | X4: 1989-01-01 | Y4: 1990-01-01 | Z4: 1991-01-01 | AA4: 1992-01-01 | AB4: 1993-01-01 | AC4: 1994-01-01 | AD4: 1995-01-01 | AE4: 1996-01-01 | AF4: 1997-01-01 | AG4: 1998-01-01 | AH4: =EDATE(AG4,12) -> 1999-01-01 | AI4: =EDATE(AH4,12) -> 2000-01-01 | AJ4: =EDATE(AI4,12) -> 2001-01-01 | AK4: =EDATE(AJ4,12) -> 2002-01-01 | AL4: =EDATE(AK4,12) -> 2003-01-01 | AM4: =EDATE(AL4,12) -> 2004-01-01 | AN4: =EDATE(AM4,12) -> 2005-01-01 | AO4: =EDATE(AN4,12) -> 2006-01-01 | AP4: =EDATE(AO4,12) -> 2007-01-01 | AQ4: =EDATE(AP4,12) -> 2008-01-01 | AR4: =EDATE(AQ4,12) -> 2009-01-01 | AS4: =EDATE(AR4,12) -> 2010-01-01 | AT4: =EDATE(AS4,12) -> 2011-01-01 | AU4: =EDATE(AT4,12) -> 2012-01-01 | AV4: =EDATE(AU4,12) -> 2013-01-01 | AW4: =EDATE(AV4,12) -> 2014-01-01 | AX4: =EDATE(AW4,12) -> 2015-01-01 | AY4: =EDATE(AX4,12) -> 2016-01-01 | AZ4: =EDATE(AY4,12) -> 2017-01-01 | BA4: =EDATE(AZ4,12) -> 2018-01-01 | BB4: =EDATE(BA4,12) -> 2019-01-01 | BC4: =EDATE(BB4,12) -> 2020-01-01 | BD4: =EDATE(BC4,12) -> 2021-01-01 | BE4: =EDATE(BD4,12) -> 2022-01-01 | BF4: =EDATE(BE4,12) -> 2023-01-01 | BG4: =EDATE(BF4,12) -> 2024-01-01 | BH4: =EDATE(BG4,12) -> 2025-01-01 | BI4: =EDATE(BH4,12) -> 2026-01-01 | BJ4: =EDATE(BI4,12) -> 2027-01-01 | BK4: =EDATE(BJ4,12) -> 2028-01-01 | BL4: =EDATE(BK4,12) -> 2029-01-01 | BM4: =EDATE(BL4,12) -> 2030-01-01 | BN4: =EDATE(BM4,12) -> 2031-01-01 | BO4: =EDATE(BN4,12) -> 2032-01-01 | BP4: =EDATE(BO4,12) -> 2033-01-01 | BQ4: =EDATE(BP4,12) -> 2034-01-01 | BR4: =EDATE(BQ4,12) -> 2035-01-01 | BS4: =EDATE(BR4,12) -> 2036-01-01 | BT4: =EDATE(BS4,12) -> 2037-01-01 | BU4: =EDATE(BT4,12) -> 2038-01-01 | BV4: =EDATE(BU4,12) -> 2039-01-01 | BW4: =EDATE(BV4,12) -> 2040-01-01 | BX4: =EDATE(BW4,12) -> 2041-01-01 | BY4: =EDATE(BX4,12) -> 2042-01-01 | BZ4: =EDATE(BY4,12) -> 2043-01-01 | CA4: =EDATE(BZ4,12) -> 2044-01-01 | CB4: =EDATE(CA4,12) -> 2045-01-01 | CC4: =EDATE(CB4,12) -> 2046-01-01 | CD4: =EDATE(CC4,12) -> 2047-01-01 | CE4: =EDATE(CD4,12) -> 2048-01-01 | CF4: =EDATE(CE4,12) -> 2049-01-01 | CG4: =EDATE(CF4,12) -> 2050-01-01 | CH4: =EDATE(CG4,12) -> 2051-01-01 | CI4: =EDATE(CH4,12) -> 2052-01-01 | CJ4: =EDATE(CI4,12) -> 2053-01-01 | CK4: =EDATE(CJ4,12) -> 2054-01-01 | CL4: =EDATE(CK4,12) -> 2055-01-01 | CM4: =EDATE(CL4,12) -> 2056-01-01 | CN4: =EDATE(CM4,12) -> 2057-01-01 | CO4: =EDATE(CN4,12) -> 2058-01-01 | CP4: =EDATE(CO4,12) -> 2059-01-01 | CQ4: =EDATE(CP4,12) -> 2060-01-01 | CR4: =EDATE(CQ4,12) -> 2061-01-01 | CS4: =EDATE(CR4,12) -> 2062-01-01 | CT4: =EDATE(CS4,12) -> 2063-01-01 | CU4: =EDATE(CT4,12) -> 2064-01-01 | CV4: =EDATE(CU4,12) -> 2065-01-01 | CW4: =EDATE(CV4,12) -> 2066-01-01 | CX4: =EDATE(CW4,12) -> 2067-01-01 | CY4: =EDATE(CX4,12) -> 2068-01-01
B5: 1 | C5: 6 | E5: 格納庫 | F5: 1 | G5: 1978-01-01 | H5: =IF(G5="","",Nengo(G5)) -> 3 | I5: =IF(G5>DATE(YEAR($D$1)-1,1,1),1,0) -> 0 | J5: 3100000 | K5: 10 | L5: =ROUND(1-(1/10)^(1/K5),3) -> 0.206 | M5: =ROUND(L5/2,3) -> 0.103 | N5: =IF(J5="","",IF(N$4<$G5,"",ROUNDDOWN($J5*(1-$M5),0))) -> 2780700 | O5: =IF($J5="","",IF(N5="",IF(O$4<$G5,"",ROUNDDOWN($J5*(1-$M5),0)),IF(ROUNDDOWN(N5*(1-$L5),0)<$J5*5%,$J5*5%,ROUNDDOWN(N5*(1-$L5),0)))) -> 2207875 | P5: =IF($J5="","",IF(O5="",IF(P$4<$G5,"",ROUNDDOWN($J5*(1-$M5),0)),IF(ROUNDDOWN(O5*(1-$L5),0)<$J5*5%,$J5*5%,ROUNDDOWN(O5*(1-$L5),0)))) -> 1753052 | Q5: 1391923 | R5: 1105186 | S5: 877517 | T5: 696748 | U5: 553217 | V5: 439254 | W5: 348767 | X5: 276920 | Y5: 219874 | Z5: 174579 | AA5: 155000 | AB5: 155000 | AC5: 155000 | AD5: 155000 | AE5: 155000 | AF5: 155000 | AG5: 155000 | AH5: =IF($J5="","",IF(AG5="",IF(AH$4<$G5,"",ROUNDDOWN($J5*(1-$M5),0)),IF(ROUNDDOWN(AG5*(1-$L5),0)<$J5*5%,$J5*5%,ROUNDDOWN(AG5*(1-$L5),0)))) -> 155000 | AI5: =IF($J5="","",IF(AH5="",IF(AI$4<$G5,"",ROUNDDOWN($J5*(1-$M5),0)),IF(ROUNDDOWN(AH5*(1-$L5),0)<$J5*5%,$J5*5%,ROUNDDOWN(AH5*(1-$L5),0)))) -> 155000 | AJ5: =IF($J5="","",IF(AI5="",IF(AJ$4<$G5,"",ROUNDDOWN($J5*(1-$M5),0)),IF(ROUNDDOWN(AI5*(1-$L5),0)<$J5*5%,$J5*5%,ROUNDDOWN(AI5*(1-$L5),0)))) -> 155000 | AK5: =IF($J5="","",IF(AJ5="",IF(AK$4<$G5,"",ROUNDDOWN($J5*(1-$M5),0)),IF(ROUNDDOWN(AJ5*(1-$L5),0)<$J5*5%,$J5*5%,ROUNDDOWN(AJ5*(1-$L5),0)))) -> 155000 | AL5: =IF($J5="","",IF(AK5="",IF(AL$4<$G5,"",ROUNDDOWN($J5*(1-$M5),0)),IF(ROUNDDOWN(AK5*(1-$L5),0)<$J5*5%,$J5*5%,ROUNDDOWN(AK5*(1-$L5),0)))) -> 155000 | AM5: =IF($J5="","",IF(AL5="",IF(AM$4<$G5,"",ROUNDDOWN($J5*(1-$M5),0)),IF(ROUNDDOWN(AL5*(1-$L5),0)<$J5*5%,$J5*5%,ROUNDDOWN(AL5*(1-$L5),0)))) -> 155000 | AN5: =IF($J5="","",IF(AM5="",IF(AN$4<$G5,"",ROUNDDOWN($J5*(1-$M5),0)),IF(ROUNDDOWN(AM5*(1-$L5),0)<$J5*5%,$J5*5%,ROUNDDOWN(AM5*(1-$L5),0)))) -> 155000 | AO5: =IF($J5="","",IF(AN5="",IF(AO$4<$G5,"",ROUNDDOWN($J5*(1-$M5),0)),IF(ROUNDDOWN(AN5*(1-$L5),0)<$J5*5%,$J5*5%,ROUNDDOWN(AN5*(1-$L5),0)))) -> 155000 | AP5: =IF($J5="","",IF(AO5="",IF(AP$4<$G5,"",ROUNDDOWN($J5*(1-$M5),0)),IF(ROUNDDOWN(AO5*(1-$L5),0)<$J5*5%,$J5*5%,ROUNDDOWN(AO5*(1-$L5),0)))) -> 155000 | AQ5: =IF($J5="","",IF(AP5="",IF(AQ$4<$G5,"",ROUNDDOWN($J5*(1-$M5),0)),IF(ROUNDDOWN(AP5*(1-$L5),0)<$J5*5%,$J5*5%,ROUNDDOWN(AP5*(1-$L5),0)))) -> 155000 | AR5: =IF($J5="","",IF(AQ5="",IF(AR$4<$G5,"",ROUNDDOWN($J5*(1-$M5),0)),IF(ROUNDDOWN(AQ5*(1-$L5),0)<$J5*5%,$J5*5%,ROUNDDOWN(AQ5*(1-$L5),0)))) -> 155000 | AS5: =IF($J5="","",IF(AR5="",IF(AS$4<$G5,"",ROUNDDOWN($J5*(1-$M5),0)),IF(ROUNDDOWN(AR5*(1-$L5),0)<$J5*5%,$J5*5%,ROUNDDOWN(AR5*(1-$L5),0)))) -> 155000 | AT5: =IF($J5="","",IF(AS5="",IF(AT$4<$G5,"",ROUNDDOWN($J5*(1-$M5),0)),IF(ROUNDDOWN(AS5*(1-$L5),0)<$J5*5%,$J5*5%,ROUNDDOWN(AS5*(1-$L5),0)))) -> 155000 | AU5: =IF($J5="","",IF(AT5="",IF(AU$4<$G5,"",ROUNDDOWN($J5*(1-$M5),0)),IF(ROUNDDOWN(AT5*(1-$L5),0)<$J5*5%,$J5*5%,ROUNDDOWN(AT5*(1-$L5),0)))) -> 155000 | AV5: =IF($J5="","",IF(AU5="",IF(AV$4<$G5,"",ROUNDDOWN($J5*(1-$M5),0)),IF(ROUNDDOWN(AU5*(1-$L5),0)<$J5*5%,$J5*5%,ROUNDDOWN(AU5*(1-$L5),0)))) -> 155000 | AW5: =IF($J5="","",IF(AV5="",IF(AW$4<$G5,"",ROUNDDOWN($J5*(1-$M5),0)),IF(ROUNDDOWN(AV5*(1-$L5),0)<$J5*5%,$J5*5%,ROUNDDOWN(AV5*(1-$L5),0)))) -> 155000 | AX5: =IF($J5="","",IF(AW5="",IF(AX$4<$G5,"",ROUNDDOWN($J5*(1-$M5),0)),IF(ROUNDDOWN(AW5*(1-$L5),0)<$J5*5%,$J5*5%,ROUNDDOWN(AW5*(1-$L5),0)))) -> 155000 | AY5: =IF($J5="","",IF(AX5="",IF(AY$4<$G5,"",ROUNDDOWN($J5*(1-$M5),0)),IF(ROUNDDOWN(AX5*(1-$L5),0)<$J5*5%,$J5*5%,ROUNDDOWN(AX5*(1-$L5),0)))) -> 155000 | AZ5: =IF($J5="","",IF(AY5="",IF(AZ$4<$G5,"",ROUNDDOWN($J5*(1-$M5),0)),IF(ROUNDDOWN(AY5*(1-$L5),0)<$J5*5%,$J5*5%,ROUNDDOWN(AY5*(1-$L5),0)))) -> 155000 | BA5: =IF($J5="","",IF(AZ5="",IF(BA$4<$G5,"",ROUNDDOWN($J5*(1-$M5),0)),IF(ROUNDDOWN(AZ5*(1-$L5),0)<$J5*5%,$J5*5%,ROUNDDOWN(AZ5*(1-$L5),0)))) -> 155000 | BB5: =IF($J5="","",IF(BA5="",IF(BB$4<$G5,"",ROUNDDOWN($J5*(1-$M5),0)),IF(ROUNDDOWN(BA5*(1-$L5),0)<$J5*5%,$J5*5%,ROUNDDOWN(BA5*(1-$L5),0)))) -> 155000 | BC5: =IF($J5="","",IF(BB5="",IF(BC$4<$G5,"",ROUNDDOWN($J5*(1-$M5),0)),IF(ROUNDDOWN(BB5*(1-$L5),0)<$J5*5%,$J5*5%,ROUNDDOWN(BB5*(1-$L5),0)))) -> 155000 | BD5: =IF($J5="","",IF(BC5="",IF(BD$4<$G5,"",ROUNDDOWN($J5*(1-$M5),0)),IF(ROUNDDOWN(BC5*(1-$L5),0)<$J5*5%,$J5*5%,ROUNDDOWN(BC5*(1-$L5),0)))) -> 155000 | BE5: =IF($J5="","",IF(BD5="",IF(BE$4<$G5,"",ROUNDDOWN($J5*(1-$M5),0)),IF(ROUNDDOWN(BD5*(1-$L5),0)<$J5*5%,$J5*5%,ROUNDDOWN(BD5*(1-$L5),0)))) -> 155000 | BF5: =IF($J5="","",IF(BE5="",IF(BF$4<$G5,"",ROUNDDOWN($J5*(1-$M5),0)),IF(ROUNDDOWN(BE5*(1-$L5),0)<$J5*5%,$J5*5%,ROUNDDOWN(BE5*(1-$L5),0)))) -> 155000 | BG5: =IF($J5="","",IF(BF5="",IF(BG$4<$G5,"",ROUNDDOWN($J5*(1-$M5),0)),IF(ROUNDDOWN(BF5*(1-$L5),0)<$J5*5%,$J5*5%,ROUNDDOWN(BF5*(1-$L5),0)))) -> 155000 | BH5: =IF($J5="","",IF(BG5="",IF(BH$4<$G5,"",ROUNDDOWN($J5*(1-$M5),0)),IF(ROUNDDOWN(BG5*(1-$L5),0)<$J5*5%,$J5*5%,ROUNDDOWN(BG5*(1-$L5),0)))) -> 155000 | BI5: =IF($J5="","",IF(BH5="",IF(BI$4<$G5,"",ROUNDDOWN($J5*(1-$M5),0)),IF(ROUNDDOWN(BH5*(1-$L5),0)<$J5*5%,$J5*5%,ROUNDDOWN(BH5*(1-$L5),0)))) -> 155000 | BJ5: =IF($J5="","",IF(BI5="",IF(BJ$4<$G5,"",ROUNDDOWN($J5*(1-$M5),0)),IF(ROUNDDOWN(BI5*(1-$L5),0)<$J5*5%,$J5*5%,ROUNDDOWN(BI5*(1-$L5),0)))) -> 155000 | BK5: =IF($J5="","",IF(BJ5="",IF(BK$4<$G5,"",ROUNDDOWN($J5*(1-$M5),0)),IF(ROUNDDOWN(BJ5*(1-$L5),0)<$J5*5%,$J5*5%,ROUNDDOWN(BJ5*(1-$L5),0)))) -> 155000 | BL5: =IF($J5="","",IF(BK5="",IF(BL$4<$G5,"",ROUNDDOWN($J5*(1-$M5),0)),IF(ROUNDDOWN(BK5*(1-$L5),0)<$J5*5%,$J5*5%,ROUNDDOWN(BK5*(1-$L5),0)))) -> 155000 | BM5: =IF($J5="","",IF(BL5="",IF(BM$4<$G5,"",ROUNDDOWN($J5*(1-$M5),0)),IF(ROUNDDOWN(BL5*(1-$L5),0)<$J5*5%,$J5*5%,ROUNDDOWN(BL5*(1-$L5),0)))) -> 155000 | BN5: =IF($J5="","",IF(BM5="",IF(BN$4<$G5,"",ROUNDDOWN($J5*(1-$M5),0)),IF(ROUNDDOWN(BM5*(1-$L5),0)<$J5*5%,$J5*5%,ROUNDDOWN(BM5*(1-$L5),0)))) -> 155000 | BO5: =IF($J5="","",IF(BN5="",IF(BO$4<$G5,"",ROUNDDOWN($J5*(1-$M5),0)),IF(ROUNDDOWN(BN5*(1-$L5),0)<$J5*5%,$J5*5%,ROUNDDOWN(BN5*(1-$L5),0)))) -> 155000 | BP5: =IF($J5="","",IF(BO5="",IF(BP$4<$G5,"",ROUNDDOWN($J5*(1-$M5),0)),IF(ROUNDDOWN(BO5*(1-$L5),0)<$J5*5%,$J5*5%,ROUNDDOWN(BO5*(1-$L5),0)))) -> 155000 | BQ5: =IF($J5="","",IF(BP5="",IF(BQ$4<$G5,"",ROUNDDOWN($J5*(1-$M5),0)),IF(ROUNDDOWN(BP5*(1-$L5),0)<$J5*5%,$J5*5%,ROUNDDOWN(BP5*(1-$L5),0)))) -> 155000 | BR5: =IF($J5="","",IF(BQ5="",IF(BR$4<$G5,"",ROUNDDOWN($J5*(1-$M5),0)),IF(ROUNDDOWN(BQ5*(1-$L5),0)<$J5*5%,$J5*5%,ROUNDDOWN(BQ5*(1-$L5),0)))) -> 155000 | BS5: =IF($J5="","",IF(BR5="",IF(BS$4<$G5,"",ROUNDDOWN($J5*(1-$M5),0)),IF(ROUNDDOWN(BR5*(1-$L5),0)<$J5*5%,$J5*5%,ROUNDDOWN(BR5*(1-$L5),0)))) -> 155000 | BT5: =IF($J5="","",IF(BS5="",IF(BT$4<$G5,"",ROUNDDOWN($J5*(1-$M5),0)),IF(ROUNDDOWN(BS5*(1-$L5),0)<$J5*5%,$J5*5%,ROUNDDOWN(BS5*(1-$L5),0)))) -> 155000 | BU5: =IF($J5="","",IF(BT5="",IF(BU$4<$G5,"",ROUNDDOWN($J5*(1-$M5),0)),IF(ROUNDDOWN(BT5*(1-$L5),0)<$J5*5%,$J5*5%,ROUNDDOWN(BT5*(1-$L5),0)))) -> 155000 | BV5: =IF($J5="","",IF(BU5="",IF(BV$4<$G5,"",ROUNDDOWN($J5*(1-$M5),0)),IF(ROUNDDOWN(BU5*(1-$L5),0)<$J5*5%,$J5*5%,ROUNDDOWN(BU5*(1-$L5),0)))) -> 155000 | BW5: =IF($J5="","",IF(BV5="",IF(BW$4<$G5,"",ROUNDDOWN($J5*(1-$M5),0)),IF(ROUNDDOWN(BV5*(1-$L5),0)<$J5*5%,$J5*5%,ROUNDDOWN(BV5*(1-$L5),0)))) -> 155000 | BX5: =IF($J5="","",IF(BW5="",IF(BX$4<$G5,"",ROUNDDOWN($J5*(1-$M5),0)),IF(ROUNDDOWN(BW5*(1-$L5),0)<$J5*5%,$J5*5%,ROUNDDOWN(BW5*(1-$L5),0)))) -> 155000 | BY5: =IF($J5="","",IF(BX5="",IF(BY$4<$G5,"",ROUNDDOWN($J5*(1-$M5),0)),IF(ROUNDDOWN(BX5*(1-$L5),0)<$J5*5%,$J5*5%,ROUNDDOWN(BX5*(1-$L5),0)))) -> 155000 | BZ5: =IF($J5="","",IF(BY5="",IF(BZ$4<$G5,"",ROUNDDOWN($J5*(1-$M5),0)),IF(ROUNDDOWN(BY5*(1-$L5),0)<$J5*5%,$J5*5%,ROUNDDOWN(BY5*(1-$L5),0)))) -> 155000 | CA5: =IF($J5="","",IF(BZ5="",IF(CA$4<$G5,"",ROUNDDOWN($J5*(1-$M5),0)),IF(ROUNDDOWN(BZ5*(1-$L5),0)<$J5*5%,$J5*5%,ROUNDDOWN(BZ5*(1-$L5),0)))) -> 155000 | CB5: =IF($J5="","",IF(CA5="",IF(CB$4<$G5,"",ROUNDDOWN($J5*(1-$M5),0)),IF(ROUNDDOWN(CA5*(1-$L5),0)<$J5*5%,$J5*5%,ROUNDDOWN(CA5*(1-$L5),0)))) -> 155000 | CC5: =IF($J5="","",IF(CB5="",IF(CC$4<$G5,"",ROUNDDOWN($J5*(1-$M5),0)),IF(ROUNDDOWN(CB5*(1-$L5),0)<$J5*5%,$J5*5%,ROUNDDOWN(CB5*(1-$L5),0)))) -> 155000 | CD5: =IF($J5="","",IF(CC5="",IF(CD$4<$G5,"",ROUNDDOWN($J5*(1-$M5),0)),IF(ROUNDDOWN(CC5*(1-$L5),0)<$J5*5%,$J5*5%,ROUNDDOWN(CC5*(1-$L5),0)))) -> 155000 | CE5: =IF($J5="","",IF(CD5="",IF(CE$4<$G5,"",ROUNDDOWN($J5*(1-$M5),0)),IF(ROUNDDOWN(CD5*(1-$L5),0)<$J5*5%,$J5*5%,ROUNDDOWN(CD5*(1-$L5),0)))) -> 155000 | CF5: =IF($J5="","",IF(CE5="",IF(CF$4<$G5,"",ROUNDDOWN($J5*(1-$M5),0)),IF(ROUNDDOWN(CE5*(1-$L5),0)<$J5*5%,$J5*5%,ROUNDDOWN(CE5*(1-$L5),0)))) -> 155000 | CG5: =IF($J5="","",IF(CF5="",IF(CG$4<$G5,"",ROUNDDOWN($J5*(1-$M5),0)),IF(ROUNDDOWN(CF5*(1-$L5),0)<$J5*5%,$J5*5%,ROUNDDOWN(CF5*(1-$L5),0)))) -> 155000 | CH5: =IF($J5="","",IF(CG5="",IF(CH$4<$G5,"",ROUNDDOWN($J5*(1-$M5),0)),IF(ROUNDDOWN(CG5*(1-$L5),0)<$J5*5%,$J5*5%,ROUNDDOWN(CG5*(1-$L5),0)))) -> 155000 | CI5: =IF($J5="","",IF(CH5="",IF(CI$4<$G5,"",ROUNDDOWN($J5*(1-$M5),0)),IF(ROUNDDOWN(CH5*(1-$L5),0)<$J5*5%,$J5*5%,ROUNDDOWN(CH5*(1-$L5),0)))) -> 155000 | CJ5: =IF($J5="","",IF(CI5="",IF(CJ$4<$G5,"",ROUNDDOWN($J5*(1-$M5),0)),IF(ROUNDDOWN(CI5*(1-$L5),0)<$J5*5%,$J5*5%,ROUNDDOWN(CI5*(1-$L5),0)))) -> 155000 | CK5: =IF($J5="","",IF(CJ5="",IF(CK$4<$G5,"",ROUNDDOWN($J5*(1-$M5),0)),IF(ROUNDDOWN(CJ5*(1-$L5),0)<$J5*5%,$J5*5%,ROUNDDOWN(CJ5*(1-$L5),0)))) -> 155000 | CL5: =IF($J5="","",IF(CK5="",IF(CL$4<$G5,"",ROUNDDOWN($J5*(1-$M5),0)),IF(ROUNDDOWN(CK5*(1-$L5),0)<$J5*5%,$J5*5%,ROUNDDOWN(CK5*(1-$L5),0)))) -> 155000 | CM5: =IF($J5="","",IF(CL5="",IF(CM$4<$G5,"",ROUNDDOWN($J5*(1-$M5),0)),IF(ROUNDDOWN(CL5*(1-$L5),0)<$J5*5%,$J5*5%,ROUNDDOWN(CL5*(1-$L5),0)))) -> 155000 | CN5: =IF($J5="","",IF(CM5="",IF(CN$4<$G5,"",ROUNDDOWN($J5*(1-$M5),0)),IF(ROUNDDOWN(CM5*(1-$L5),0)<$J5*5%,$J5*5%,ROUNDDOWN(CM5*(1-$L5),0)))) -> 155000 | CO5: =IF($J5="","",IF(CN5="",IF(CO$4<$G5,"",ROUNDDOWN($J5*(1-$M5),0)),IF(ROUNDDOWN(CN5*(1-$L5),0)<$J5*5%,$J5*5%,ROUNDDOWN(CN5*(1-$L5),0)))) -> 155000 | CP5: =IF($J5="","",IF(CO5="",IF(CP$4<$G5,"",ROUNDDOWN($J5*(1-$M5),0)),IF(ROUNDDOWN(CO5*(1-$L5),0)<$J5*5%,$J5*5%,ROUNDDOWN(CO5*(1-$L5),0)))) -> 155000 | CQ5: =IF($J5="","",IF(CP5="",IF(CQ$4<$G5,"",ROUNDDOWN($J5*(1-$M5),0)),IF(ROUNDDOWN(CP5*(1-$L5),0)<$J5*5%,$J5*5%,ROUNDDOWN(CP5*(1-$L5),0)))) -> 155000 | CR5: =IF($J5="","",IF(CQ5="",IF(CR$4<$G5,"",ROUNDDOWN($J5*(1-$M5),0)),IF(ROUNDDOWN(CQ5*(1-$L5),0)<$J5*5%,$J5*5%,ROUNDDOWN(CQ5*(1-$L5),0)))) -> 155000 | CS5: =IF($J5="","",IF(CR5="",IF(CS$4<$G5,"",ROUNDDOWN($J5*(1-$M5),0)),IF(ROUNDDOWN(CR5*(1-$L5),0)<$J5*5%,$J5*5%,ROUNDDOWN(CR5*(1-$L5),0)))) -> 155000 | CT5: =IF($J5="","",IF(CS5="",IF(CT$4<$G5,"",ROUNDDOWN($J5*(1-$M5),0)),IF(ROUNDDOWN(CS5*(1-$L5),0)<$J5*5%,$J5*5%,ROUNDDOWN(CS5*(1-$L5),0)))) -> 155000 | CU5: =IF($J5="","",IF(CT5="",IF(CU$4<$G5,"",ROUNDDOWN($J5*(1-$M5),0)),IF(ROUNDDOWN(CT5*(1-$L5),0)<$J5*5%,$J5*5%,ROUNDDOWN(CT5*(1-$L5),0)))) -> 155000 | CV5: =IF($J5="","",IF(CU5="",IF(CV$4<$G5,"",ROUNDDOWN($J5*(1-$M5),0)),IF(ROUNDDOWN(CU5*(1-$L5),0)<$J5*5%,$J5*5%,ROUNDDOWN(CU5*(1-$L5),0)))) -> 155000 | CW5: =IF($J5="","",IF(CV5="",IF(CW$4<$G5,"",ROUNDDOWN($J5*(1-$M5),0)),IF(ROUNDDOWN(CV5*(1-$L5),0)<$J5*5%,$J5*5%,ROUNDDOWN(CV5*(1-$L5),0)))) -> 155000 | CX5: =IF($J5="","",IF(CW5="",IF(CX$4<$G5,"",ROUNDDOWN($J5*(1-$M5),0)),IF(ROUNDDOWN(CW5*(1-$L5),0)<$J5*5%,$J5*5%,ROUNDDOWN(CW5*(1-$L5),0)))) -> 155000 | CY5: =IF($J5="","",IF(CX5="",IF(CY$4<$G5,"",ROUNDDOWN($J5*(1-$M5),0)),IF(ROUNDDOWN(CX5*(1-$L5),0)<$J5*5%,$J5*5%,ROUNDDOWN(CX5*(1-$L5),0)))) -> 155000
B6: 2 | C6: 2 | E6: 成形ロータリ | F6: 1 | G6: 2020-02-01 | H6: =IF(G6="","",Nengo(G6)) -> 5 | I6: =IF(G6>DATE(YEAR($D$1)-1,1,1),1,0) -> 0 | J6: 610000 | K6: 7 | L6: 0.28 | M6: 0.14 | N6: =IF(J6="","",IF(N$4<$G6,"",ROUNDDOWN($J6*(1-$M6),0))) ->  | O6: =IF($J6="","",IF(N6="",IF(O$4<$G6,"",ROUNDDOWN($J6*(1-$M6),0)),IF(ROUNDDOWN(N6*(1-$L6),0)<$J6*5%,$J6*5%,ROUNDDOWN(N6*(1-$L6),0)))) ->  | BD6: 524600 | BE6: 377712 | BF6: 271952 | BG6: 195805 | BH6: 140979 | BI6: 101504 | BJ6: 73082 | BK6: 52619 | BL6: 37885 | BM6: 30500 | BN6: 30500 | BO6: 30500 | BP6: 30500 | BQ6: 30500 | BR6: 30500 | BS6: 30500 | BT6: 30500 | BU6: 30500 | BV6: 30500 | BW6: 30500 | BX6: 30500 | BY6: 30500 | BZ6: 30500 | CA6: 30500 | CB6: 30500 | CC6: 30500 | CD6: 30500 | CE6: 30500 | CF6: 30500 | CG6: 30500 | CH6: 30500 | CI6: 30500 | CJ6: 30500 | CK6: 30500 | CL6: 30500 | CM6: 30500 | CN6: 30500 | CO6: 30500 | CP6: 30500 | CQ6: 30500 | CR6: 30500 | CS6: 30500 | CT6: 30500 | CU6: 30500 | CV6: 30500 | CW6: 30500 | CX6: 30500 | CY6: 30500
B7: 3 | C7: 2 | E7: 管理機 | F7: 1 | G7: 2020-02-01 | H7: =IF(G7="","",Nengo(G7)) -> 5 | I7: 0 | J7: 280000 | K7: 7 | L7: 0.28 | M7: 0.14 | BD7: 240800 | BE7: 173376 | BF7: 124830 | BG7: 89877 | BH7: 64711 | BI7: 46591 | BJ7: 33545 | BK7: 24152 | BL7: 17389 | BM7: 14000 | BN7: 14000 | BO7: 14000 | BP7: 14000 | BQ7: 14000 | BR7: 14000 | BS7: 14000 | BT7: 14000 | BU7: 14000 | BV7: 14000 | BW7: 14000 | BX7: 14000 | BY7: 14000 | BZ7: 14000 | CA7: 14000 | CB7: 14000 | CC7: 14000 | CD7: 14000 | CE7: 14000 | CF7: 14000 | CG7: 14000 | CH7: 14000 | CI7: 14000 | CJ7: 14000 | CK7: 14000 | CL7: 14000 | CM7: 14000 | CN7: 14000 | CO7: 14000 | CP7: 14000 | CQ7: 14000 | CR7: 14000 | CS7: 14000 | CT7: 14000 | CU7: 14000 | CV7: 14000 | CW7: 14000 | CX7: 14000 | CY7: 14000
B8: 4 | C8: 2 | E8: 動噴 | F8: 1 | G8: 2020-02-01 | H8: =IF(G8="","",Nengo(G8)) -> 5 | I8: 0 | J8: 765000 | K8: 7 | L8: =IF(K8="",0,ROUND(1-(1/10)^(1/K8),3)) -> 0.28 | M8: 0.14 | BD8: 657900 | BE8: 473688 | BF8: 341055 | BG8: 245559 | BH8: 176802 | BI8: 127297 | BJ8: 91653 | BK8: 65990 | BL8: 47512 | BM8: 38250 | BN8: 38250 | BO8: 38250 | BP8: 38250 | BQ8: 38250 | BR8: 38250 | BS8: 38250 | BT8: 38250 | BU8: 38250 | BV8: 38250 | BW8: 38250 | BX8: 38250 | BY8: 38250 | BZ8: 38250 | CA8: 38250 | CB8: 38250 | CC8: 38250 | CD8: 38250 | CE8: 38250 | CF8: 38250 | CG8: 38250 | CH8: 38250 | CI8: 38250 | CJ8: 38250 | CK8: 38250 | CL8: 38250 | CM8: 38250 | CN8: 38250 | CO8: 38250 | CP8: 38250 | CQ8: 38250 | CR8: 38250 | CS8: 38250 | CT8: 38250 | CU8: 38250 | CV8: 38250 | CW8: 38250 | CX8: 38250 | CY8: 38250
B9: 5 | C9: 2 | E9: 運搬車 | F9: 1 | G9: 2022-02-01 | H9: =IF(G9="","",Nengo(G9)) -> 5 | I9: 0 | J9: 630000 | K9: 7 | L9: =IF(K9="",0,ROUND(1-(1/10)^(1/K9),3)) -> 0.28 | M9: 0.14 | BF9: 541800 | BG9: 390096 | BH9: 280869 | BI9: 202225 | BJ9: 145602 | BK9: 104833 | BL9: 75479 | BM9: 54344 | BN9: 39127 | BO9: 31500 | BP9: 31500 | BQ9: 31500 | BR9: 31500 | BS9: 31500 | BT9: 31500 | BU9: 31500 | BV9: 31500 | BW9: 31500 | BX9: 31500 | BY9: 31500 | BZ9: 31500 | CA9: 31500 | CB9: 31500 | CC9: 31500 | CD9: 31500 | CE9: 31500 | CF9: 31500 | CG9: 31500 | CH9: 31500 | CI9: 31500 | CJ9: 31500 | CK9: 31500 | CL9: 31500 | CM9: 31500 | CN9: 31500 | CO9: 31500 | CP9: 31500 | CQ9: 31500 | CR9: 31500 | CS9: 31500 | CT9: 31500 | CU9: 31500 | CV9: 31500 | CW9: 31500 | CX9: 31500 | CY9: 31500
B10: 6 | H10: =IF(G10="","",Nengo(G10)) ->  | I10: 0 | L10: 0 | M10: 0
B11: 7 | H11: =IF(G11="","",Nengo(G11)) ->  | I11: 0 | L11: =IF(K11="",0,ROUND(1-(1/10)^(1/K11),3)) -> 0 | M11: =ROUND(L11/2,3) -> 0 | N11: =IF(J11="","",IF(N$4<$G11,"",ROUNDDOWN($J11*(1-$M11),0))) ->  | O11: =IF($J11="","",IF(N11="",IF(O$4<$G11,"",ROUNDDOWN($J11*(1-$M11),0)),IF(ROUNDDOWN(N11*(1-$L11),0)<$J11*5%,$J11*5%,ROUNDDOWN(N11*(1-$L11),0)))) ->  | P11: =IF($J11="","",IF(O11="",IF(P$4<$G11,"",ROUNDDOWN($J11*(1-$M11),0)),IF(ROUNDDOWN(O11*(1-$L11),0)<$J11*5%,$J11*5%,ROUNDDOWN(O11*(1-$L11),0)))) ->  | Q11: =IF($J11="","",IF(P11="",IF(Q$4<$G11,"",ROUNDDOWN($J11*(1-$M11),0)),IF(ROUNDDOWN(P11*(1-$L11),0)<$J11*5%,$J11*5%,ROUNDDOWN(P11*(1-$L11),0)))) ->  | R11: =IF($J11="","",IF(Q11="",IF(R$4<$G11,"",ROUNDDOWN($J11*(1-$M11),0)),IF(ROUNDDOWN(Q11*(1-$L11),0)<$J11*5%,$J11*5%,ROUNDDOWN(Q11*(1-$L11),0)))) ->  | S11: =IF($J11="","",IF(R11="",IF(S$4<$G11,"",ROUNDDOWN($J11*(1-$M11),0)),IF(ROUNDDOWN(R11*(1-$L11),0)<$J11*5%,$J11*5%,ROUNDDOWN(R11*(1-$L11),0)))) ->  | T11: =IF($J11="","",IF(S11="",IF(T$4<$G11,"",ROUNDDOWN($J11*(1-$M11),0)),IF(ROUNDDOWN(S11*(1-$L11),0)<$J11*5%,$J11*5%,ROUNDDOWN(S11*(1-$L11),0)))) ->  | U11: =IF($J11="","",IF(T11="",IF(U$4<$G11,"",ROUNDDOWN($J11*(1-$M11),0)),IF(ROUNDDOWN(T11*(1-$L11),0)<$J11*5%,$J11*5%,ROUNDDOWN(T11*(1-$L11),0)))) ->  | V11: =IF($J11="","",IF(U11="",IF(V$4<$G11,"",ROUNDDOWN($J11*(1-$M11),0)),IF(ROUNDDOWN(U11*(1-$L11),0)<$J11*5%,$J11*5%,ROUNDDOWN(U11*(1-$L11),0)))) ->  | W11: =IF($J11="","",IF(V11="",IF(W$4<$G11,"",ROUNDDOWN($J11*(1-$M11),0)),IF(ROUNDDOWN(V11*(1-$L11),0)<$J11*5%,$J11*5%,ROUNDDOWN(V11*(1-$L11),0)))) ->  | X11: =IF($J11="","",IF(W11="",IF(X$4<$G11,"",ROUNDDOWN($J11*(1-$M11),0)),IF(ROUNDDOWN(W11*(1-$L11),0)<$J11*5%,$J11*5%,ROUNDDOWN(W11*(1-$L11),0)))) ->  | Y11: =IF($J11="","",IF(X11="",IF(Y$4<$G11,"",ROUNDDOWN($J11*(1-$M11),0)),IF(ROUNDDOWN(X11*(1-$L11),0)<$J11*5%,$J11*5%,ROUNDDOWN(X11*(1-$L11),0)))) ->  | Z11: =IF($J11="","",IF(Y11="",IF(Z$4<$G11,"",ROUNDDOWN($J11*(1-$M11),0)),IF(ROUNDDOWN(Y11*(1-$L11),0)<$J11*5%,$J11*5%,ROUNDDOWN(Y11*(1-$L11),0)))) ->  | AA11: =IF($J11="","",IF(Z11="",IF(AA$4<$G11,"",ROUNDDOWN($J11*(1-$M11),0)),IF(ROUNDDOWN(Z11*(1-$L11),0)<$J11*5%,$J11*5%,ROUNDDOWN(Z11*(1-$L11),0)))) ->  | AB11: =IF($J11="","",IF(AA11="",IF(AB$4<$G11,"",ROUNDDOWN($J11*(1-$M11),0)),IF(ROUNDDOWN(AA11*(1-$L11),0)<$J11*5%,$J11*5%,ROUNDDOWN(AA11*(1-$L11),0)))) ->  | AC11: =IF($J11="","",IF(AB11="",IF(AC$4<$G11,"",ROUNDDOWN($J11*(1-$M11),0)),IF(ROUNDDOWN(AB11*(1-$L11),0)<$J11*5%,$J11*5%,ROUNDDOWN(AB11*(1-$L11),0)))) ->  | AD11: =IF($J11="","",IF(AC11="",IF(AD$4<$G11,"",ROUNDDOWN($J11*(1-$M11),0)),IF(ROUNDDOWN(AC11*(1-$L11),0)<$J11*5%,$J11*5%,ROUNDDOWN(AC11*(1-$L11),0)))) ->  | AE11: =IF($J11="","",IF(AD11="",IF(AE$4<$G11,"",ROUNDDOWN($J11*(1-$M11),0)),IF(ROUNDDOWN(AD11*(1-$L11),0)<$J11*5%,$J11*5%,ROUNDDOWN(AD11*(1-$L11),0)))) ->  | AF11: =IF($J11="","",IF(AE11="",IF(AF$4<$G11,"",ROUNDDOWN($J11*(1-$M11),0)),IF(ROUNDDOWN(AE11*(1-$L11),0)<$J11*5%,$J11*5%,ROUNDDOWN(AE11*(1-$L11),0)))) ->  | AG11: =IF($J11="","",IF(AF11="",IF(AG$4<$G11,"",ROUNDDOWN($J11*(1-$M11),0)),IF(ROUNDDOWN(AF11*(1-$L11),0)<$J11*5%,$J11*5%,ROUNDDOWN(AF11*(1-$L11),0)))) ->  | AH11: =IF($J11="","",IF(AG11="",IF(AH$4<$G11,"",ROUNDDOWN($J11*(1-$M11),0)),IF(ROUNDDOWN(AG11*(1-$L11),0)<$J11*5%,$J11*5%,ROUNDDOWN(AG11*(1-$L11),0)))) ->  | AI11: =IF($J11="","",IF(AH11="",IF(AI$4<$G11,"",ROUNDDOWN($J11*(1-$M11),0)),IF(ROUNDDOWN(AH11*(1-$L11),0)<$J11*5%,$J11*5%,ROUNDDOWN(AH11*(1-$L11),0)))) ->  | AJ11: =IF($J11="","",IF(AI11="",IF(AJ$4<$G11,"",ROUNDDOWN($J11*(1-$M11),0)),IF(ROUNDDOWN(AI11*(1-$L11),0)<$J11*5%,$J11*5%,ROUNDDOWN(AI11*(1-$L11),0)))) ->  | AK11: =IF($J11="","",IF(AJ11="",IF(AK$4<$G11,"",ROUNDDOWN($J11*(1-$M11),0)),IF(ROUNDDOWN(AJ11*(1-$L11),0)<$J11*5%,$J11*5%,ROUNDDOWN(AJ11*(1-$L11),0)))) ->  | AL11: =IF($J11="","",IF(AK11="",IF(AL$4<$G11,"",ROUNDDOWN($J11*(1-$M11),0)),IF(ROUNDDOWN(AK11*(1-$L11),0)<$J11*5%,$J11*5%,ROUNDDOWN(AK11*(1-$L11),0)))) ->  | AM11: =IF($J11="","",IF(AL11="",IF(AM$4<$G11,"",ROUNDDOWN($J11*(1-$M11),0)),IF(ROUNDDOWN(AL11*(1-$L11),0)<$J11*5%,$J11*5%,ROUNDDOWN(AL11*(1-$L11),0)))) ->  | AN11: =IF($J11="","",IF(AM11="",IF(AN$4<$G11,"",ROUNDDOWN($J11*(1-$M11),0)),IF(ROUNDDOWN(AM11*(1-$L11),0)<$J11*5%,$J11*5%,ROUNDDOWN(AM11*(1-$L11),0)))) ->  | AO11: =IF($J11="","",IF(AN11="",IF(AO$4<$G11,"",ROUNDDOWN($J11*(1-$M11),0)),IF(ROUNDDOWN(AN11*(1-$L11),0)<$J11*5%,$J11*5%,ROUNDDOWN(AN11*(1-$L11),0)))) ->  | AP11: =IF($J11="","",IF(AO11="",IF(AP$4<$G11,"",ROUNDDOWN($J11*(1-$M11),0)),IF(ROUNDDOWN(AO11*(1-$L11),0)<$J11*5%,$J11*5%,ROUNDDOWN(AO11*(1-$L11),0)))) ->  | AQ11: =IF($J11="","",IF(AP11="",IF(AQ$4<$G11,"",ROUNDDOWN($J11*(1-$M11),0)),IF(ROUNDDOWN(AP11*(1-$L11),0)<$J11*5%,$J11*5%,ROUNDDOWN(AP11*(1-$L11),0)))) ->  | AR11: =IF($J11="","",IF(AQ11="",IF(AR$4<$G11,"",ROUNDDOWN($J11*(1-$M11),0)),IF(ROUNDDOWN(AQ11*(1-$L11),0)<$J11*5%,$J11*5%,ROUNDDOWN(AQ11*(1-$L11),0)))) ->  | AS11: =IF($J11="","",IF(AR11="",IF(AS$4<$G11,"",ROUNDDOWN($J11*(1-$M11),0)),IF(ROUNDDOWN(AR11*(1-$L11),0)<$J11*5%,$J11*5%,ROUNDDOWN(AR11*(1-$L11),0)))) ->  | AT11: =IF($J11="","",IF(AS11="",IF(AT$4<$G11,"",ROUNDDOWN($J11*(1-$M11),0)),IF(ROUNDDOWN(AS11*(1-$L11),0)<$J11*5%,$J11*5%,ROUNDDOWN(AS11*(1-$L11),0)))) ->  | AU11: =IF($J11="","",IF(AT11="",IF(AU$4<$G11,"",ROUNDDOWN($J11*(1-$M11),0)),IF(ROUNDDOWN(AT11*(1-$L11),0)<$J11*5%,$J11*5%,ROUNDDOWN(AT11*(1-$L11),0)))) ->  | AV11: =IF($J11="","",IF(AU11="",IF(AV$4<$G11,"",ROUNDDOWN($J11*(1-$M11),0)),IF(ROUNDDOWN(AU11*(1-$L11),0)<$J11*5%,$J11*5%,ROUNDDOWN(AU11*(1-$L11),0)))) ->  | AW11: =IF($J11="","",IF(AV11="",IF(AW$4<$G11,"",ROUNDDOWN($J11*(1-$M11),0)),IF(ROUNDDOWN(AV11*(1-$L11),0)<$J11*5%,$J11*5%,ROUNDDOWN(AV11*(1-$L11),0)))) ->  | AX11: =IF($J11="","",IF(AW11="",IF(AX$4<$G11,"",ROUNDDOWN($J11*(1-$M11),0)),IF(ROUNDDOWN(AW11*(1-$L11),0)<$J11*5%,$J11*5%,ROUNDDOWN(AW11*(1-$L11),0)))) ->  | AY11: =IF($J11="","",IF(AX11="",IF(AY$4<$G11,"",ROUNDDOWN($J11*(1-$M11),0)),IF(ROUNDDOWN(AX11*(1-$L11),0)<$J11*5%,$J11*5%,ROUNDDOWN(AX11*(1-$L11),0)))) ->  | AZ11: =IF($J11="","",IF(AY11="",IF(AZ$4<$G11,"",ROUNDDOWN($J11*(1-$M11),0)),IF(ROUNDDOWN(AY11*(1-$L11),0)<$J11*5%,$J11*5%,ROUNDDOWN(AY11*(1-$L11),0)))) ->  | BA11: =IF($J11="","",IF(AZ11="",IF(BA$4<$G11,"",ROUNDDOWN($J11*(1-$M11),0)),IF(ROUNDDOWN(AZ11*(1-$L11),0)<$J11*5%,$J11*5%,ROUNDDOWN(AZ11*(1-$L11),0)))) ->  | BB11: =IF($J11="","",IF(BA11="",IF(BB$4<$G11,"",ROUNDDOWN($J11*(1-$M11),0)),IF(ROUNDDOWN(BA11*(1-$L11),0)<$J11*5%,$J11*5%,ROUNDDOWN(BA11*(1-$L11),0)))) ->  | BC11: =IF($J11="","",IF(BB11="",IF(BC$4<$G11,"",ROUNDDOWN($J11*(1-$M11),0)),IF(ROUNDDOWN(BB11*(1-$L11),0)<$J11*5%,$J11*5%,ROUNDDOWN(BB11*(1-$L11),0)))) ->  | BD11: =IF($J11="","",IF(BC11="",IF(BD$4<$G11,"",ROUNDDOWN($J11*(1-$M11),0)),IF(ROUNDDOWN(BC11*(1-$L11),0)<$J11*5%,$J11*5%,ROUNDDOWN(BC11*(1-$L11),0)))) ->  | BE11: =IF($J11="","",IF(BD11="",IF(BE$4<$G11,"",ROUNDDOWN($J11*(1-$M11),0)),IF(ROUNDDOWN(BD11*(1-$L11),0)<$J11*5%,$J11*5%,ROUNDDOWN(BD11*(1-$L11),0)))) ->  | BF11: =IF($J11="","",IF(BE11="",IF(BF$4<$G11,"",ROUNDDOWN($J11*(1-$M11),0)),IF(ROUNDDOWN(BE11*(1-$L11),0)<$J11*5%,$J11*5%,ROUNDDOWN(BE11*(1-$L11),0)))) ->  | BG11: =IF($J11="","",IF(BF11="",IF(BG$4<$G11,"",ROUNDDOWN($J11*(1-$M11),0)),IF(ROUNDDOWN(BF11*(1-$L11),0)<$J11*5%,$J11*5%,ROUNDDOWN(BF11*(1-$L11),0)))) ->  | BH11: =IF($J11="","",IF(BG11="",IF(BH$4<$G11,"",ROUNDDOWN($J11*(1-$M11),0)),IF(ROUNDDOWN(BG11*(1-$L11),0)<$J11*5%,$J11*5%,ROUNDDOWN(BG11*(1-$L11),0)))) ->  | BI11: =IF($J11="","",IF(BH11="",IF(BI$4<$G11,"",ROUNDDOWN($J11*(1-$M11),0)),IF(ROUNDDOWN(BH11*(1-$L11),0)<$J11*5%,$J11*5%,ROUNDDOWN(BH11*(1-$L11),0)))) ->  | BJ11: =IF($J11="","",IF(BI11="",IF(BJ$4<$G11,"",ROUNDDOWN($J11*(1-$M11),0)),IF(ROUNDDOWN(BI11*(1-$L11),0)<$J11*5%,$J11*5%,ROUNDDOWN(BI11*(1-$L11),0)))) ->  | BK11: =IF($J11="","",IF(BJ11="",IF(BK$4<$G11,"",ROUNDDOWN($J11*(1-$M11),0)),IF(ROUNDDOWN(BJ11*(1-$L11),0)<$J11*5%,$J11*5%,ROUNDDOWN(BJ11*(1-$L11),0)))) ->  | BL11: =IF($J11="","",IF(BK11="",IF(BL$4<$G11,"",ROUNDDOWN($J11*(1-$M11),0)),IF(ROUNDDOWN(BK11*(1-$L11),0)<$J11*5%,$J11*5%,ROUNDDOWN(BK11*(1-$L11),0)))) ->  | BM11: =IF($J11="","",IF(BL11="",IF(BM$4<$G11,"",ROUNDDOWN($J11*(1-$M11),0)),IF(ROUNDDOWN(BL11*(1-$L11),0)<$J11*5%,$J11*5%,ROUNDDOWN(BL11*(1-$L11),0)))) ->  | BN11: =IF($J11="","",IF(BM11="",IF(BN$4<$G11,"",ROUNDDOWN($J11*(1-$M11),0)),IF(ROUNDDOWN(BM11*(1-$L11),0)<$J11*5%,$J11*5%,ROUNDDOWN(BM11*(1-$L11),0)))) ->  | BO11: =IF($J11="","",IF(BN11="",IF(BO$4<$G11,"",ROUNDDOWN($J11*(1-$M11),0)),IF(ROUNDDOWN(BN11*(1-$L11),0)<$J11*5%,$J11*5%,ROUNDDOWN(BN11*(1-$L11),0)))) ->  | BP11: =IF($J11="","",IF(BO11="",IF(BP$4<$G11,"",ROUNDDOWN($J11*(1-$M11),0)),IF(ROUNDDOWN(BO11*(1-$L11),0)<$J11*5%,$J11*5%,ROUNDDOWN(BO11*(1-$L11),0)))) ->  | BQ11: =IF($J11="","",IF(BP11="",IF(BQ$4<$G11,"",ROUNDDOWN($J11*(1-$M11),0)),IF(ROUNDDOWN(BP11*(1-$L11),0)<$J11*5%,$J11*5%,ROUNDDOWN(BP11*(1-$L11),0)))) ->  | BR11: =IF($J11="","",IF(BQ11="",IF(BR$4<$G11,"",ROUNDDOWN($J11*(1-$M11),0)),IF(ROUNDDOWN(BQ11*(1-$L11),0)<$J11*5%,$J11*5%,ROUNDDOWN(BQ11*(1-$L11),0)))) ->  | BS11: =IF($J11="","",IF(BR11="",IF(BS$4<$G11,"",ROUNDDOWN($J11*(1-$M11),0)),IF(ROUNDDOWN(BR11*(1-$L11),0)<$J11*5%,$J11*5%,ROUNDDOWN(BR11*(1-$L11),0)))) ->  | BT11: =IF($J11="","",IF(BS11="",IF(BT$4<$G11,"",ROUNDDOWN($J11*(1-$M11),0)),IF(ROUNDDOWN(BS11*(1-$L11),0)<$J11*5%,$J11*5%,ROUNDDOWN(BS11*(1-$L11),0)))) ->  | BU11: =IF($J11="","",IF(BT11="",IF(BU$4<$G11,"",ROUNDDOWN($J11*(1-$M11),0)),IF(ROUNDDOWN(BT11*(1-$L11),0)<$J11*5%,$J11*5%,ROUNDDOWN(BT11*(1-$L11),0)))) ->  | BV11: =IF($J11="","",IF(BU11="",IF(BV$4<$G11,"",ROUNDDOWN($J11*(1-$M11),0)),IF(ROUNDDOWN(BU11*(1-$L11),0)<$J11*5%,$J11*5%,ROUNDDOWN(BU11*(1-$L11),0)))) ->  | BW11: =IF($J11="","",IF(BV11="",IF(BW$4<$G11,"",ROUNDDOWN($J11*(1-$M11),0)),IF(ROUNDDOWN(BV11*(1-$L11),0)<$J11*5%,$J11*5%,ROUNDDOWN(BV11*(1-$L11),0)))) ->  | BX11: =IF($J11="","",IF(BW11="",IF(BX$4<$G11,"",ROUNDDOWN($J11*(1-$M11),0)),IF(ROUNDDOWN(BW11*(1-$L11),0)<$J11*5%,$J11*5%,ROUNDDOWN(BW11*(1-$L11),0)))) ->  | BY11: =IF($J11="","",IF(BX11="",IF(BY$4<$G11,"",ROUNDDOWN($J11*(1-$M11),0)),IF(ROUNDDOWN(BX11*(1-$L11),0)<$J11*5%,$J11*5%,ROUNDDOWN(BX11*(1-$L11),0)))) ->  | BZ11: =IF($J11="","",IF(BY11="",IF(BZ$4<$G11,"",ROUNDDOWN($J11*(1-$M11),0)),IF(ROUNDDOWN(BY11*(1-$L11),0)<$J11*5%,$J11*5%,ROUNDDOWN(BY11*(1-$L11),0)))) ->  | CA11: =IF($J11="","",IF(BZ11="",IF(CA$4<$G11,"",ROUNDDOWN($J11*(1-$M11),0)),IF(ROUNDDOWN(BZ11*(1-$L11),0)<$J11*5%,$J11*5%,ROUNDDOWN(BZ11*(1-$L11),0)))) ->  | CB11: =IF($J11="","",IF(CA11="",IF(CB$4<$G11,"",ROUNDDOWN($J11*(1-$M11),0)),IF(ROUNDDOWN(CA11*(1-$L11),0)<$J11*5%,$J11*5%,ROUNDDOWN(CA11*(1-$L11),0)))) ->  | CC11: =IF($J11="","",IF(CB11="",IF(CC$4<$G11,"",ROUNDDOWN($J11*(1-$M11),0)),IF(ROUNDDOWN(CB11*(1-$L11),0)<$J11*5%,$J11*5%,ROUNDDOWN(CB11*(1-$L11),0)))) ->  | CD11: =IF($J11="","",IF(CC11="",IF(CD$4<$G11,"",ROUNDDOWN($J11*(1-$M11),0)),IF(ROUNDDOWN(CC11*(1-$L11),0)<$J11*5%,$J11*5%,ROUNDDOWN(CC11*(1-$L11),0)))) ->  | CE11: =IF($J11="","",IF(CD11="",IF(CE$4<$G11,"",ROUNDDOWN($J11*(1-$M11),0)),IF(ROUNDDOWN(CD11*(1-$L11),0)<$J11*5%,$J11*5%,ROUNDDOWN(CD11*(1-$L11),0)))) ->  | CF11: =IF($J11="","",IF(CE11="",IF(CF$4<$G11,"",ROUNDDOWN($J11*(1-$M11),0)),IF(ROUNDDOWN(CE11*(1-$L11),0)<$J11*5%,$J11*5%,ROUNDDOWN(CE11*(1-$L11),0)))) ->  | CG11: =IF($J11="","",IF(CF11="",IF(CG$4<$G11,"",ROUNDDOWN($J11*(1-$M11),0)),IF(ROUNDDOWN(CF11*(1-$L11),0)<$J11*5%,$J11*5%,ROUNDDOWN(CF11*(1-$L11),0)))) ->  | CH11: =IF($J11="","",IF(CG11="",IF(CH$4<$G11,"",ROUNDDOWN($J11*(1-$M11),0)),IF(ROUNDDOWN(CG11*(1-$L11),0)<$J11*5%,$J11*5%,ROUNDDOWN(CG11*(1-$L11),0)))) ->  | CI11: =IF($J11="","",IF(CH11="",IF(CI$4<$G11,"",ROUNDDOWN($J11*(1-$M11),0)),IF(ROUNDDOWN(CH11*(1-$L11),0)<$J11*5%,$J11*5%,ROUNDDOWN(CH11*(1-$L11),0)))) ->  | CJ11: =IF($J11="","",IF(CI11="",IF(CJ$4<$G11,"",ROUNDDOWN($J11*(1-$M11),0)),IF(ROUNDDOWN(CI11*(1-$L11),0)<$J11*5%,$J11*5%,ROUNDDOWN(CI11*(1-$L11),0)))) ->  | CK11: =IF($J11="","",IF(CJ11="",IF(CK$4<$G11,"",ROUNDDOWN($J11*(1-$M11),0)),IF(ROUNDDOWN(CJ11*(1-$L11),0)<$J11*5%,$J11*5%,ROUNDDOWN(CJ11*(1-$L11),0)))) ->  | CL11: =IF($J11="","",IF(CK11="",IF(CL$4<$G11,"",ROUNDDOWN($J11*(1-$M11),0)),IF(ROUNDDOWN(CK11*(1-$L11),0)<$J11*5%,$J11*5%,ROUNDDOWN(CK11*(1-$L11),0)))) ->  | CM11: =IF($J11="","",IF(CL11="",IF(CM$4<$G11,"",ROUNDDOWN($J11*(1-$M11),0)),IF(ROUNDDOWN(CL11*(1-$L11),0)<$J11*5%,$J11*5%,ROUNDDOWN(CL11*(1-$L11),0)))) ->  | CN11: =IF($J11="","",IF(CM11="",IF(CN$4<$G11,"",ROUNDDOWN($J11*(1-$M11),0)),IF(ROUNDDOWN(CM11*(1-$L11),0)<$J11*5%,$J11*5%,ROUNDDOWN(CM11*(1-$L11),0)))) ->  | CO11: =IF($J11="","",IF(CN11="",IF(CO$4<$G11,"",ROUNDDOWN($J11*(1-$M11),0)),IF(ROUNDDOWN(CN11*(1-$L11),0)<$J11*5%,$J11*5%,ROUNDDOWN(CN11*(1-$L11),0)))) ->  | CP11: =IF($J11="","",IF(CO11="",IF(CP$4<$G11,"",ROUNDDOWN($J11*(1-$M11),0)),IF(ROUNDDOWN(CO11*(1-$L11),0)<$J11*5%,$J11*5%,ROUNDDOWN(CO11*(1-$L11),0)))) ->  | CQ11: =IF($J11="","",IF(CP11="",IF(CQ$4<$G11,"",ROUNDDOWN($J11*(1-$M11),0)),IF(ROUNDDOWN(CP11*(1-$L11),0)<$J11*5%,$J11*5%,ROUNDDOWN(CP11*(1-$L11),0)))) ->  | CR11: =IF($J11="","",IF(CQ11="",IF(CR$4<$G11,"",ROUNDDOWN($J11*(1-$M11),0)),IF(ROUNDDOWN(CQ11*(1-$L11),0)<$J11*5%,$J11*5%,ROUNDDOWN(CQ11*(1-$L11),0)))) ->  | CS11: =IF($J11="","",IF(CR11="",IF(CS$4<$G11,"",ROUNDDOWN($J11*(1-$M11),0)),IF(ROUNDDOWN(CR11*(1-$L11),0)<$J11*5%,$J11*5%,ROUNDDOWN(CR11*(1-$L11),0)))) ->  | CT11: =IF($J11="","",IF(CS11="",IF(CT$4<$G11,"",ROUNDDOWN($J11*(1-$M11),0)),IF(ROUNDDOWN(CS11*(1-$L11),0)<$J11*5%,$J11*5%,ROUNDDOWN(CS11*(1-$L11),0)))) ->  | CU11: =IF($J11="","",IF(CT11="",IF(CU$4<$G11,"",ROUNDDOWN($J11*(1-$M11),0)),IF(ROUNDDOWN(CT11*(1-$L11),0)<$J11*5%,$J11*5%,ROUNDDOWN(CT11*(1-$L11),0)))) ->  | CV11: =IF($J11="","",IF(CU11="",IF(CV$4<$G11,"",ROUNDDOWN($J11*(1-$M11),0)),IF(ROUNDDOWN(CU11*(1-$L11),0)<$J11*5%,$J11*5%,ROUNDDOWN(CU11*(1-$L11),0)))) ->  | CW11: =IF($J11="","",IF(CV11="",IF(CW$4<$G11,"",ROUNDDOWN($J11*(1-$M11),0)),IF(ROUNDDOWN(CV11*(1-$L11),0)<$J11*5%,$J11*5%,ROUNDDOWN(CV11*(1-$L11),0)))) ->  | CX11: =IF($J11="","",IF(CW11="",IF(CX$4<$G11,"",ROUNDDOWN($J11*(1-$M11),0)),IF(ROUNDDOWN(CW11*(1-$L11),0)<$J11*5%,$J11*5%,ROUNDDOWN(CW11*(1-$L11),0)))) ->  | CY11: =IF($J11="","",IF(CX11="",IF(CY$4<$G11,"",ROUNDDOWN($J11*(1-$M11),0)),IF(ROUNDDOWN(CX11*(1-$L11),0)<$J11*5%,$J11*5%,ROUNDDOWN(CX11*(1-$L11),0)))) -> 
B12: 8 | H12: =IF(G12="","",Nengo(G12)) ->  | I12: 0 | L12: 0 | M12: 0
B13: 9 | H13: =IF(G13="","",Nengo(G13)) ->  | I13: 0 | L13: 0 | M13: 0
B14: 10 | H14: =IF(G14="","",Nengo(G14)) ->  | I14: 0 | L14: 0 | M14: 0
B15: 11 | H15: =IF(G15="","",Nengo(G15)) ->  | I15: 0 | L15: 0 | M15: 0
B16: 12 | H16: =IF(G16="","",Nengo(G16)) ->  | I16: 0 | L16: 0 | M16: 0
B17: 13 | H17: =IF(G17="","",Nengo(G17)) ->  | I17: 0 | L17: 0 | M17: 0
B18: 14 | H18: =IF(G18="","",Nengo(G18)) ->  | I18: 0 | L18: 0 | M18: 0
B19: 15 | H19: =IF(G19="","",Nengo(G19)) ->  | I19: 0 | L19: 0 | M19: 0 | R19: =IF($J19="","",IF(Q19="",IF(R$4<$G19,"",ROUNDDOWN($J19*(1-$M19),0)),IF(ROUNDDOWN(Q19*(1-$L19),0)<$J19*5%,$J19*5%,ROUNDDOWN(Q19*(1-$L19),0)))) -> 
B20: 16 | H20: =IF(G20="","",Nengo(G20)) ->  | I20: =IF(G20>DATE(YEAR($D$1)-1,1,1),1,0) -> 0 | L20: 0 | M20: 0 | R20: =IF($J20="","",IF(Q20="",IF(R$4<$G20,"",ROUNDDOWN($J20*(1-$M20),0)),IF(ROUNDDOWN(Q20*(1-$L20),0)<$J20*5%,$J20*5%,ROUNDDOWN(Q20*(1-$L20),0)))) -> 
B21: 17 | H21: =IF(G21="","",Nengo(G21)) ->  | I21: 0 | L21: 0 | M21: 0
B22: 18 | H22: =IF(G22="","",Nengo(G22)) ->  | I22: 0 | L22: 0 | M22: 0
B23: 19 | H23: =IF(G23="","",Nengo(G23)) ->  | I23: 0 | L23: 0 | M23: 0
B24: 20 | H24: =IF(G24="","",Nengo(G24)) ->  | I24: 0 | L24: 0 | M24: 0
B25: 21 | H25: =IF(G25="","",Nengo(G25)) ->  | I25: 0 | L25: 0 | M25: 0
B26: 22 | H26: =IF(G26="","",Nengo(G26)) ->  | I26: 0 | L26: 0 | M26: 0
B27: 23 | H27: =IF(G27="","",Nengo(G27)) ->  | I27: 0 | L27: 0 | M27: 0
B28: 24 | H28: =IF(G28="","",Nengo(G28)) ->  | I28: 0 | L28: 0 | M28: 0
B29: 25 | H29: =IF(G29="","",Nengo(G29)) ->  | I29: 0 | L29: =IF(K29="",0,ROUND(1-(1/10)^(1/K29),3)) -> 0 | M29: =ROUND(L29/2,3) -> 0 | N29: =IF(J29="","",IF(N$4<$G29,"",ROUNDDOWN($J29*(1-$M29),0))) ->  | O29: =IF($J29="","",IF(N29="",IF(O$4<$G29,"",ROUNDDOWN($J29*(1-$M29),0)),IF(ROUNDDOWN(N29*(1-$L29),0)<$J29*5%,$J29*5%,ROUNDDOWN(N29*(1-$L29),0)))) ->  | P29: =IF($J29="","",IF(O29="",IF(P$4<$G29,"",ROUNDDOWN($J29*(1-$M29),0)),IF(ROUNDDOWN(O29*(1-$L29),0)<$J29*5%,$J29*5%,ROUNDDOWN(O29*(1-$L29),0)))) ->  | Q29: =IF($J29="","",IF(P29="",IF(Q$4<$G29,"",ROUNDDOWN($J29*(1-$M29),0)),IF(ROUNDDOWN(P29*(1-$L29),0)<$J29*5%,$J29*5%,ROUNDDOWN(P29*(1-$L29),0)))) ->  | R29: =IF($J29="","",IF(Q29="",IF(R$4<$G29,"",ROUNDDOWN($J29*(1-$M29),0)),IF(ROUNDDOWN(Q29*(1-$L29),0)<$J29*5%,$J29*5%,ROUNDDOWN(Q29*(1-$L29),0)))) ->  | S29: =IF($J29="","",IF(R29="",IF(S$4<$G29,"",ROUNDDOWN($J29*(1-$M29),0)),IF(ROUNDDOWN(R29*(1-$L29),0)<$J29*5%,$J29*5%,ROUNDDOWN(R29*(1-$L29),0)))) ->  | T29: =IF($J29="","",IF(S29="",IF(T$4<$G29,"",ROUNDDOWN($J29*(1-$M29),0)),IF(ROUNDDOWN(S29*(1-$L29),0)<$J29*5%,$J29*5%,ROUNDDOWN(S29*(1-$L29),0)))) ->  | U29: =IF($J29="","",IF(T29="",IF(U$4<$G29,"",ROUNDDOWN($J29*(1-$M29),0)),IF(ROUNDDOWN(T29*(1-$L29),0)<$J29*5%,$J29*5%,ROUNDDOWN(T29*(1-$L29),0)))) ->  | V29: =IF($J29="","",IF(U29="",IF(V$4<$G29,"",ROUNDDOWN($J29*(1-$M29),0)),IF(ROUNDDOWN(U29*(1-$L29),0)<$J29*5%,$J29*5%,ROUNDDOWN(U29*(1-$L29),0)))) ->  | W29: =IF($J29="","",IF(V29="",IF(W$4<$G29,"",ROUNDDOWN($J29*(1-$M29),0)),IF(ROUNDDOWN(V29*(1-$L29),0)<$J29*5%,$J29*5%,ROUNDDOWN(V29*(1-$L29),0)))) ->  | X29: =IF($J29="","",IF(W29="",IF(X$4<$G29,"",ROUNDDOWN($J29*(1-$M29),0)),IF(ROUNDDOWN(W29*(1-$L29),0)<$J29*5%,$J29*5%,ROUNDDOWN(W29*(1-$L29),0)))) ->  | Y29: =IF($J29="","",IF(X29="",IF(Y$4<$G29,"",ROUNDDOWN($J29*(1-$M29),0)),IF(ROUNDDOWN(X29*(1-$L29),0)<$J29*5%,$J29*5%,ROUNDDOWN(X29*(1-$L29),0)))) ->  | Z29: =IF($J29="","",IF(Y29="",IF(Z$4<$G29,"",ROUNDDOWN($J29*(1-$M29),0)),IF(ROUNDDOWN(Y29*(1-$L29),0)<$J29*5%,$J29*5%,ROUNDDOWN(Y29*(1-$L29),0)))) ->  | AA29: =IF($J29="","",IF(Z29="",IF(AA$4<$G29,"",ROUNDDOWN($J29*(1-$M29),0)),IF(ROUNDDOWN(Z29*(1-$L29),0)<$J29*5%,$J29*5%,ROUNDDOWN(Z29*(1-$L29),0)))) ->  | AB29: =IF($J29="","",IF(AA29="",IF(AB$4<$G29,"",ROUNDDOWN($J29*(1-$M29),0)),IF(ROUNDDOWN(AA29*(1-$L29),0)<$J29*5%,$J29*5%,ROUNDDOWN(AA29*(1-$L29),0)))) ->  | AC29: =IF($J29="","",IF(AB29="",IF(AC$4<$G29,"",ROUNDDOWN($J29*(1-$M29),0)),IF(ROUNDDOWN(AB29*(1-$L29),0)<$J29*5%,$J29*5%,ROUNDDOWN(AB29*(1-$L29),0)))) ->  | AD29: =IF($J29="","",IF(AC29="",IF(AD$4<$G29,"",ROUNDDOWN($J29*(1-$M29),0)),IF(ROUNDDOWN(AC29*(1-$L29),0)<$J29*5%,$J29*5%,ROUNDDOWN(AC29*(1-$L29),0)))) ->  | AE29: =IF($J29="","",IF(AD29="",IF(AE$4<$G29,"",ROUNDDOWN($J29*(1-$M29),0)),IF(ROUNDDOWN(AD29*(1-$L29),0)<$J29*5%,$J29*5%,ROUNDDOWN(AD29*(1-$L29),0)))) ->  | AF29: =IF($J29="","",IF(AE29="",IF(AF$4<$G29,"",ROUNDDOWN($J29*(1-$M29),0)),IF(ROUNDDOWN(AE29*(1-$L29),0)<$J29*5%,$J29*5%,ROUNDDOWN(AE29*(1-$L29),0)))) ->  | AG29: =IF($J29="","",IF(AF29="",IF(AG$4<$G29,"",ROUNDDOWN($J29*(1-$M29),0)),IF(ROUNDDOWN(AF29*(1-$L29),0)<$J29*5%,$J29*5%,ROUNDDOWN(AF29*(1-$L29),0)))) ->  | AH29: =IF($J29="","",IF(AG29="",IF(AH$4<$G29,"",ROUNDDOWN($J29*(1-$M29),0)),IF(ROUNDDOWN(AG29*(1-$L29),0)<$J29*5%,$J29*5%,ROUNDDOWN(AG29*(1-$L29),0)))) ->  | AI29: =IF($J29="","",IF(AH29="",IF(AI$4<$G29,"",ROUNDDOWN($J29*(1-$M29),0)),IF(ROUNDDOWN(AH29*(1-$L29),0)<$J29*5%,$J29*5%,ROUNDDOWN(AH29*(1-$L29),0)))) ->  | AJ29: =IF($J29="","",IF(AI29="",IF(AJ$4<$G29,"",ROUNDDOWN($J29*(1-$M29),0)),IF(ROUNDDOWN(AI29*(1-$L29),0)<$J29*5%,$J29*5%,ROUNDDOWN(AI29*(1-$L29),0)))) ->  | AK29: =IF($J29="","",IF(AJ29="",IF(AK$4<$G29,"",ROUNDDOWN($J29*(1-$M29),0)),IF(ROUNDDOWN(AJ29*(1-$L29),0)<$J29*5%,$J29*5%,ROUNDDOWN(AJ29*(1-$L29),0)))) ->  | AL29: =IF($J29="","",IF(AK29="",IF(AL$4<$G29,"",ROUNDDOWN($J29*(1-$M29),0)),IF(ROUNDDOWN(AK29*(1-$L29),0)<$J29*5%,$J29*5%,ROUNDDOWN(AK29*(1-$L29),0)))) ->  | AM29: =IF($J29="","",IF(AL29="",IF(AM$4<$G29,"",ROUNDDOWN($J29*(1-$M29),0)),IF(ROUNDDOWN(AL29*(1-$L29),0)<$J29*5%,$J29*5%,ROUNDDOWN(AL29*(1-$L29),0)))) ->  | AN29: =IF($J29="","",IF(AM29="",IF(AN$4<$G29,"",ROUNDDOWN($J29*(1-$M29),0)),IF(ROUNDDOWN(AM29*(1-$L29),0)<$J29*5%,$J29*5%,ROUNDDOWN(AM29*(1-$L29),0)))) ->  | AO29: =IF($J29="","",IF(AN29="",IF(AO$4<$G29,"",ROUNDDOWN($J29*(1-$M29),0)),IF(ROUNDDOWN(AN29*(1-$L29),0)<$J29*5%,$J29*5%,ROUNDDOWN(AN29*(1-$L29),0)))) ->  | AP29: =IF($J29="","",IF(AO29="",IF(AP$4<$G29,"",ROUNDDOWN($J29*(1-$M29),0)),IF(ROUNDDOWN(AO29*(1-$L29),0)<$J29*5%,$J29*5%,ROUNDDOWN(AO29*(1-$L29),0)))) ->  | AQ29: =IF($J29="","",IF(AP29="",IF(AQ$4<$G29,"",ROUNDDOWN($J29*(1-$M29),0)),IF(ROUNDDOWN(AP29*(1-$L29),0)<$J29*5%,$J29*5%,ROUNDDOWN(AP29*(1-$L29),0)))) ->  | AR29: =IF($J29="","",IF(AQ29="",IF(AR$4<$G29,"",ROUNDDOWN($J29*(1-$M29),0)),IF(ROUNDDOWN(AQ29*(1-$L29),0)<$J29*5%,$J29*5%,ROUNDDOWN(AQ29*(1-$L29),0)))) ->  | AS29: =IF($J29="","",IF(AR29="",IF(AS$4<$G29,"",ROUNDDOWN($J29*(1-$M29),0)),IF(ROUNDDOWN(AR29*(1-$L29),0)<$J29*5%,$J29*5%,ROUNDDOWN(AR29*(1-$L29),0)))) ->  | AT29: =IF($J29="","",IF(AS29="",IF(AT$4<$G29,"",ROUNDDOWN($J29*(1-$M29),0)),IF(ROUNDDOWN(AS29*(1-$L29),0)<$J29*5%,$J29*5%,ROUNDDOWN(AS29*(1-$L29),0)))) ->  | AU29: =IF($J29="","",IF(AT29="",IF(AU$4<$G29,"",ROUNDDOWN($J29*(1-$M29),0)),IF(ROUNDDOWN(AT29*(1-$L29),0)<$J29*5%,$J29*5%,ROUNDDOWN(AT29*(1-$L29),0)))) ->  | AV29: =IF($J29="","",IF(AU29="",IF(AV$4<$G29,"",ROUNDDOWN($J29*(1-$M29),0)),IF(ROUNDDOWN(AU29*(1-$L29),0)<$J29*5%,$J29*5%,ROUNDDOWN(AU29*(1-$L29),0)))) ->  | AW29: =IF($J29="","",IF(AV29="",IF(AW$4<$G29,"",ROUNDDOWN($J29*(1-$M29),0)),IF(ROUNDDOWN(AV29*(1-$L29),0)<$J29*5%,$J29*5%,ROUNDDOWN(AV29*(1-$L29),0)))) ->  | AX29: =IF($J29="","",IF(AW29="",IF(AX$4<$G29,"",ROUNDDOWN($J29*(1-$M29),0)),IF(ROUNDDOWN(AW29*(1-$L29),0)<$J29*5%,$J29*5%,ROUNDDOWN(AW29*(1-$L29),0)))) ->  | AY29: =IF($J29="","",IF(AX29="",IF(AY$4<$G29,"",ROUNDDOWN($J29*(1-$M29),0)),IF(ROUNDDOWN(AX29*(1-$L29),0)<$J29*5%,$J29*5%,ROUNDDOWN(AX29*(1-$L29),0)))) ->  | AZ29: =IF($J29="","",IF(AY29="",IF(AZ$4<$G29,"",ROUNDDOWN($J29*(1-$M29),0)),IF(ROUNDDOWN(AY29*(1-$L29),0)<$J29*5%,$J29*5%,ROUNDDOWN(AY29*(1-$L29),0)))) ->  | BA29: =IF($J29="","",IF(AZ29="",IF(BA$4<$G29,"",ROUNDDOWN($J29*(1-$M29),0)),IF(ROUNDDOWN(AZ29*(1-$L29),0)<$J29*5%,$J29*5%,ROUNDDOWN(AZ29*(1-$L29),0)))) ->  | BB29: =IF($J29="","",IF(BA29="",IF(BB$4<$G29,"",ROUNDDOWN($J29*(1-$M29),0)),IF(ROUNDDOWN(BA29*(1-$L29),0)<$J29*5%,$J29*5%,ROUNDDOWN(BA29*(1-$L29),0)))) ->  | BC29: =IF($J29="","",IF(BB29="",IF(BC$4<$G29,"",ROUNDDOWN($J29*(1-$M29),0)),IF(ROUNDDOWN(BB29*(1-$L29),0)<$J29*5%,$J29*5%,ROUNDDOWN(BB29*(1-$L29),0)))) ->  | BD29: =IF($J29="","",IF(BC29="",IF(BD$4<$G29,"",ROUNDDOWN($J29*(1-$M29),0)),IF(ROUNDDOWN(BC29*(1-$L29),0)<$J29*5%,$J29*5%,ROUNDDOWN(BC29*(1-$L29),0)))) ->  | BE29: =IF($J29="","",IF(BD29="",IF(BE$4<$G29,"",ROUNDDOWN($J29*(1-$M29),0)),IF(ROUNDDOWN(BD29*(1-$L29),0)<$J29*5%,$J29*5%,ROUNDDOWN(BD29*(1-$L29),0)))) ->  | BF29: =IF($J29="","",IF(BE29="",IF(BF$4<$G29,"",ROUNDDOWN($J29*(1-$M29),0)),IF(ROUNDDOWN(BE29*(1-$L29),0)<$J29*5%,$J29*5%,ROUNDDOWN(BE29*(1-$L29),0)))) ->  | BG29: =IF($J29="","",IF(BF29="",IF(BG$4<$G29,"",ROUNDDOWN($J29*(1-$M29),0)),IF(ROUNDDOWN(BF29*(1-$L29),0)<$J29*5%,$J29*5%,ROUNDDOWN(BF29*(1-$L29),0)))) ->  | BH29: =IF($J29="","",IF(BG29="",IF(BH$4<$G29,"",ROUNDDOWN($J29*(1-$M29),0)),IF(ROUNDDOWN(BG29*(1-$L29),0)<$J29*5%,$J29*5%,ROUNDDOWN(BG29*(1-$L29),0)))) ->  | BI29: =IF($J29="","",IF(BH29="",IF(BI$4<$G29,"",ROUNDDOWN($J29*(1-$M29),0)),IF(ROUNDDOWN(BH29*(1-$L29),0)<$J29*5%,$J29*5%,ROUNDDOWN(BH29*(1-$L29),0)))) ->  | BJ29: =IF($J29="","",IF(BI29="",IF(BJ$4<$G29,"",ROUNDDOWN($J29*(1-$M29),0)),IF(ROUNDDOWN(BI29*(1-$L29),0)<$J29*5%,$J29*5%,ROUNDDOWN(BI29*(1-$L29),0)))) ->  | BK29: =IF($J29="","",IF(BJ29="",IF(BK$4<$G29,"",ROUNDDOWN($J29*(1-$M29),0)),IF(ROUNDDOWN(BJ29*(1-$L29),0)<$J29*5%,$J29*5%,ROUNDDOWN(BJ29*(1-$L29),0)))) ->  | BL29: =IF($J29="","",IF(BK29="",IF(BL$4<$G29,"",ROUNDDOWN($J29*(1-$M29),0)),IF(ROUNDDOWN(BK29*(1-$L29),0)<$J29*5%,$J29*5%,ROUNDDOWN(BK29*(1-$L29),0)))) ->  | BM29: =IF($J29="","",IF(BL29="",IF(BM$4<$G29,"",ROUNDDOWN($J29*(1-$M29),0)),IF(ROUNDDOWN(BL29*(1-$L29),0)<$J29*5%,$J29*5%,ROUNDDOWN(BL29*(1-$L29),0)))) ->  | BN29: =IF($J29="","",IF(BM29="",IF(BN$4<$G29,"",ROUNDDOWN($J29*(1-$M29),0)),IF(ROUNDDOWN(BM29*(1-$L29),0)<$J29*5%,$J29*5%,ROUNDDOWN(BM29*(1-$L29),0)))) ->  | BO29: =IF($J29="","",IF(BN29="",IF(BO$4<$G29,"",ROUNDDOWN($J29*(1-$M29),0)),IF(ROUNDDOWN(BN29*(1-$L29),0)<$J29*5%,$J29*5%,ROUNDDOWN(BN29*(1-$L29),0)))) ->  | BP29: =IF($J29="","",IF(BO29="",IF(BP$4<$G29,"",ROUNDDOWN($J29*(1-$M29),0)),IF(ROUNDDOWN(BO29*(1-$L29),0)<$J29*5%,$J29*5%,ROUNDDOWN(BO29*(1-$L29),0)))) ->  | BQ29: =IF($J29="","",IF(BP29="",IF(BQ$4<$G29,"",ROUNDDOWN($J29*(1-$M29),0)),IF(ROUNDDOWN(BP29*(1-$L29),0)<$J29*5%,$J29*5%,ROUNDDOWN(BP29*(1-$L29),0)))) ->  | BR29: =IF($J29="","",IF(BQ29="",IF(BR$4<$G29,"",ROUNDDOWN($J29*(1-$M29),0)),IF(ROUNDDOWN(BQ29*(1-$L29),0)<$J29*5%,$J29*5%,ROUNDDOWN(BQ29*(1-$L29),0)))) ->  | BS29: =IF($J29="","",IF(BR29="",IF(BS$4<$G29,"",ROUNDDOWN($J29*(1-$M29),0)),IF(ROUNDDOWN(BR29*(1-$L29),0)<$J29*5%,$J29*5%,ROUNDDOWN(BR29*(1-$L29),0)))) ->  | BT29: =IF($J29="","",IF(BS29="",IF(BT$4<$G29,"",ROUNDDOWN($J29*(1-$M29),0)),IF(ROUNDDOWN(BS29*(1-$L29),0)<$J29*5%,$J29*5%,ROUNDDOWN(BS29*(1-$L29),0)))) ->  | BU29: =IF($J29="","",IF(BT29="",IF(BU$4<$G29,"",ROUNDDOWN($J29*(1-$M29),0)),IF(ROUNDDOWN(BT29*(1-$L29),0)<$J29*5%,$J29*5%,ROUNDDOWN(BT29*(1-$L29),0)))) ->  | BV29: =IF($J29="","",IF(BU29="",IF(BV$4<$G29,"",ROUNDDOWN($J29*(1-$M29),0)),IF(ROUNDDOWN(BU29*(1-$L29),0)<$J29*5%,$J29*5%,ROUNDDOWN(BU29*(1-$L29),0)))) ->  | BW29: =IF($J29="","",IF(BV29="",IF(BW$4<$G29,"",ROUNDDOWN($J29*(1-$M29),0)),IF(ROUNDDOWN(BV29*(1-$L29),0)<$J29*5%,$J29*5%,ROUNDDOWN(BV29*(1-$L29),0)))) ->  | BX29: =IF($J29="","",IF(BW29="",IF(BX$4<$G29,"",ROUNDDOWN($J29*(1-$M29),0)),IF(ROUNDDOWN(BW29*(1-$L29),0)<$J29*5%,$J29*5%,ROUNDDOWN(BW29*(1-$L29),0)))) ->  | BY29: =IF($J29="","",IF(BX29="",IF(BY$4<$G29,"",ROUNDDOWN($J29*(1-$M29),0)),IF(ROUNDDOWN(BX29*(1-$L29),0)<$J29*5%,$J29*5%,ROUNDDOWN(BX29*(1-$L29),0)))) ->  | BZ29: =IF($J29="","",IF(BY29="",IF(BZ$4<$G29,"",ROUNDDOWN($J29*(1-$M29),0)),IF(ROUNDDOWN(BY29*(1-$L29),0)<$J29*5%,$J29*5%,ROUNDDOWN(BY29*(1-$L29),0)))) ->  | CA29: =IF($J29="","",IF(BZ29="",IF(CA$4<$G29,"",ROUNDDOWN($J29*(1-$M29),0)),IF(ROUNDDOWN(BZ29*(1-$L29),0)<$J29*5%,$J29*5%,ROUNDDOWN(BZ29*(1-$L29),0)))) ->  | CB29: =IF($J29="","",IF(CA29="",IF(CB$4<$G29,"",ROUNDDOWN($J29*(1-$M29),0)),IF(ROUNDDOWN(CA29*(1-$L29),0)<$J29*5%,$J29*5%,ROUNDDOWN(CA29*(1-$L29),0)))) ->  | CC29: =IF($J29="","",IF(CB29="",IF(CC$4<$G29,"",ROUNDDOWN($J29*(1-$M29),0)),IF(ROUNDDOWN(CB29*(1-$L29),0)<$J29*5%,$J29*5%,ROUNDDOWN(CB29*(1-$L29),0)))) ->  | CD29: =IF($J29="","",IF(CC29="",IF(CD$4<$G29,"",ROUNDDOWN($J29*(1-$M29),0)),IF(ROUNDDOWN(CC29*(1-$L29),0)<$J29*5%,$J29*5%,ROUNDDOWN(CC29*(1-$L29),0)))) ->  | CE29: =IF($J29="","",IF(CD29="",IF(CE$4<$G29,"",ROUNDDOWN($J29*(1-$M29),0)),IF(ROUNDDOWN(CD29*(1-$L29),0)<$J29*5%,$J29*5%,ROUNDDOWN(CD29*(1-$L29),0)))) ->  | CF29: =IF($J29="","",IF(CE29="",IF(CF$4<$G29,"",ROUNDDOWN($J29*(1-$M29),0)),IF(ROUNDDOWN(CE29*(1-$L29),0)<$J29*5%,$J29*5%,ROUNDDOWN(CE29*(1-$L29),0)))) ->  | CG29: =IF($J29="","",IF(CF29="",IF(CG$4<$G29,"",ROUNDDOWN($J29*(1-$M29),0)),IF(ROUNDDOWN(CF29*(1-$L29),0)<$J29*5%,$J29*5%,ROUNDDOWN(CF29*(1-$L29),0)))) ->  | CH29: =IF($J29="","",IF(CG29="",IF(CH$4<$G29,"",ROUNDDOWN($J29*(1-$M29),0)),IF(ROUNDDOWN(CG29*(1-$L29),0)<$J29*5%,$J29*5%,ROUNDDOWN(CG29*(1-$L29),0)))) ->  | CI29: =IF($J29="","",IF(CH29="",IF(CI$4<$G29,"",ROUNDDOWN($J29*(1-$M29),0)),IF(ROUNDDOWN(CH29*(1-$L29),0)<$J29*5%,$J29*5%,ROUNDDOWN(CH29*(1-$L29),0)))) ->  | CJ29: =IF($J29="","",IF(CI29="",IF(CJ$4<$G29,"",ROUNDDOWN($J29*(1-$M29),0)),IF(ROUNDDOWN(CI29*(1-$L29),0)<$J29*5%,$J29*5%,ROUNDDOWN(CI29*(1-$L29),0)))) ->  | CK29: =IF($J29="","",IF(CJ29="",IF(CK$4<$G29,"",ROUNDDOWN($J29*(1-$M29),0)),IF(ROUNDDOWN(CJ29*(1-$L29),0)<$J29*5%,$J29*5%,ROUNDDOWN(CJ29*(1-$L29),0)))) ->  | CL29: =IF($J29="","",IF(CK29="",IF(CL$4<$G29,"",ROUNDDOWN($J29*(1-$M29),0)),IF(ROUNDDOWN(CK29*(1-$L29),0)<$J29*5%,$J29*5%,ROUNDDOWN(CK29*(1-$L29),0)))) ->  | CM29: =IF($J29="","",IF(CL29="",IF(CM$4<$G29,"",ROUNDDOWN($J29*(1-$M29),0)),IF(ROUNDDOWN(CL29*(1-$L29),0)<$J29*5%,$J29*5%,ROUNDDOWN(CL29*(1-$L29),0)))) ->  | CN29: =IF($J29="","",IF(CM29="",IF(CN$4<$G29,"",ROUNDDOWN($J29*(1-$M29),0)),IF(ROUNDDOWN(CM29*(1-$L29),0)<$J29*5%,$J29*5%,ROUNDDOWN(CM29*(1-$L29),0)))) ->  | CO29: =IF($J29="","",IF(CN29="",IF(CO$4<$G29,"",ROUNDDOWN($J29*(1-$M29),0)),IF(ROUNDDOWN(CN29*(1-$L29),0)<$J29*5%,$J29*5%,ROUNDDOWN(CN29*(1-$L29),0)))) ->  | CP29: =IF($J29="","",IF(CO29="",IF(CP$4<$G29,"",ROUNDDOWN($J29*(1-$M29),0)),IF(ROUNDDOWN(CO29*(1-$L29),0)<$J29*5%,$J29*5%,ROUNDDOWN(CO29*(1-$L29),0)))) ->  | CQ29: =IF($J29="","",IF(CP29="",IF(CQ$4<$G29,"",ROUNDDOWN($J29*(1-$M29),0)),IF(ROUNDDOWN(CP29*(1-$L29),0)<$J29*5%,$J29*5%,ROUNDDOWN(CP29*(1-$L29),0)))) ->  | CR29: =IF($J29="","",IF(CQ29="",IF(CR$4<$G29,"",ROUNDDOWN($J29*(1-$M29),0)),IF(ROUNDDOWN(CQ29*(1-$L29),0)<$J29*5%,$J29*5%,ROUNDDOWN(CQ29*(1-$L29),0)))) ->  | CS29: =IF($J29="","",IF(CR29="",IF(CS$4<$G29,"",ROUNDDOWN($J29*(1-$M29),0)),IF(ROUNDDOWN(CR29*(1-$L29),0)<$J29*5%,$J29*5%,ROUNDDOWN(CR29*(1-$L29),0)))) ->  | CT29: =IF($J29="","",IF(CS29="",IF(CT$4<$G29,"",ROUNDDOWN($J29*(1-$M29),0)),IF(ROUNDDOWN(CS29*(1-$L29),0)<$J29*5%,$J29*5%,ROUNDDOWN(CS29*(1-$L29),0)))) ->  | CU29: =IF($J29="","",IF(CT29="",IF(CU$4<$G29,"",ROUNDDOWN($J29*(1-$M29),0)),IF(ROUNDDOWN(CT29*(1-$L29),0)<$J29*5%,$J29*5%,ROUNDDOWN(CT29*(1-$L29),0)))) ->  | CV29: =IF($J29="","",IF(CU29="",IF(CV$4<$G29,"",ROUNDDOWN($J29*(1-$M29),0)),IF(ROUNDDOWN(CU29*(1-$L29),0)<$J29*5%,$J29*5%,ROUNDDOWN(CU29*(1-$L29),0)))) ->  | CW29: =IF($J29="","",IF(CV29="",IF(CW$4<$G29,"",ROUNDDOWN($J29*(1-$M29),0)),IF(ROUNDDOWN(CV29*(1-$L29),0)<$J29*5%,$J29*5%,ROUNDDOWN(CV29*(1-$L29),0)))) ->  | CX29: =IF($J29="","",IF(CW29="",IF(CX$4<$G29,"",ROUNDDOWN($J29*(1-$M29),0)),IF(ROUNDDOWN(CW29*(1-$L29),0)<$J29*5%,$J29*5%,ROUNDDOWN(CW29*(1-$L29),0)))) ->  | CY29: =IF($J29="","",IF(CX29="",IF(CY$4<$G29,"",ROUNDDOWN($J29*(1-$M29),0)),IF(ROUNDDOWN(CX29*(1-$L29),0)<$J29*5%,$J29*5%,ROUNDDOWN(CX29*(1-$L29),0)))) -> 
B30: 26 | H30: =IF(G30="","",Nengo(G30)) ->  | I30: 0 | L30: 0 | M30: 0
B31: 27 | H31: =IF(G31="","",Nengo(G31)) ->  | I31: 0 | L31: 0 | M31: 0
B32: 28 | H32: =IF(G32="","",Nengo(G32)) ->  | I32: 0 | L32: 0 | M32: 0
B33: 29 | H33: =IF(G33="","",Nengo(G33)) ->  | I33: 0 | L33: 0 | M33: 0
B34: 30 | H34: =IF(G34="","",Nengo(G34)) ->  | I34: 0 | L34: 0 | M34: 0
B35: 合計 | J35: =SUM(J5:J34) -> 5385000 | N35: =SUM(N5:N34) -> 2780700 | O35: 2207875 | P35: 1753052 | Q35: 1391923 | R35: 1105186 | S35: 877517 | T35: 696748 | U35: 553217 | V35: 439254 | W35: 348767 | X35: 276920 | Y35: 219874 | Z35: 174579 | AA35: 155000 | AB35: 155000 | AC35: 155000 | AD35: 155000 | AE35: 155000 | AF35: 155000 | AG35: 155000 | AH35: 155000 | AI35: 155000 | AJ35: 155000 | AK35: 155000 | AL35: 155000 | AM35: 155000 | AN35: 155000 | AO35: 155000 | AP35: 155000 | AQ35: 155000 | AR35: 155000 | AS35: 155000 | AT35: =SUM(AT5:AT34) -> 155000 | AU35: 155000 | AV35: 155000 | AW35: 155000 | AX35: 155000 | AY35: 155000 | AZ35: 155000 | BA35: 155000 | BB35: 155000 | BC35: 155000 | BD35: 1578300 | BE35: 1179776 | BF35: 1434637 | BG35: 1076337 | BH35: 818361 | BI35: 632617 | BJ35: 498882 | BK35: 402594 | BL35: 333265 | BM35: 292094 | BN35: 276877 | BO35: 269250 | BP35: 269250 | BQ35: 269250 | BR35: 269250 | BS35: 269250 | BT35: 269250 | BU35: 269250 | BV35: 269250 | BW35: 269250 | BX35: 269250 | BY35: 269250 | BZ35: =SUM(BZ5:BZ34) -> 269250 | CA35: 269250 | CB35: 269250 | CC35: 269250 | CD35: 269250 | CE35: 269250 | CF35: 269250 | CG35: 269250 | CH35: 269250 | CI35: 269250 | CJ35: 269250 | CK35: 269250 | CL35: 269250 | CM35: 269250 | CN35: 269250 | CO35: 269250 | CP35: 269250 | CQ35: 269250 | CR35: 269250 | CS35: 269250 | CT35: 269250 | CU35: 269250 | CV35: 269250 | CW35: 269250 | CX35: 269250 | CY35: 269250
B38: 税額 | N38: =ROUNDDOWN(ROUNDDOWN(SUM(N5:N34),-3)*1.4%,-2) -> 38900 | O38: 30800 | P38: 24500 | Q38: 19400 | R38: 15400 | S38: 12200 | T38: 9700 | U38: 7700 | V38: 6100 | W38: 4800 | X38: 3800 | Y38: 3000 | Z38: 2400 | AA38: 2100 | AB38: 2100 | AC38: 2100 | AD38: 2100 | AE38: 2100 | AF38: 2100 | AG38: 2100 | AH38: 2100 | AI38: 2100 | AJ38: 2100 | AK38: 2100 | AL38: 2100 | AM38: 2100 | AN38: 2100 | AO38: 2100 | AP38: 2100 | AQ38: 2100 | AR38: 2100 | AS38: 2100 | AT38: =ROUNDDOWN(ROUNDDOWN(SUM(AT5:AT34),-3)*1.4%,-2) -> 2100 | AU38: 2100 | AV38: 2100 | AW38: 2100 | AX38: 2100 | AY38: 2100 | AZ38: 2100 | BA38: 2100 | BB38: 2100 | BC38: 2100 | BD38: 22000 | BE38: 16500 | BF38: 20000 | BG38: 15000 | BH38: 11400 | BI38: 8800 | BJ38: 6900 | BK38: 5600 | BL38: 4600 | BM38: 4000 | BN38: 3800 | BO38: 3700 | BP38: 3700 | BQ38: 3700 | BR38: 3700 | BS38: 3700 | BT38: 3700 | BU38: 3700 | BV38: 3700 | BW38: 3700 | BX38: 3700 | BY38: 3700 | BZ38: =ROUNDDOWN(ROUNDDOWN(SUM(BZ5:BZ34),-3)*1.4%,-2) -> 3700 | CA38: 3700 | CB38: 3700 | CC38: 3700 | CD38: 3700 | CE38: 3700 | CF38: 3700 | CG38: 3700 | CH38: 3700 | CI38: 3700 | CJ38: 3700 | CK38: 3700 | CL38: 3700 | CM38: 3700 | CN38: 3700 | CO38: 3700 | CP38: 3700 | CQ38: 3700 | CR38: 3700 | CS38: 3700 | CT38: 3700 | CU38: 3700 | CV38: 3700 | CW38: 3700 | CX38: 3700 | CY38: 3700

Sheet 計算用シート (hidden)
B1: 年号フラグ | C1: 今年 | D1: 前年
B2: =Nengo(償却資産入力!D1) -> 5 | C2: =償却資産入力!D1 -> 2024-01-01 | D2: =DATE(YEAR(償却資産入力!D1)-1,2,1) -> 2023-02-01
B4: 前前年以前 | C4: 前年中に減少 | D4: 前年中に増加 | E4: 計
A5: 1 | B5: =SUMIFS(償却資産入力!J$5:J$34,償却資産入力!C$5:C$34,計算用シート!A5,償却資産入力!I$5:I$34,0) -> 0 | C5: ='申告書（提出用）'!I26 -> 0 | D5: =SUMIFS(償却資産入力!J$5:J$34,償却資産入力!C$5:C$34,計算用シート!A5,償却資産入力!I$5:I$34,1) -> 0 | E5: =B5-C5+D5 -> 0
A6: 2 | B6: =SUMIFS(償却資産入力!J$5:J$34,償却資産入力!C$5:C$34,計算用シート!A6,償却資産入力!I$5:I$34,0) -> 2285000 | C6: ='申告書（提出用）'!I28 -> 0 | D6: =SUMIFS(償却資産入力!J$5:J$34,償却資産入力!C$5:C$34,計算用シート!A6,償却資産入力!I$5:I$34,1) -> 0 | E6: =B6-C6+D6 -> 2285000
A7: 3 | B7: =SUMIFS(償却資産入力!J$5:J$34,償却資産入力!C$5:C$34,計算用シート!A7,償却資産入力!I$5:I$34,0) -> 0 | C7: ='申告書（提出用）'!I30 -> 0 | D7: =SUMIFS(償却資産入力!J$5:J$34,償却資産入力!C$5:C$34,計算用シート!A7,償却資産入力!I$5:I$34,1) -> 0 | E7: 0
A8: 4 | B8: =SUMIFS(償却資産入力!J$5:J$34,償却資産入力!C$5:C$34,計算用シート!A8,償却資産入力!I$5:I$34,0) -> 0 | C8: ='申告書（提出用）'!I32 -> 0 | D8: =SUMIFS(償却資産入力!J$5:J$34,償却資産入力!C$5:C$34,計算用シート!A8,償却資産入力!I$5:I$34,1) -> 0 | E8: 0
A9: 5 | B9: =SUMIFS(償却資産入力!J$5:J$34,償却資産入力!C$5:C$34,計算用シート!A9,償却資産入力!I$5:I$34,0) -> 0 | C9: ='申告書（提出用）'!I34 -> 0 | D9: =SUMIFS(償却資産入力!J$5:J$34,償却資産入力!C$5:C$34,計算用シート!A9,償却資産入力!I$5:I$34,1) -> 0 | E9: 0
A10: 6 | B10: =SUMIFS(償却資産入力!J$5:J$34,償却資産入力!C$5:C$34,計算用シート!A10,償却資産入力!I$5:I$34,0) -> 3100000 | C10: ='申告書（提出用）'!I36 -> 0 | D10: =SUMIFS(償却資産入力!J$5:J$34,償却資産入力!C$5:C$34,計算用シート!A10,償却資産入力!I$5:I$34,1) -> 0 | E10: 3100000
B13: =償却資産入力!N4 -> 1979-01-01 | C13: =償却資産入力!O4 -> 1980-01-01 | D13: =償却資産入力!P4 -> 1981-01-01 | E13: =償却資産入力!Q4 -> 1982-01-01 | F13: =償却資産入力!R4 -> 1983-01-01 | G13: =償却資産入力!S4 -> 1984-01-01 | H13: =償却資産入力!T4 -> 1985-01-01 | I13: =償却資産入力!U4 -> 1986-01-01 | J13: =償却資産入力!V4 -> 1987-01-01 | K13: =償却資産入力!W4 -> 1988-01-01 | L13: =償却資産入力!X4 -> 1989-01-01 | M13: =償却資産入力!Y4 -> 1990-01-01 | N13: =償却資産入力!Z4 -> 1991-01-01 | O13: =償却資産入力!AA4 -> 1992-01-01 | P13: =償却資産入力!AB4 -> 1993-01-01 | Q13: =償却資産入力!AC4 -> 1994-01-01 | R13: =償却資産入力!AD4 -> 1995-01-01 | S13: =償却資産入力!AE4 -> 1996-01-01 | T13: =償却資産入力!AF4 -> 1997-01-01 | U13: =償却資産入力!AG4 -> 1998-01-01 | V13: =償却資産入力!AH4 -> 1999-01-01 | W13: =償却資産入力!AI4 -> 2000-01-01 | X13: =償却資産入力!AJ4 -> 2001-01-01 | Y13: =償却資産入力!AK4 -> 2002-01-01 | Z13: =償却資産入力!AL4 -> 2003-01-01 | AA13: =償却資産入力!AM4 -> 2004-01-01 | AB13: =償却資産入力!AN4 -> 2005-01-01 | AC13: =償却資産入力!AO4 -> 2006-01-01 | AD13: =償却資産入力!AP4 -> 2007-01-01 | AE13: =償却資産入力!AQ4 -> 2008-01-01 | AF13: =償却資産入力!AR4 -> 2009-01-01 | AG13: =償却資産入力!AS4 -> 2010-01-01 | AH13: =償却資産入力!AT4 -> 2011-01-01 | AI13: =償却資産入力!AU4 -> 2012-01-01 | AJ13: =償却資産入力!AV4 -> 2013-01-01 | AK13: =償却資産入力!AW4 -> 2014-01-01 | AL13: =償却資産入力!AX4 -> 2015-01-01 | AM13: =償却資産入力!AY4 -> 2016-01-01 | AN13: =償却資産入力!AZ4 -> 2017-01-01 | AO13: =償却資産入力!BA4 -> 2018-01-01 | AP13: =償却資産入力!BB4 -> 2019-01-01 | AQ13: =償却資産入力!BC4 -> 2020-01-01 | AR13: =償却資産入力!BD4 -> 2021-01-01 | AS13: =償却資産入力!BE4 -> 2022-01-01 | AT13: =償却資産入力!BF4 -> 2023-01-01 | AU13: =償却資産入力!BG4 -> 2024-01-01 | AV13: =償却資産入力!BH4 -> 2025-01-01 | AW13: =償却資産入力!BI4 -> 2026-01-01 | AX13: =償却資産入力!BJ4 -> 2027-01-01 | AY13: =償却資産入力!BK4 -> 2028-01-01 | AZ13: =償却資産入力!BL4 -> 2029-01-01 | BA13: =償却資産入力!BM4 -> 2030-01-01 | BB13: =償却資産入力!BN4 -> 2031-01-01 | BC13: =償却資産入力!BO4 -> 2032-01-01 | BD13: =償却資産入力!BP4 -> 2033-01-01 | BE13: =償却資産入力!BQ4 -> 2034-01-01 | BF13: =償却資産入力!BR4 -> 2035-01-01 | BG13: =償却資産入力!BS4 -> 2036-01-01 | BH13: =償却資産入力!BT4 -> 2037-01-01 | BI13: =償却資産入力!BU4 -> 2038-01-01 | BJ13: =償却資産入力!BV4 -> 2039-01-01 | BK13: =償却資産入力!BW4 -> 2040-01-01 | BL13: =償却資産入力!BX4 -> 2041-01-01 | BM13: =償却資産入力!BY4 -> 2042-01-01 | BN13: =償却資産入力!BZ4 -> 2043-01-01 | BO13: =償却資産入力!CA4 -> 2044-01-01 | BP13: =償却資産入力!CB4 -> 2045-01-01 | BQ13: =償却資産入力!CC4 -> 2046-01-01 | BR13: =償却資産入力!CD4 -> 2047-01-01 | BS13: =償却資産入力!CE4 -> 2048-01-01 | BT13: =償却資産入力!CF4 -> 2049-01-01 | BU13: =償却資産入力!CG4 -> 2050-01-01 | BV13: =償却資産入力!CH4 -> 2051-01-01 | BW13: =償却資産入力!CI4 -> 2052-01-01 | BX13: =償却資産入力!CJ4 -> 2053-01-01 | BY13: =償却資産入力!CK4 -> 2054-01-01 | BZ13: =償却資産入力!CL4 -> 2055-01-01 | CA13: =償却資産入力!CM4 -> 2056-01-01 | CB13: =償却資産入力!CN4 -> 2057-01-01 | CC13: =償却資産入力!CO4 -> 2058-01-01 | CD13: =償却資産入力!CP4 -> 2059-01-01 | CE13: =償却資産入力!CQ4 -> 2060-01-01 | CF13: =償却資産入力!CR4 -> 2061-01-01 | CG13: =償却資産入力!CS4 -> 2062-01-01 | CH13: =償却資産入力!CT4 -> 2063-01-01 | CI13: =償却資産入力!CU4 -> 2064-01-01 | CJ13: =償却資産入力!CV4 -> 2065-01-01 | CK13: =償却資産入力!CW4 -> 2066-01-01 | CL13: =償却資産入力!CX4 -> 2067-01-01 | CM13: =償却資産入力!CY4 -> 2068-01-01
A14: 1 | B14: =SUMIF(償却資産入力!$C$5:$C$34,計算用シート!$A14,償却資産入力!N$5:N$34) -> 0 | C14: =SUMIF(償却資産入力!$C$5:$C$34,計算用シート!$A14,償却資産入力!O$5:O$34) -> 0 | D14: =SUMIF(償却資産入力!$C$5:$C$34,計算用シート!$A14,償却資産入力!P$5:P$34) -> 0 | E14: =SUMIF(償却資産入力!$C$5:$C$34,計算用シート!$A14,償却資産入力!Q$5:Q$34) -> 0 | F14: =SUMIF(償却資産入力!$C$5:$C$34,計算用シート!$A14,償却資産入力!R$5:R$34) -> 0 | G14: =SUMIF(償却資産入力!$C$5:$C$34,計算用シート!$A14,償却資産入力!S$5:S$34) -> 0 | H14: =SUMIF(償却資産入力!$C$5:$C$34,計算用シート!$A14,償却資産入力!T$5:T$34) -> 0 | I14: =SUMIF(償却資産入力!$C$5:$C$34,計算用シート!$A14,償却資産入力!U$5:U$34) -> 0 | J14: =SUMIF(償却資産入力!$C$5:$C$34,計算用シート!$A14,償却資産入力!V$5:V$34) -> 0 | K14: =SUMIF(償却資産入力!$C$5:$C$34,計算用シート!$A14,償却資産入力!W$5:W$34) -> 0 | L14: =SUMIF(償却資産入力!$C$5:$C$34,計算用シート!$A14,償却資産入力!X$5:X$34) -> 0 | M14: =SUMIF(償却資産入力!$C$5:$C$34,計算用シート!$A14,償却資産入力!Y$5:Y$34) -> 0 | N14: =SUMIF(償却資産入力!$C$5:$C$34,計算用シート!$A14,償却資産入力!Z$5:Z$34) -> 0 | O14: =SUMIF(償却資産入力!$C$5:$C$34,計算用シート!$A14,償却資産入力!AA$5:AA$34) -> 0 | P14: =SUMIF(償却資産入力!$C$5:$C$34,計算用シート!$A14,償却資産入力!AB$5:AB$34) -> 0 | Q14: =SUMIF(償却資産入力!$C$5:$C$34,計算用シート!$A14,償却資産入力!AC$5:AC$34) -> 0 | R14: =SUMIF(償却資産入力!$C$5:$C$34,計算用シート!$A14,償却資産入力!AD$5:AD$34) -> 0 | S14: =SUMIF(償却資産入力!$C$5:$C$34,計算用シート!$A14,償却資産入力!AE$5:AE$34) -> 0 | T14: =SUMIF(償却資産入力!$C$5:$C$34,計算用シート!$A14,償却資産入力!AF$5:AF$34) -> 0 | U14: =SUMIF(償却資産入力!$C$5:$C$34,計算用シート!$A14,償却資産入力!AG$5:AG$34) -> 0 | V14: =SUMIF(償却資産入力!$C$5:$C$34,計算用シート!$A14,償却資産入力!AH$5:AH$34) -> 0 | W14: =SUMIF(償却資産入力!$C$5:$C$34,計算用シート!$A14,償却資産入力!AI$5:AI$34) -> 0 | X14: =SUMIF(償却資産入力!$C$5:$C$34,計算用シート!$A14,償却資産入力!AJ$5:AJ$34) -> 0 | Y14: =SUMIF(償却資産入力!$C$5:$C$34,計算用シート!$A14,償却資産入力!AK$5:AK$34) -> 0 | Z14: =SUMIF(償却資産入力!$C$5:$C$34,計算用シート!$A14,償却資産入力!AL$5:AL$34) -> 0 | AA14: =SUMIF(償却資産入力!$C$5:$C$34,計算用シート!$A14,償却資産入力!AM$5:AM$34) -> 0 | AB14: =SUMIF(償却資産入力!$C$5:$C$34,計算用シート!$A14,償却資産入力!AN$5:AN$34) -> 0 | AC14: =SUMIF(償却資産入力!$C$5:$C$34,計算用シート!$A14,償却資産入力!AO$5:AO$34) -> 0 | AD14: =SUMIF(償却資産入力!$C$5:$C$34,計算用シート!$A14,償却資産入力!AP$5:AP$34) -> 0 | AE14: =SUMIF(償却資産入力!$C$5:$C$34,計算用シート!$A14,償却資産入力!AQ$5:AQ$34) -> 0 | AF14: =SUMIF(償却資産入力!$C$5:$C$34,計算用シート!$A14,償却資産入力!AR$5:AR$34) -> 0 | AG14: =SUMIF(償却資産入力!$C$5:$C$34,計算用シート!$A14,償却資産入力!AS$5:AS$34) -> 0 | AH14: =SUMIF(償却資産入力!$C$5:$C$34,計算用シート!$A14,償却資産入力!AT$5:AT$34) -> 0 | AI14: =SUMIF(償却資産入力!$C$5:$C$34,計算用シート!$A14,償却資産入力!AU$5:AU$34) -> 0 | AJ14: =SUMIF(償却資産入力!$C$5:$C$34,計算用シート!$A14,償却資産入力!AV$5:AV$34) -> 0 | AK14: =SUMIF(償却資産入力!$C$5:$C$34,計算用シート!$A14,償却資産入力!AW$5:AW$34) -> 0 | AL14: =SUMIF(償却資産入力!$C$5:$C$34,計算用シート!$A14,償却資産入力!AX$5:AX$34) -> 0 | AM14: =SUMIF(償却資産入力!$C$5:$C$34,計算用シート!$A14,償却資産入力!AY$5:AY$34) -> 0 | AN14: =SUMIF(償却資産入力!$C$5:$C$34,計算用シート!$A14,償却資産入力!AZ$5:AZ$34) -> 0 | AO14: =SUMIF(償却資産入力!$C$5:$C$34,計算用シート!$A14,償却資産入力!BA$5:BA$34) -> 0 | AP14: =SUMIF(償却資産入力!$C$5:$C$34,計算用シート!$A14,償却資産入力!BB$5:BB$34) -> 0 | AQ14: =SUMIF(償却資産入力!$C$5:$C$34,計算用シート!$A14,償却資産入力!BC$5:BC$34) -> 0 | AR14: =SUMIF(償却資産入力!$C$5:$C$34,計算用シート!$A14,償却資産入力!BD$5:BD$34) -> 0 | AS14: =SUMIF(償却資産入力!$C$5:$C$34,計算用シート!$A14,償却資産入力!BE$5:BE$34) -> 0 | AT14: =SUMIF(償却資産入力!$C$5:$C$34,計算用シート!$A14,償却資産入力!BF$5:BF$34) -> 0 | AU14: =SUMIF(償却資産入力!$C$5:$C$34,計算用シート!$A14,償却資産入力!BG$5:BG$34) -> 0 | AV14: =SUMIF(償却資産入力!$C$5:$C$34,計算用シート!$A14,償却資産入力!BH$5:BH$34) -> 0 | AW14: =SUMIF(償却資産入力!$C$5:$C$34,計算用シート!$A14,償却資産入力!BI$5:BI$34) -> 0 | AX14: =SUMIF(償却資産入力!$C$5:$C$34,計算用シート!$A14,償却資産入力!BJ$5:BJ$34) -> 0 | AY14: =SUMIF(償却資産入力!$C$5:$C$34,計算用シート!$A14,償却資産入力!BK$5:BK$34) -> 0 | AZ14: =SUMIF(償却資産入力!$C$5:$C$34,計算用シート!$A14,償却資産入力!BL$5:BL$34) -> 0 | BA14: =SUMIF(償却資産入力!$C$5:$C$34,計算用シート!$A14,償却資産入力!BM$5:BM$34) -> 0 | BB14: =SUMIF(償却資産入力!$C$5:$C$34,計算用シート!$A14,償却資産入力!BN$5:BN$34) -> 0 | BC14: =SUMIF(償却資産入力!$C$5:$C$34,計算用シート!$A14,償却資産入力!BO$5:BO$34) -> 0 | BD14: =SUMIF(償却資産入力!$C$5:$C$34,計算用シート!$A14,償却資産入力!BP$5:BP$34) -> 0 | BE14: =SUMIF(償却資産入力!$C$5:$C$34,計算用シート!$A14,償却資産入力!BQ$5:BQ$34) -> 0 | BF14: =SUMIF(償却資産入力!$C$5:$C$34,計算用シート!$A14,償却資産入力!BR$5:BR$34) -> 0 | BG14: =SUMIF(償却資産入力!$C$5:$C$34,計算用シート!$A14,償却資産入力!BS$5:BS$34) -> 0 | BH14: =SUMIF(償却資産入力!$C$5:$C$34,計算用シート!$A14,償却資産入力!BT$5:BT$34) -> 0 | BI14: =SUMIF(償却資産入力!$C$5:$C$34,計算用シート!$A14,償却資産入力!BU$5:BU$34) -> 0 | BJ14: =SUMIF(償却資産入力!$C$5:$C$34,計算用シート!$A14,償却資産入力!BV$5:BV$34) -> 0 | BK14: =SUMIF(償却資産入力!$C$5:$C$34,計算用シート!$A14,償却資産入力!BW$5:BW$34) -> 0 | BL14: =SUMIF(償却資産入力!$C$5:$C$34,計算用シート!$A14,償却資産入力!BX$5:BX$34) -> 0 | BM14: =SUMIF(償却資産入力!$C$5:$C$34,計算用シート!$A14,償却資産入力!BY$5:BY$34) -> 0 | BN14: =SUMIF(償却資産入力!$C$5:$C$34,計算用シート!$A14,償却資産入力!BZ$5:BZ$34) -> 0 | BO14: =SUMIF(償却資産入力!$C$5:$C$34,計算用シート!$A14,償却資産入力!CA$5:CA$34) -> 0 | BP14: =SUMIF(償却資産入力!$C$5:$C$34,計算用シート!$A14,償却資産入力!CB$5:CB$34) -> 0 | BQ14: =SUMIF(償却資産入力!$C$5:$C$34,計算用シート!$A14,償却資産入力!CC$5:CC$34) -> 0 | BR14: =SUMIF(償却資産入力!$C$5:$C$34,計算用シート!$A14,償却資産入力!CD$5:CD$34) -> 0 | BS14: =SUMIF(償却資産入力!$C$5:$C$34,計算用シート!$A14,償却資産入力!CE$5:CE$34) -> 0 | BT14: =SUMIF(償却資産入力!$C$5:$C$34,計算用シート!$A14,償却資産入力!CF$5:CF$34) -> 0 | BU14: =SUMIF(償却資産入力!$C$5:$C$34,計算用シート!$A14,償却資産入力!CG$5:CG$34) -> 0 | BV14: =SUMIF(償却資産入力!$C$5:$C$34,計算用シート!$A14,償却資産入力!CH$5:CH$34) -> 0 | BW14: =SUMIF(償却資産入力!$C$5:$C$34,計算用シート!$A14,償却資産入力!CI$5:CI$34) -> 0 | BX14: =SUMIF(償却資産入力!$C$5:$C$34,計算用シート!$A14,償却資産入力!CJ$5:CJ$34) -> 0 | BY14: =SUMIF(償却資産入力!$C$5:$C$34,計算用シート!$A14,償却資産入力!CK$5:CK$34) -> 0 | BZ14: =SUMIF(償却資産入力!$C$5:$C$34,計算用シート!$A14,償却資産入力!CL$5:CL$34) -> 0 | CA14: =SUMIF(償却資産入力!$C$5:$C$34,計算用シート!$A14,償却資産入力!CM$5:CM$34) -> 0 | CB14: =SUMIF(償却資産入力!$C$5:$C$34,計算用シート!$A14,償却資産入力!CN$5:CN$34) -> 0 | CC14: =SUMIF(償却資産入力!$C$5:$C$34,計算用シート!$A14,償却資産入力!CO$5:CO$34) -> 0 | CD14: =SUMIF(償却資産入力!$C$5:$C$34,計算用シート!$A14,償却資産入力!CP$5:CP$34) -> 0 | CE14: =SUMIF(償却資産入力!$C$5:$C$34,計算用シート!$A14,償却資産入力!CQ$5:CQ$34) -> 0 | CF14: =SUMIF(償却資産入力!$C$5:$C$34,計算用シート!$A14,償却資産入力!CR$5:CR$34) -> 0 | CG14: =SUMIF(償却資産入力!$C$5:$C$34,計算用シート!$A14,償却資産入力!CS$5:CS$34) -> 0 | CH14: =SUMIF(償却資産入力!$C$5:$C$34,計算用シート!$A14,償却資産入力!CT$5:CT$34) -> 0 | CI14: =SUMIF(償却資産入力!$C$5:$C$34,計算用シート!$A14,償却資産入力!CU$5:CU$34) -> 0 | CJ14: =SUMIF(償却資産入力!$C$5:$C$34,計算用シート!$A14,償却資産入力!CV$5:CV$34) -> 0 | CK14: =SUMIF(償却資産入力!$C$5:$C$34,計算用シート!$A14,償却資産入力!CW$5:CW$34) -> 0 | CL14: =SUMIF(償却資産入力!$C$5:$C$34,計算用シート!$A14,償却資産入力!CX$5:CX$34) -> 0 | CM14: =SUMIF(償却資産入力!$C$5:$C$34,計算用シート!$A14,償却資産入力!CY$5:CY$34) -> 0
A15: 2 | B15: =SUMIF(償却資産入力!$C$5:$C$34,計算用シート!$A15,償却資産入力!N$5:N$34) -> 0 | C15: =SUMIF(償却資産入力!$C$5:$C$34,計算用シート!$A15,償却資産入力!O$5:O$34) -> 0 | D15: =SUMIF(償却資産入力!$C$5:$C$34,計算用シート!$A15,償却資産入力!P$5:P$34) -> 0 | E15: =SUMIF(償却資産入力!$C$5:$C$34,計算用シート!$A15,償却資産入力!Q$5:Q$34) -> 0 | F15: =SUMIF(償却資産入力!$C$5:$C$34,計算用シート!$A15,償却資産入力!R$5:R$34) -> 0 | G15: =SUMIF(償却資産入力!$C$5:$C$34,計算用シート!$A15,償却資産入力!S$5:S$34) -> 0 | H15: =SUMIF(償却資産入力!$C$5:$C$34,計算用シート!$A15,償却資産入力!T$5:T$34) -> 0 | I15: =SUMIF(償却資産入力!$C$5:$C$34,計算用シート!$A15,償却資産入力!U$5:U$34) -> 0 | J15: =SUMIF(償却資産入力!$C$5:$C$34,計算用シート!$A15,償却資産入力!V$5:V$34) -> 0 | K15: =SUMIF(償却資産入力!$C$5:$C$34,計算用シート!$A15,償却資産入力!W$5:W$34) -> 0 | L15: =SUMIF(償却資産入力!$C$5:$C$34,計算用シート!$A15,償却資産入力!X$5:X$34) -> 0 | M15: =SUMIF(償却資産入力!$C$5:$C$34,計算用シート!$A15,償却資産入力!Y$5:Y$34) -> 0 | N15: =SUMIF(償却資産入力!$C$5:$C$34,計算用シート!$A15,償却資産入力!Z$5:Z$34) -> 0 | O15: =SUMIF(償却資産入力!$C$5:$C$34,計算用シート!$A15,償却資産入力!AA$5:AA$34) -> 0 | P15: =SUMIF(償却資産入力!$C$5:$C$34,計算用シート!$A15,償却資産入力!AB$5:AB$34) -> 0 | Q15: =SUMIF(償却資産入力!$C$5:$C$34,計算用シート!$A15,償却資産入力!AC$5:AC$34) -> 0 | R15: =SUMIF(償却資産入力!$C$5:$C$34,計算用シート!$A15,償却資産入力!AD$5:AD$34) -> 0 | S15: =SUMIF(償却資産入力!$C$5:$C$34,計算用シート!$A15,償却資産入力!AE$5:AE$34) -> 0 | T15: =SUMIF(償却資産入力!$C$5:$C$34,計算用シート!$A15,償却資産入力!AF$5:AF$34) -> 0 | U15: =SUMIF(償却資産入力!$C$5:$C$34,計算用シート!$A15,償却資産入力!AG$5:AG$34) -> 0 | V15: =SUMIF(償却資産入力!$C$5:$C$34,計算用シート!$A15,償却資産入力!AH$5:AH$34) -> 0 | W15: =SUMIF(償却資産入力!$C$5:$C$34,計算用シート!$A15,償却資産入力!AI$5:AI$34) -> 0 | X15: =SUMIF(償却資産入力!$C$5:$C$34,計算用シート!$A15,償却資産入力!AJ$5:AJ$34) -> 0 | Y15: =SUMIF(償却資産入力!$C$5:$C$34,計算用シート!$A15,償却資産入力!AK$5:AK$34) -> 0 | Z15: =SUMIF(償却資産入力!$C$5:$C$34,計算用シート!$A15,償却資産入力!AL$5:AL$34) -> 0 | AA15: =SUMIF(償却資産入力!$C$5:$C$34,計算用シート!$A15,償却資産入力!AM$5:AM$34) -> 0 | AB15: =SUMIF(償却資産入力!$C$5:$C$34,計算用シート!$A15,償却資産入力!AN$5:AN$34) -> 0 | AC15: =SUMIF(償却資産入力!$C$5:$C$34,計算用シート!$A15,償却資産入力!AO$5:AO$34) -> 0 | AD15: =SUMIF(償却資産入力!$C$5:$C$34,計算用シート!$A15,償却資産入力!AP$5:AP$34) -> 0 | AE15: =SUMIF(償却資産入力!$C$5:$C$34,計算用シート!$A15,償却資産入力!AQ$5:AQ$34) -> 0 | AF15: =SUMIF(償却資産入力!$C$5:$C$34,計算用シート!$A15,償却資産入力!AR$5:AR$34) -> 0 | AG15: =SUMIF(償却資産入力!$C$5:$C$34,計算用シート!$A15,償却資産入力!AS$5:AS$34) -> 0 | AH15: =SUMIF(償却資産入力!$C$5:$C$34,計算用シート!$A15,償却資産入力!AT$5:AT$34) -> 0 | AI15: =SUMIF(償却資産入力!$C$5:$C$34,計算用シート!$A15,償却資産入力!AU$5:AU$34) -> 0 | AJ15: =SUMIF(償却資産入力!$C$5:$C$34,計算用シート!$A15,償却資産入力!AV$5:AV$34) -> 0 | AK15: =SUMIF(償却資産入力!$C$5:$C$34,計算用シート!$A15,償却資産入力!AW$5:AW$34) -> 0 | AL15: =SUMIF(償却資産入力!$C$5:$C$34,計算用シート!$A15,償却資産入力!AX$5:AX$34) -> 0 | AM15: =SUMIF(償却資産入力!$C$5:$C$34,計算用シート!$A15,償却資産入力!AY$5:AY$34) -> 0 | AN15: =SUMIF(償却資産入力!$C$5:$C$34,計算用シート!$A15,償却資産入力!AZ$5:AZ$34) -> 0 | AO15: =SUMIF(償却資産入力!$C$5:$C$34,計算用シート!$A15,償却資産入力!BA$5:BA$34) -> 0 | AP15: =SUMIF(償却資産入力!$C$5:$C$34,計算用シート!$A15,償却資産入力!BB$5:BB$34) -> 0 | AQ15: =SUMIF(償却資産入力!$C$5:$C$34,計算用シート!$A15,償却資産入力!BC$5:BC$34) -> 0 | AR15: =SUMIF(償却資産入力!$C$5:$C$34,計算用シート!$A15,償却資産入力!BD$5:BD$34) -> 1423300 | AS15: =SUMIF(償却資産入力!$C$5:$C$34,計算用シート!$A15,償却資産入力!BE$5:BE$34) -> 1024776 | AT15: =SUMIF(償却資産入力!$C$5:$C$34,計算用シート!$A15,償却資産入力!BF$5:BF$34) -> 1279637 | AU15: =SUMIF(償却資産入力!$C$5:$C$34,計算用シート!$A15,償却資産入力!BG$5:BG$34) -> 921337 | AV15: =SUMIF(償却資産入力!$C$5:$C$34,計算用シート!$A15,償却資産入力!BH$5:BH$34) -> 663361 | AW15: =SUMIF(償却資産入力!$C$5:$C$34,計算用シート!$A15,償却資産入力!BI$5:BI$34) -> 477617 | AX15: =SUMIF(償却資産入力!$C$5:$C$34,計算用シート!$A15,償却資産入力!BJ$5:BJ$34) -> 343882 | AY15: =SUMIF(償却資産入力!$C$5:$C$34,計算用シート!$A15,償却資産入力!BK$5:BK$34) -> 247594 | AZ15: =SUMIF(償却資産入力!$C$5:$C$34,計算用シート!$A15,償却資産入力!BL$5:BL$34) -> 178265 | BA15: =SUMIF(償却資産入力!$C$5:$C$34,計算用シート!$A15,償却資産入力!BM$5:BM$34) -> 137094 | BB15: =SUMIF(償却資産入力!$C$5:$C$34,計算用シート!$A15,償却資産入力!BN$5:BN$34) -> 121877 | BC15: =SUMIF(償却資産入力!$C$5:$C$34,計算用シート!$A15,償却資産入力!BO$5:BO$34) -> 114250 | BD15: =SUMIF(償却資産入力!$C$5:$C$34,計算用シート!$A15,償却資産入力!BP$5:BP$34) -> 114250 | BE15: =SUMIF(償却資産入力!$C$5:$C$34,計算用シート!$A15,償却資産入力!BQ$5:BQ$34) -> 114250 | BF15: =SUMIF(償却資産入力!$C$5:$C$34,計算用シート!$A15,償却資産入力!BR$5:BR$34) -> 114250 | BG15: =SUMIF(償却資産入力!$C$5:$C$34,計算用シート!$A15,償却資産入力!BS$5:BS$34) -> 114250 | BH15: =SUMIF(償却資産入力!$C$5:$C$34,計算用シート!$A15,償却資産入力!BT$5:BT$34) -> 114250 | BI15: =SUMIF(償却資産入力!$C$5:$C$34,計算用シート!$A15,償却資産入力!BU$5:BU$34) -> 114250 | BJ15: =SUMIF(償却資産入力!$C$5:$C$34,計算用シート!$A15,償却資産入力!BV$5:BV$34) -> 114250 | BK15: =SUMIF(償却資産入力!$C$5:$C$34,計算用シート!$A15,償却資産入力!BW$5:BW$34) -> 114250 | BL15: =SUMIF(償却資産入力!$C$5:$C$34,計算用シート!$A15,償却資産入力!BX$5:BX$34) -> 114250 | BM15: =SUMIF(償却資産入力!$C$5:$C$34,計算用シート!$A15,償却資産入力!BY$5:BY$34) -> 114250 | BN15: =SUMIF(償却資産入力!$C$5:$C$34,計算用シート!$A15,償却資産入力!BZ$5:BZ$34) -> 114250 | BO15: =SUMIF(償却資産入力!$C$5:$C$34,計算用シート!$A15,償却資産入力!CA$5:CA$34) -> 114250 | BP15: =SUMIF(償却資産入力!$C$5:$C$34,計算用シート!$A15,償却資産入力!CB$5:CB$34) -> 114250 | BQ15: =SUMIF(償却資産入力!$C$5:$C$34,計算用シート!$A15,償却資産入力!CC$5:CC$34) -> 114250 | BR15: =SUMIF(償却資産入力!$C$5:$C$34,計算用シート!$A15,償却資産入力!CD$5:CD$34) -> 114250 | BS15: =SUMIF(償却資産入力!$C$5:$C$34,計算用シート!$A15,償却資産入力!CE$5:CE$34) -> 114250 | BT15: =SUMIF(償却資産入力!$C$5:$C$34,計算用シート!$A15,償却資産入力!CF$5:CF$34) -> 114250 | BU15: =SUMIF(償却資産入力!$C$5:$C$34,計算用シート!$A15,償却資産入力!CG$5:CG$34) -> 114250 | BV15: =SUMIF(償却資産入力!$C$5:$C$34,計算用シート!$A15,償却資産入力!CH$5:CH$34) -> 114250 | BW15: =SUMIF(償却資産入力!$C$5:$C$34,計算用シート!$A15,償却資産入力!CI$5:CI$34) -> 114250 | BX15: =SUMIF(償却資産入力!$C$5:$C$34,計算用シート!$A15,償却資産入力!CJ$5:CJ$34) -> 114250 | BY15: =SUMIF(償却資産入力!$C$5:$C$34,計算用シート!$A15,償却資産入力!CK$5:CK$34) -> 114250 | BZ15: =SUMIF(償却資産入力!$C$5:$C$34,計算用シート!$A15,償却資産入力!CL$5:CL$34) -> 114250 | CA15: =SUMIF(償却資産入力!$C$5:$C$34,計算用シート!$A15,償却資産入力!CM$5:CM$34) -> 114250 | CB15: =SUMIF(償却資産入力!$C$5:$C$34,計算用シート!$A15,償却資産入力!CN$5:CN$34) -> 114250 | CC15: =SUMIF(償却資産入力!$C$5:$C$34,計算用シート!$A15,償却資産入力!CO$5:CO$34) -> 114250 | CD15: =SUMIF(償却資産入力!$C$5:$C$34,計算用シート!$A15,償却資産入力!CP$5:CP$34) -> 114250 | CE15: =SUMIF(償却資産入力!$C$5:$C$34,計算用シート!$A15,償却資産入力!CQ$5:CQ$34) -> 114250 | CF15: =SUMIF(償却資産入力!$C$5:$C$34,計算用シート!$A15,償却資産入力!CR$5:CR$34) -> 114250 | CG15: =SUMIF(償却資産入力!$C$5:$C$34,計算用シート!$A15,償却資産入力!CS$5:CS$34) -> 114250 | CH15: =SUMIF(償却資産入力!$C$5:$C$34,計算用シート!$A15,償却資産入力!CT$5:CT$34) -> 114250 | CI15: =SUMIF(償却資産入力!$C$5:$C$34,計算用シート!$A15,償却資産入力!CU$5:CU$34) -> 114250 | CJ15: =SUMIF(償却資産入力!$C$5:$C$34,計算用シート!$A15,償却資産入力!CV$5:CV$34) -> 114250 | CK15: =SUMIF(償却資産入力!$C$5:$C$34,計算用シート!$A15,償却資産入力!CW$5:CW$34) -> 114250 | CL15: =SUMIF(償却資産入力!$C$5:$C$34,計算用シート!$A15,償却資産入力!CX$5:CX$34) -> 114250 | CM15: =SUMIF(償却資産入力!$C$5:$C$34,計算用シート!$A15,償却資産入力!CY$5:CY$34) -> 114250
A16: 3 | B16: =SUMIF(償却資産入力!$C$5:$C$34,計算用シート!$A16,償却資産入力!N$5:N$34) -> 0 | C16: =SUMIF(償却資産入力!$C$5:$C$34,計算用シート!$A16,償却資産入力!O$5:O$34) -> 0 | D16: =SUMIF(償却資産入力!$C$5:$C$34,計算用シート!$A16,償却資産入力!P$5:P$34) -> 0 | E16: =SUMIF(償却資産入力!$C$5:$C$34,計算用シート!$A16,償却資産入力!Q$5:Q$34) -> 0 | F16: =SUMIF(償却資産入力!$C$5:$C$34,計算用シート!$A16,償却資産入力!R$5:R$34) -> 0 | G16: =SUMIF(償却資産入力!$C$5:$C$34,計算用シート!$A16,償却資産入力!S$5:S$34) -> 0 | H16: =SUMIF(償却資産入力!$C$5:$C$34,計算用シート!$A16,償却資産入力!T$5:T$34) -> 0 | I16: =SUMIF(償却資産入力!$C$5:$C$34,計算用シート!$A16,償却資産入力!U$5:U$34) -> 0 | J16: =SUMIF(償却資産入力!$C$5:$C$34,計算用シート!$A16,償却資産入力!V$5:V$34) -> 0 | K16: =SUMIF(償却資産入力!$C$5:$C$34,計算用シート!$A16,償却資産入力!W$5:W$34) -> 0 | L16: =SUMIF(償却資産入力!$C$5:$C$34,計算用シート!$A16,償却資産入力!X$5:X$34) -> 0 | M16: =SUMIF(償却資産入力!$C$5:$C$34,計算用シート!$A16,償却資産入力!Y$5:Y$34) -> 0 | N16: =SUMIF(償却資産入力!$C$5:$C$34,計算用シート!$A16,償却資産入力!Z$5:Z$34) -> 0 | O16: =SUMIF(償却資産入力!$C$5:$C$34,計算用シート!$A16,償却資産入力!AA$5:AA$34) -> 0 | P16: =SUMIF(償却資産入力!$C$5:$C$34,計算用シート!$A16,償却資産入力!AB$5:AB$34) -> 0 | Q16: =SUMIF(償却資産入力!$C$5:$C$34,計算用シート!$A16,償却資産入力!AC$5:AC$34) -> 0 | R16: =SUMIF(償却資産入力!$C$5:$C$34,計算用シート!$A16,償却資産入力!AD$5:AD$34) -> 0 | S16: =SUMIF(償却資産入力!$C$5:$C$34,計算用シート!$A16,償却資産入力!AE$5:AE$34) -> 0 | T16: =SUMIF(償却資産入力!$C$5:$C$34,計算用シート!$A16,償却資産入力!AF$5:AF$34) -> 0 | U16: =SUMIF(償却資産入力!$C$5:$C$34,計算用シート!$A16,償却資産入力!AG$5:AG$34) -> 0 | V16: =SUMIF(償却資産入力!$C$5:$C$34,計算用シート!$A16,償却資産入力!AH$5:AH$34) -> 0 | W16: =SUMIF(償却資産入力!$C$5:$C$34,計算用シート!$A16,償却資産入力!AI$5:AI$34) -> 0 | X16: =SUMIF(償却資産入力!$C$5:$C$34,計算用シート!$A16,償却資産入力!AJ$5:AJ$34) -> 0 | Y16: =SUMIF(償却資産入力!$C$5:$C$34,計算用シート!$A16,償却資産入力!AK$5:AK$34) -> 0 | Z16: =SUMIF(償却資産入力!$C$5:$C$34,計算用シート!$A16,償却資産入力!AL$5:AL$34) -> 0 | AA16: =SUMIF(償却資産入力!$C$5:$C$34,計算用シート!$A16,償却資産入力!AM$5:AM$34) -> 0 | AB16: =SUMIF(償却資産入力!$C$5:$C$34,計算用シート!$A16,償却資産入力!AN$5:AN$34) -> 0 | AC16: =SUMIF(償却資産入力!$C$5:$C$34,計算用シート!$A16,償却資産入力!AO$5:AO$34) -> 0 | AD16: =SUMIF(償却資産入力!$C$5:$C$34,計算用シート!$A16,償却資産入力!AP$5:AP$34) -> 0 | AE16: =SUMIF(償却資産入力!$C$5:$C$34,計算用シート!$A16,償却資産入力!AQ$5:AQ$34) -> 0 | AF16: =SUMIF(償却資産入力!$C$5:$C$34,計算用シート!$A16,償却資産入力!AR$5:AR$34) -> 0 | AG16: =SUMIF(償却資産入力!$C$5:$C$34,計算用シート!$A16,償却資産入力!AS$5:AS$34) -> 0 | AH16: =SUMIF(償却資産入力!$C$5:$C$34,計算用シート!$A16,償却資産入力!AT$5:AT$34) -> 0 | AI16: =SUMIF(償却資産入力!$C$5:$C$34,計算用シート!$A16,償却資産入力!AU$5:AU$34) -> 0 | AJ16: =SUMIF(償却資産入力!$C$5:$C$34,計算用シート!$A16,償却資産入力!AV$5:AV$34) -> 0 | AK16: =SUMIF(償却資産入力!$C$5:$C$34,計算用シート!$A16,償却資産入力!AW$5:AW$34) -> 0 | AL16: =SUMIF(償却資産入力!$C$5:$C$34,計算用シート!$A16,償却資産入力!AX$5:AX$34) -> 0 | AM16: =SUMIF(償却資産入力!$C$5:$C$34,計算用シート!$A16,償却資産入力!AY$5:AY$34) -> 0 | AN16: =SUMIF(償却資産入力!$C$5:$C$34,計算用シート!$A16,償却資産入力!AZ$5:AZ$34) -> 0 | AO16: =SUMIF(償却資産入力!$C$5:$C$34,計算用シート!$A16,償却資産入力!BA$5:BA$34) -> 0 | AP16: =SUMIF(償却資産入力!$C$5:$C$34,計算用シート!$A16,償却資産入力!BB$5:BB$34) -> 0 | AQ16: =SUMIF(償却資産入力!$C$5:$C$34,計算用シート!$A16,償却資産入力!BC$5:BC$34) -> 0 | AR16: =SUMIF(償却資産入力!$C$5:$C$34,計算用シート!$A16,償却資産入力!BD$5:BD$34) -> 0 | AS16: =SUMIF(償却資産入力!$C$5:$C$34,計算用シート!$A16,償却資産入力!BE$5:BE$34) -> 0 | AT16: =SUMIF(償却資産入力!$C$5:$C$34,計算用シート!$A16,償却資産入力!BF$5:BF$34) -> 0 | AU16: =SUMIF(償却資産入力!$C$5:$C$34,計算用シート!$A16,償却資産入力!BG$5:BG$34) -> 0 | AV16: =SUMIF(償却資産入力!$C$5:$C$34,計算用シート!$A16,償却資産入力!BH$5:BH$34) -> 0 | AW16: =SUMIF(償却資産入力!$C$5:$C$34,計算用シート!$A16,償却資産入力!BI$5:BI$34) -> 0 | AX16: =SUMIF(償却資産入力!$C$5:$C$34,計算用シート!$A16,償却資産入力!BJ$5:BJ$34) -> 0 | AY16: =SUMIF(償却資産入力!$C$5:$C$34,計算用シート!$A16,償却資産入力!BK$5:BK$34) -> 0 | AZ16: =SUMIF(償却資産入力!$C$5:$C$34,計算用シート!$A16,償却資産入力!BL$5:BL$34) -> 0 | BA16: =SUMIF(償却資産入力!$C$5:$C$34,計算用シート!$A16,償却資産入力!BM$5:BM$34) -> 0 | BB16: =SUMIF(償却資産入力!$C$5:$C$34,計算用シート!$A16,償却資産入力!BN$5:BN$34) -> 0 | BC16: =SUMIF(償却資産入力!$C$5:$C$34,計算用シート!$A16,償却資産入力!BO$5:BO$34) -> 0 | BD16: =SUMIF(償却資産入力!$C$5:$C$34,計算用シート!$A16,償却資産入力!BP$5:BP$34) -> 0 | BE16: =SUMIF(償却資産入力!$C$5:$C$34,計算用シート!$A16,償却資産入力!BQ$5:BQ$34) -> 0 | BF16: =SUMIF(償却資産入力!$C$5:$C$34,計算用シート!$A16,償却資産入力!BR$5:BR$34) -> 0 | BG16: =SUMIF(償却資産入力!$C$5:$C$34,計算用シート!$A16,償却資産入力!BS$5:BS$34) -> 0 | BH16: =SUMIF(償却資産入力!$C$5:$C$34,計算用シート!$A16,償却資産入力!BT$5:BT$34) -> 0 | BI16: =SUMIF(償却資産入力!$C$5:$C$34,計算用シート!$A16,償却資産入力!BU$5:BU$34) -> 0 | BJ16: =SUMIF(償却資産入力!$C$5:$C$34,計算用シート!$A16,償却資産入力!BV$5:BV$34) -> 0 | BK16: =SUMIF(償却資産入力!$C$5:$C$34,計算用シート!$A16,償却資産入力!BW$5:BW$34) -> 0 | BL16: =SUMIF(償却資産入力!$C$5:$C$34,計算用シート!$A16,償却資産入力!BX$5:BX$34) -> 0 | BM16: =SUMIF(償却資産入力!$C$5:$C$34,計算用シート!$A16,償却資産入力!BY$5:BY$34) -> 0 | BN16: =SUMIF(償却資産入力!$C$5:$C$34,計算用シート!$A16,償却資産入力!BZ$5:BZ$34) -> 0 | BO16: =SUMIF(償却資産入力!$C$5:$C$34,計算用シート!$A16,償却資産入力!CA$5:CA$34) -> 0 | BP16: =SUMIF(償却資産入力!$C$5:$C$34,計算用シート!$A16,償却資産入力!CB$5:CB$34) -> 0 | BQ16: =SUMIF(償却資産入力!$C$5:$C$34,計算用シート!$A16,償却資産入力!CC$5:CC$34) -> 0 | BR16: =SUMIF(償却資産入力!$C$5:$C$34,計算用シート!$A16,償却資産入力!CD$5:CD$34) -> 0 | BS16: =SUMIF(償却資産入力!$C$5:$C$34,計算用シート!$A16,償却資産入力!CE$5:CE$34) -> 0 | BT16: =SUMIF(償却資産入力!$C$5:$C$34,計算用シート!$A16,償却資産入力!CF$5:CF$34) -> 0 | BU16: =SUMIF(償却資産入力!$C$5:$C$34,計算用シート!$A16,償却資産入力!CG$5:CG$34) -> 0 | BV16: =SUMIF(償却資産入力!$C$5:$C$34,計算用シート!$A16,償却資産入力!CH$5:CH$34) -> 0 | BW16: =SUMIF(償却資産入力!$C$5:$C$34,計算用シート!$A16,償却資産入力!CI$5:CI$34) -> 0 | BX16: =SUMIF(償却資産入力!$C$5:$C$34,計算用シート!$A16,償却資産入力!CJ$5:CJ$34) -> 0 | BY16: =SUMIF(償却資産入力!$C$5:$C$34,計算用シート!$A16,償却資産入力!CK$5:CK$34) -> 0 | BZ16: =SUMIF(償却資産入力!$C$5:$C$34,計算用シート!$A16,償却資産入力!CL$5:CL$34) -> 0 | CA16: =SUMIF(償却資産入力!$C$5:$C$34,計算用シート!$A16,償却資産入力!CM$5:CM$34) -> 0 | CB16: =SUMIF(償却資産入力!$C$5:$C$34,計算用シート!$A16,償却資産入力!CN$5:CN$34) -> 0 | CC16: =SUMIF(償却資産入力!$C$5:$C$34,計算用シート!$A16,償却資産入力!CO$5:CO$34) -> 0 | CD16: =SUMIF(償却資産入力!$C$5:$C$34,計算用シート!$A16,償却資産入力!CP$5:CP$34) -> 0 | CE16: =SUMIF(償却資産入力!$C$5:$C$34,計算用シート!$A16,償却資産入力!CQ$5:CQ$34) -> 0 | CF16: =SUMIF(償却資産入力!$C$5:$C$34,計算用シート!$A16,償却資産入力!CR$5:CR$34) -> 0 | CG16: =SUMIF(償却資産入力!$C$5:$C$34,計算用シート!$A16,償却資産入力!CS$5:CS$34) -> 0 | CH16: =SUMIF(償却資産入力!$C$5:$C$34,計算用シート!$A16,償却資産入力!CT$5:CT$34) -> 0 | CI16: =SUMIF(償却資産入力!$C$5:$C$34,計算用シート!$A16,償却資産入力!CU$5:CU$34) -> 0 | CJ16: =SUMIF(償却資産入力!$C$5:$C$34,計算用シート!$A16,償却資産入力!CV$5:CV$34) -> 0 | CK16: =SUMIF(償却資産入力!$C$5:$C$34,計算用シート!$A16,償却資産入力!CW$5:CW$34) -> 0 | CL16: =SUMIF(償却資産入力!$C$5:$C$34,計算用シート!$A16,償却資産入力!CX$5:CX$34) -> 0 | CM16: =SUMIF(償却資産入力!$C$5:$C$34,計算用シート!$A16,償却資産入力!CY$5:CY$34) -> 0
A17: 4 | B17: =SUMIF(償却資産入力!$C$5:$C$34,計算用シート!$A17,償却資産入力!N$5:N$34) -> 0 | C17: =SUMIF(償却資産入力!$C$5:$C$34,計算用シート!$A17,償却資産入力!O$5:O$34) -> 0 | D17: =SUMIF(償却資産入力!$C$5:$C$34,計算用シート!$A17,償却資産入力!P$5:P$34) -> 0 | E17: =SUMIF(償却資産入力!$C$5:$C$34,計算用シート!$A17,償却資産入力!Q$5:Q$34) -> 0 | F17: =SUMIF(償却資産入力!$C$5:$C$34,計算用シート!$A17,償却資産入力!R$5:R$34) -> 0 | G17: =SUMIF(償却資産入力!$C$5:$C$34,計算用シート!$A17,償却資産入力!S$5:S$34) -> 0 | H17: =SUMIF(償却資産入力!$C$5:$C$34,計算用シート!$A17,償却資産入力!T$5:T$34) -> 0 | I17: =SUMIF(償却資産入力!$C$5:$C$34,計算用シート!$A17,償却資産入力!U$5:U$34) -> 0 | J17: =SUMIF(償却資産入力!$C$5:$C$34,計算用シート!$A17,償却資産入力!V$5:V$34) -> 0 | K17: =SUMIF(償却資産入力!$C$5:$C$34,計算用シート!$A17,償却資産入力!W$5:W$34) -> 0 | L17: =SUMIF(償却資産入力!$C$5:$C$34,計算用シート!$A17,償却資産入力!X$5:X$34) -> 0 | M17: =SUMIF(償却資産入力!$C$5:$C$34,計算用シート!$A17,償却資産入力!Y$5:Y$34) -> 0 | N17: =SUMIF(償却資産入力!$C$5:$C$34,計算用シート!$A17,償却資産入力!Z$5:Z$34) -> 0 | O17: =SUMIF(償却資産入力!$C$5:$C$34,計算用シート!$A17,償却資産入力!AA$5:AA$34) -> 0 | P17: =SUMIF(償却資産入力!$C$5:$C$34,計算用シート!$A17,償却資産入力!AB$5:AB$34) -> 0 | Q17: =SUMIF(償却資産入力!$C$5:$C$34,計算用シート!$A17,償却資産入力!AC$5:AC$34) -> 0 | R17: =SUMIF(償却資産入力!$C$5:$C$34,計算用シート!$A17,償却資産入力!AD$5:AD$34) -> 0 | S17: =SUMIF(償却資産入力!$C$5:$C$34,計算用シート!$A17,償却資産入力!AE$5:AE$34) -> 0 | T17: =SUMIF(償却資産入力!$C$5:$C$34,計算用シート!$A17,償却資産入力!AF$5:AF$34) -> 0 | U17: =SUMIF(償却資産入力!$C$5:$C$34,計算用シート!$A17,償却資産入力!AG$5:AG$34) -> 0 | V17: =SUMIF(償却資産入力!$C$5:$C$34,計算用シート!$A17,償却資産入力!AH$5:AH$34) -> 0 | W17: =SUMIF(償却資産入力!$C$5:$C$34,計算用シート!$A17,償却資産入力!AI$5:AI$34) -> 0 | X17: =SUMIF(償却資産入力!$C$5:$C$34,計算用シート!$A17,償却資産入力!AJ$5:AJ$34) -> 0 | Y17: =SUMIF(償却資産入力!$C$5:$C$34,計算用シート!$A17,償却資産入力!AK$5:AK$34) -> 0 | Z17: =SUMIF(償却資産入力!$C$5:$C$34,計算用シート!$A17,償却資産入力!AL$5:AL$34) -> 0 | AA17: =SUMIF(償却資産入力!$C$5:$C$34,計算用シート!$A17,償却資産入力!AM$5:AM$34) -> 0 | AB17: =SUMIF(償却資産入力!$C$5:$C$34,計算用シート!$A17,償却資産入力!AN$5:AN$34) -> 0 | AC17: =SUMIF(償却資産入力!$C$5:$C$34,計算用シート!$A17,償却資産入力!AO$5:AO$34) -> 0 | AD17: =SUMIF(償却資産入力!$C$5:$C$34,計算用シート!$A17,償却資産入力!AP$5:AP$34) -> 0 | AE17: =SUMIF(償却資産入力!$C$5:$C$34,計算用シート!$A17,償却資産入力!AQ$5:AQ$34) -> 0 | AF17: =SUMIF(償却資産入力!$C$5:$C$34,計算用シート!$A17,償却資産入力!AR$5:AR$34) -> 0 | AG17: =SUMIF(償却資産入力!$C$5:$C$34,計算用シート!$A17,償却資産入力!AS$5:AS$34) -> 0 | AH17: =SUMIF(償却資産入力!$C$5:$C$34,計算用シート!$A17,償却資産入力!AT$5:AT$34) -> 0 | AI17: =SUMIF(償却資産入力!$C$5:$C$34,計算用シート!$A17,償却資産入力!AU$5:AU$34) -> 0 | AJ17: =SUMIF(償却資産入力!$C$5:$C$34,計算用シート!$A17,償却資産入力!AV$5:AV$34) -> 0 | AK17: =SUMIF(償却資産入力!$C$5:$C$34,計算用シート!$A17,償却資産入力!AW$5:AW$34) -> 0 | AL17: =SUMIF(償却資産入力!$C$5:$C$34,計算用シート!$A17,償却資産入力!AX$5:AX$34) -> 0 | AM17: =SUMIF(償却資産入力!$C$5:$C$34,計算用シート!$A17,償却資産入力!AY$5:AY$34) -> 0 | AN17: =SUMIF(償却資産入力!$C$5:$C$34,計算用シート!$A17,償却資産入力!AZ$5:AZ$34) -> 0 | AO17: =SUMIF(償却資産入力!$C$5:$C$34,計算用シート!$A17,償却資産入力!BA$5:BA$34) -> 0 | AP17: =SUMIF(償却資産入力!$C$5:$C$34,計算用シート!$A17,償却資産入力!BB$5:BB$34) -> 0 | AQ17: =SUMIF(償却資産入力!$C$5:$C$34,計算用シート!$A17,償却資産入力!BC$5:BC$34) -> 0 | AR17: =SUMIF(償却資産入力!$C$5:$C$34,計算用シート!$A17,償却資産入力!BD$5:BD$34) -> 0 | AS17: =SUMIF(償却資産入力!$C$5:$C$34,計算用シート!$A17,償却資産入力!BE$5:BE$34) -> 0 | AT17: =SUMIF(償却資産入力!$C$5:$C$34,計算用シート!$A17,償却資産入力!BF$5:BF$34) -> 0 | AU17: =SUMIF(償却資産入力!$C$5:$C$34,計算用シート!$A17,償却資産入力!BG$5:BG$34) -> 0 | AV17: =SUMIF(償却資産入力!$C$5:$C$34,計算用シート!$A17,償却資産入力!BH$5:BH$34) -> 0 | AW17: =SUMIF(償却資産入力!$C$5:$C$34,計算用シート!$A17,償却資産入力!BI$5:BI$34) -> 0 | AX17: =SUMIF(償却資産入力!$C$5:$C$34,計算用シート!$A17,償却資産入力!BJ$5:BJ$34) -> 0 | AY17: =SUMIF(償却資産入力!$C$5:$C$34,計算用シート!$A17,償却資産入力!BK$5:BK$34) -> 0 | AZ17: =SUMIF(償却資産入力!$C$5:$C$34,計算用シート!$A17,償却資産入力!BL$5:BL$34) -> 0 | BA17: =SUMIF(償却資産入力!$C$5:$C$34,計算用シート!$A17,償却資産入力!BM$5:BM$34) -> 0 | BB17: =SUMIF(償却資産入力!$C$5:$C$34,計算用シート!$A17,償却資産入力!BN$5:BN$34) -> 0 | BC17: =SUMIF(償却資産入力!$C$5:$C$34,計算用シート!$A17,償却資産入力!BO$5:BO$34) -> 0 | BD17: =SUMIF(償却資産入力!$C$5:$C$34,計算用シート!$A17,償却資産入力!BP$5:BP$34) -> 0 | BE17: =SUMIF(償却資産入力!$C$5:$C$34,計算用シート!$A17,償却資産入力!BQ$5:BQ$34) -> 0 | BF17: =SUMIF(償却資産入力!$C$5:$C$34,計算用シート!$A17,償却資産入力!BR$5:BR$34) -> 0 | BG17: =SUMIF(償却資産入力!$C$5:$C$34,計算用シート!$A17,償却資産入力!BS$5:BS$34) -> 0 | BH17: =SUMIF(償却資産入力!$C$5:$C$34,計算用シート!$A17,償却資産入力!BT$5:BT$34) -> 0 | BI17: =SUMIF(償却資産入力!$C$5:$C$34,計算用シート!$A17,償却資産入力!BU$5:BU$34) -> 0 | BJ17: =SUMIF(償却資産入力!$C$5:$C$34,計算用シート!$A17,償却資産入力!BV$5:BV$34) -> 0 | BK17: =SUMIF(償却資産入力!$C$5:$C$34,計算用シート!$A17,償却資産入力!BW$5:BW$34) -> 0 | BL17: =SUMIF(償却資産入力!$C$5:$C$34,計算用シート!$A17,償却資産入力!BX$5:BX$34) -> 0 | BM17: =SUMIF(償却資産入力!$C$5:$C$34,計算用シート!$A17,償却資産入力!BY$5:BY$34) -> 0 | BN17: =SUMIF(償却資産入力!$C$5:$C$34,計算用シート!$A17,償却資産入力!BZ$5:BZ$34) -> 0 | BO17: =SUMIF(償却資産入力!$C$5:$C$34,計算用シート!$A17,償却資産入力!CA$5:CA$34) -> 0 | BP17: =SUMIF(償却資産入力!$C$5:$C$34,計算用シート!$A17,償却資産入力!CB$5:CB$34) -> 0 | BQ17: =SUMIF(償却資産入力!$C$5:$C$34,計算用シート!$A17,償却資産入力!CC$5:CC$34) -> 0 | BR17: =SUMIF(償却資産入力!$C$5:$C$34,計算用シート!$A17,償却資産入力!CD$5:CD$34) -> 0 | BS17: =SUMIF(償却資産入力!$C$5:$C$34,計算用シート!$A17,償却資産入力!CE$5:CE$34) -> 0 | BT17: =SUMIF(償却資産入力!$C$5:$C$34,計算用シート!$A17,償却資産入力!CF$5:CF$34) -> 0 | BU17: =SUMIF(償却資産入力!$C$5:$C$34,計算用シート!$A17,償却資産入力!CG$5:CG$34) -> 0 | BV17: =SUMIF(償却資産入力!$C$5:$C$34,計算用シート!$A17,償却資産入力!CH$5:CH$34) -> 0 | BW17: =SUMIF(償却資産入力!$C$5:$C$34,計算用シート!$A17,償却資産入力!CI$5:CI$34) -> 0 | BX17: =SUMIF(償却資産入力!$C$5:$C$34,計算用シート!$A17,償却資産入力!CJ$5:CJ$34) -> 0 | BY17: =SUMIF(償却資産入力!$C$5:$C$34,計算用シート!$A17,償却資産入力!CK$5:CK$34) -> 0 | BZ17: =SUMIF(償却資産入力!$C$5:$C$34,計算用シート!$A17,償却資産入力!CL$5:CL$34) -> 0 | CA17: =SUMIF(償却資産入力!$C$5:$C$34,計算用シート!$A17,償却資産入力!CM$5:CM$34) -> 0 | CB17: =SUMIF(償却資産入力!$C$5:$C$34,計算用シート!$A17,償却資産入力!CN$5:CN$34) -> 0 | CC17: =SUMIF(償却資産入力!$C$5:$C$34,計算用シート!$A17,償却資産入力!CO$5:CO$34) -> 0 | CD17: =SUMIF(償却資産入力!$C$5:$C$34,計算用シート!$A17,償却資産入力!CP$5:CP$34) -> 0 | CE17: =SUMIF(償却資産入力!$C$5:$C$34,計算用シート!$A17,償却資産入力!CQ$5:CQ$34) -> 0 | CF17: =SUMIF(償却資産入力!$C$5:$C$34,計算用シート!$A17,償却資産入力!CR$5:CR$34) -> 0 | CG17: =SUMIF(償却資産入力!$C$5:$C$34,計算用シート!$A17,償却資産入力!CS$5:CS$34) -> 0 | CH17: =SUMIF(償却資産入力!$C$5:$C$34,計算用シート!$A17,償却資産入力!CT$5:CT$34) -> 0 | CI17: =SUMIF(償却資産入力!$C$5:$C$34,計算用シート!$A17,償却資産入力!CU$5:CU$34) -> 0 | CJ17: =SUMIF(償却資産入力!$C$5:$C$34,計算用シート!$A17,償却資産入力!CV$5:CV$34) -> 0 | CK17: =SUMIF(償却資産入力!$C$5:$C$34,計算用シート!$A17,償却資産入力!CW$5:CW$34) -> 0 | CL17: =SUMIF(償却資産入力!$C$5:$C$34,計算用シート!$A17,償却資産入力!CX$5:CX$34) -> 0 | CM17: =SUMIF(償却資産入力!$C$5:$C$34,計算用シート!$A17,償却資産入力!CY$5:CY$34) -> 0
A18: 5 | B18: =SUMIF(償却資産入力!$C$5:$C$34,計算用シート!$A18,償却資産入力!N$5:N$34) -> 0 | C18: =SUMIF(償却資産入力!$C$5:$C$34,計算用シート!$A18,償却資産入力!O$5:O$34) -> 0 | D18: =SUMIF(償却資産入力!$C$5:$C$34,計算用シート!$A18,償却資産入力!P$5:P$34) -> 0 | E18: =SUMIF(償却資産入力!$C$5:$C$34,計算用シート!$A18,償却資産入力!Q$5:Q$34) -> 0 | F18: =SUMIF(償却資産入力!$C$5:$C$34,計算用シート!$A18,償却資産入力!R$5:R$34) -> 0 | G18: =SUMIF(償却資産入力!$C$5:$C$34,計算用シート!$A18,償却資産入力!S$5:S$34) -> 0 | H18: =SUMIF(償却資産入力!$C$5:$C$34,計算用シート!$A18,償却資産入力!T$5:T$34) -> 0 | I18: =SUMIF(償却資産入力!$C$5:$C$34,計算用シート!$A18,償却資産入力!U$5:U$34) -> 0 | J18: =SUMIF(償却資産入力!$C$5:$C$34,計算用シート!$A18,償却資産入力!V$5:V$34) -> 0 | K18: =SUMIF(償却資産入力!$C$5:$C$34,計算用シート!$A18,償却資産入力!W$5:W$34) -> 0 | L18: =SUMIF(償却資産入力!$C$5:$C$34,計算用シート!$A18,償却資産入力!X$5:X$34) -> 0 | M18: =SUMIF(償却資産入力!$C$5:$C$34,計算用シート!$A18,償却資産入力!Y$5:Y$34) -> 0 | N18: =SUMIF(償却資産入力!$C$5:$C$34,計算用シート!$A18,償却資産入力!Z$5:Z$34) -> 0 | O18: =SUMIF(償却資産入力!$C$5:$C$34,計算用シート!$A18,償却資産入力!AA$5:AA$34) -> 0 | P18: =SUMIF(償却資産入力!$C$5:$C$34,計算用シート!$A18,償却資産入力!AB$5:AB$34) -> 0 | Q18: =SUMIF(償却資産入力!$C$5:$C$34,計算用シート!$A18,償却資産入力!AC$5:AC$34) -> 0 | R18: =SUMIF(償却資産入力!$C$5:$C$34,計算用シート!$A18,償却資産入力!AD$5:AD$34) -> 0 | S18: =SUMIF(償却資産入力!$C$5:$C$34,計算用シート!$A18,償却資産入力!AE$5:AE$34) -> 0 | T18: =SUMIF(償却資産入力!$C$5:$C$34,計算用シート!$A18,償却資産入力!AF$5:AF$34) -> 0 | U18: =SUMIF(償却資産入力!$C$5:$C$34,計算用シート!$A18,償却資産入力!AG$5:AG$34) -> 0 | V18: =SUMIF(償却資産入力!$C$5:$C$34,計算用シート!$A18,償却資産入力!AH$5:AH$34) -> 0 | W18: =SUMIF(償却資産入力!$C$5:$C$34,計算用シート!$A18,償却資産入力!AI$5:AI$34) -> 0 | X18: =SUMIF(償却資産入力!$C$5:$C$34,計算用シート!$A18,償却資産入力!AJ$5:AJ$34) -> 0 | Y18: =SUMIF(償却資産入力!$C$5:$C$34,計算用シート!$A18,償却資産入力!AK$5:AK$34) -> 0 | Z18: =SUMIF(償却資産入力!$C$5:$C$34,計算用シート!$A18,償却資産入力!AL$5:AL$34) -> 0 | AA18: =SUMIF(償却資産入力!$C$5:$C$34,計算用シート!$A18,償却資産入力!AM$5:AM$34) -> 0 | AB18: =SUMIF(償却資産入力!$C$5:$C$34,計算用シート!$A18,償却資産入力!AN$5:AN$34) -> 0 | AC18: =SUMIF(償却資産入力!$C$5:$C$34,計算用シート!$A18,償却資産入力!AO$5:AO$34) -> 0 | AD18: =SUMIF(償却資産入力!$C$5:$C$34,計算用シート!$A18,償却資産入力!AP$5:AP$34) -> 0 | AE18: =SUMIF(償却資産入力!$C$5:$C$34,計算用シート!$A18,償却資産入力!AQ$5:AQ$34) -> 0 | AF18: =SUMIF(償却資産入力!$C$5:$C$34,計算用シート!$A18,償却資産入力!AR$5:AR$34) -> 0 | AG18: =SUMIF(償却資産入力!$C$5:$C$34,計算用シート!$A18,償却資産入力!AS$5:AS$34) -> 0 | AH18: =SUMIF(償却資産入力!$C$5:$C$34,計算用シート!$A18,償却資産入力!AT$5:AT$34) -> 0 | AI18: =SUMIF(償却資産入力!$C$5:$C$34,計算用シート!$A18,償却資産入力!AU$5:AU$34) -> 0 | AJ18: =SUMIF(償却資産入力!$C$5:$C$34,計算用シート!$A18,償却資産入力!AV$5:AV$34) -> 0 | AK18: =SUMIF(償却資産入力!$C$5:$C$34,計算用シート!$A18,償却資産入力!AW$5:AW$34) -> 0 | AL18: =SUMIF(償却資産入力!$C$5:$C$34,計算用シート!$A18,償却資産入力!AX$5:AX$34) -> 0 | AM18: =SUMIF(償却資産入力!$C$5:$C$34,計算用シート!$A18,償却資産入力!AY$5:AY$34) -> 0 | AN18: =SUMIF(償却資産入力!$C$5:$C$34,計算用シート!$A18,償却資産入力!AZ$5:AZ$34) -> 0 | AO18: =SUMIF(償却資産入力!$C$5:$C$34,計算用シート!$A18,償却資産入力!BA$5:BA$34) -> 0 | AP18: =SUMIF(償却資産入力!$C$5:$C$34,計算用シート!$A18,償却資産入力!BB$5:BB$34) -> 0 | AQ18: =SUMIF(償却資産入力!$C$5:$C$34,計算用シート!$A18,償却資産入力!BC$5:BC$34) -> 0 | AR18: =SUMIF(償却資産入力!$C$5:$C$34,計算用シート!$A18,償却資産入力!BD$5:BD$34) -> 0 | AS18: =SUMIF(償却資産入力!$C$5:$C$34,計算用シート!$A18,償却資産入力!BE$5:BE$34) -> 0 | AT18: =SUMIF(償却資産入力!$C$5:$C$34,計算用シート!$A18,償却資産入力!BF$5:BF$34) -> 0 | AU18: =SUMIF(償却資産入力!$C$5:$C$34,計算用シート!$A18,償却資産入力!BG$5:BG$34) -> 0 | AV18: =SUMIF(償却資産入力!$C$5:$C$34,計算用シート!$A18,償却資産入力!BH$5:BH$34) -> 0 | AW18: =SUMIF(償却資産入力!$C$5:$C$34,計算用シート!$A18,償却資産入力!BI$5:BI$34) -> 0 | AX18: =SUMIF(償却資産入力!$C$5:$C$34,計算用シート!$A18,償却資産入力!BJ$5:BJ$34) -> 0 | AY18: =SUMIF(償却資産入力!$C$5:$C$34,計算用シート!$A18,償却資産入力!BK$5:BK$34) -> 0 | AZ18: =SUMIF(償却資産入力!$C$5:$C$34,計算用シート!$A18,償却資産入力!BL$5:BL$34) -> 0 | BA18: =SUMIF(償却資産入力!$C$5:$C$34,計算用シート!$A18,償却資産入力!BM$5:BM$34) -> 0 | BB18: =SUMIF(償却資産入力!$C$5:$C$34,計算用シート!$A18,償却資産入力!BN$5:BN$34) -> 0 | BC18: =SUMIF(償却資産入力!$C$5:$C$34,計算用シート!$A18,償却資産入力!BO$5:BO$34) -> 0 | BD18: =SUMIF(償却資産入力!$C$5:$C$34,計算用シート!$A18,償却資産入力!BP$5:BP$34) -> 0 | BE18: =SUMIF(償却資産入力!$C$5:$C$34,計算用シート!$A18,償却資産入力!BQ$5:BQ$34) -> 0 | BF18: =SUMIF(償却資産入力!$C$5:$C$34,計算用シート!$A18,償却資産入力!BR$5:BR$34) -> 0 | BG18: =SUMIF(償却資産入力!$C$5:$C$34,計算用シート!$A18,償却資産入力!BS$5:BS$34) -> 0 | BH18: =SUMIF(償却資産入力!$C$5:$C$34,計算用シート!$A18,償却資産入力!BT$5:BT$34) -> 0 | BI18: =SUMIF(償却資産入力!$C$5:$C$34,計算用シート!$A18,償却資産入力!BU$5:BU$34) -> 0 | BJ18: =SUMIF(償却資産入力!$C$5:$C$34,計算用シート!$A18,償却資産入力!BV$5:BV$34) -> 0 | BK18: =SUMIF(償却資産入力!$C$5:$C$34,計算用シート!$A18,償却資産入力!BW$5:BW$34) -> 0 | BL18: =SUMIF(償却資産入力!$C$5:$C$34,計算用シート!$A18,償却資産入力!BX$5:BX$34) -> 0 | BM18: =SUMIF(償却資産入力!$C$5:$C$34,計算用シート!$A18,償却資産入力!BY$5:BY$34) -> 0 | BN18: =SUMIF(償却資産入力!$C$5:$C$34,計算用シート!$A18,償却資産入力!BZ$5:BZ$34) -> 0 | BO18: =SUMIF(償却資産入力!$C$5:$C$34,計算用シート!$A18,償却資産入力!CA$5:CA$34) -> 0 | BP18: =SUMIF(償却資産入力!$C$5:$C$34,計算用シート!$A18,償却資産入力!CB$5:CB$34) -> 0 | BQ18: =SUMIF(償却資産入力!$C$5:$C$34,計算用シート!$A18,償却資産入力!CC$5:CC$34) -> 0 | BR18: =SUMIF(償却資産入力!$C$5:$C$34,計算用シート!$A18,償却資産入力!CD$5:CD$34) -> 0 | BS18: =SUMIF(償却資産入力!$C$5:$C$34,計算用シート!$A18,償却資産入力!CE$5:CE$34) -> 0 | BT18: =SUMIF(償却資産入力!$C$5:$C$34,計算用シート!$A18,償却資産入力!CF$5:CF$34) -> 0 | BU18: =SUMIF(償却資産入力!$C$5:$C$34,計算用シート!$A18,償却資産入力!CG$5:CG$34) -> 0 | BV18: =SUMIF(償却資産入力!$C$5:$C$34,計算用シート!$A18,償却資産入力!CH$5:CH$34) -> 0 | BW18: =SUMIF(償却資産入力!$C$5:$C$34,計算用シート!$A18,償却資産入力!CI$5:CI$34) -> 0 | BX18: =SUMIF(償却資産入力!$C$5:$C$34,計算用シート!$A18,償却資産入力!CJ$5:CJ$34) -> 0 | BY18: =SUMIF(償却資産入力!$C$5:$C$34,計算用シート!$A18,償却資産入力!CK$5:CK$34) -> 0 | BZ18: =SUMIF(償却資産入力!$C$5:$C$34,計算用シート!$A18,償却資産入力!CL$5:CL$34) -> 0 | CA18: =SUMIF(償却資産入力!$C$5:$C$34,計算用シート!$A18,償却資産入力!CM$5:CM$34) -> 0 | CB18: =SUMIF(償却資産入力!$C$5:$C$34,計算用シート!$A18,償却資産入力!CN$5:CN$34) -> 0 | CC18: =SUMIF(償却資産入力!$C$5:$C$34,計算用シート!$A18,償却資産入力!CO$5:CO$34) -> 0 | CD18: =SUMIF(償却資産入力!$C$5:$C$34,計算用シート!$A18,償却資産入力!CP$5:CP$34) -> 0 | CE18: =SUMIF(償却資産入力!$C$5:$C$34,計算用シート!$A18,償却資産入力!CQ$5:CQ$34) -> 0 | CF18: =SUMIF(償却資産入力!$C$5:$C$34,計算用シート!$A18,償却資産入力!CR$5:CR$34) -> 0 | CG18: =SUMIF(償却資産入力!$C$5:$C$34,計算用シート!$A18,償却資産入力!CS$5:CS$34) -> 0 | CH18: =SUMIF(償却資産入力!$C$5:$C$34,計算用シート!$A18,償却資産入力!CT$5:CT$34) -> 0 | CI18: =SUMIF(償却資産入力!$C$5:$C$34,計算用シート!$A18,償却資産入力!CU$5:CU$34) -> 0 | CJ18: =SUMIF(償却資産入力!$C$5:$C$34,計算用シート!$A18,償却資産入力!CV$5:CV$34) -> 0 | CK18: =SUMIF(償却資産入力!$C$5:$C$34,計算用シート!$A18,償却資産入力!CW$5:CW$34) -> 0 | CL18: =SUMIF(償却資産入力!$C$5:$C$34,計算用シート!$A18,償却資産入力!CX$5:CX$34) -> 0 | CM18: =SUMIF(償却資産入力!$C$5:$C$34,計算用シート!$A18,償却資産入力!CY$5:CY$34) -> 0
A19: 6 | B19: =SUMIF(償却資産入力!$C$5:$C$34,計算用シート!$A19,償却資産入力!N$5:N$34) -> 2780700 | C19: =SUMIF(償却資産入力!$C$5:$C$34,計算用シート!$A19,償却資産入力!O$5:O$34) -> 2207875 | D19: =SUMIF(償却資産入力!$C$5:$C$34,計算用シート!$A19,償却資産入力!P$5:P$34) -> 1753052 | E19: =SUMIF(償却資産入力!$C$5:$C$34,計算用シート!$A19,償却資産入力!Q$5:Q$34) -> 1391923 | F19: =SUMIF(償却資産入力!$C$5:$C$34,計算用シート!$A19,償却資産入力!R$5:R$34) -> 1105186 | G19: =SUMIF(償却資産入力!$C$5:$C$34,計算用シート!$A19,償却資産入力!S$5:S$34) -> 877517 | H19: =SUMIF(償却資産入力!$C$5:$C$34,計算用シート!$A19,償却資産入力!T$5:T$34) -> 696748 | I19: =SUMIF(償却資産入力!$C$5:$C$34,計算用シート!$A19,償却資産入力!U$5:U$34) -> 553217 | J19: =SUMIF(償却資産入力!$C$5:$C$34,計算用シート!$A19,償却資産入力!V$5:V$34) -> 439254 | K19: =SUMIF(償却資産入力!$C$5:$C$34,計算用シート!$A19,償却資産入力!W$5:W$34) -> 348767 | L19: =SUMIF(償却資産入力!$C$5:$C$34,計算用シート!$A19,償却資産入力!X$5:X$34) -> 276920 | M19: =SUMIF(償却資産入力!$C$5:$C$34,計算用シート!$A19,償却資産入力!Y$5:Y$34) -> 219874 | N19: =SUMIF(償却資産入力!$C$5:$C$34,計算用シート!$A19,償却資産入力!Z$5:Z$34) -> 174579 | O19: =SUMIF(償却資産入力!$C$5:$C$34,計算用シート!$A19,償却資産入力!AA$5:AA$34) -> 155000 | P19: =SUMIF(償却資産入力!$C$5:$C$34,計算用シート!$A19,償却資産入力!AB$5:AB$34) -> 155000 | Q19: =SUMIF(償却資産入力!$C$5:$C$34,計算用シート!$A19,償却資産入力!AC$5:AC$34) -> 155000 | R19: =SUMIF(償却資産入力!$C$5:$C$34,計算用シート!$A19,償却資産入力!AD$5:AD$34) -> 155000 | S19: =SUMIF(償却資産入力!$C$5:$C$34,計算用シート!$A19,償却資産入力!AE$5:AE$34) -> 155000 | T19: =SUMIF(償却資産入力!$C$5:$C$34,計算用シート!$A19,償却資産入力!AF$5:AF$34) -> 155000 | U19: =SUMIF(償却資産入力!$C$5:$C$34,計算用シート!$A19,償却資産入力!AG$5:AG$34) -> 155000 | V19: =SUMIF(償却資産入力!$C$5:$C$34,計算用シート!$A19,償却資産入力!AH$5:AH$34) -> 155000 | W19: =SUMIF(償却資産入力!$C$5:$C$34,計算用シート!$A19,償却資産入力!AI$5:AI$34) -> 155000 | X19: =SUMIF(償却資産入力!$C$5:$C$34,計算用シート!$A19,償却資産入力!AJ$5:AJ$34) -> 155000 | Y19: =SUMIF(償却資産入力!$C$5:$C$34,計算用シート!$A19,償却資産入力!AK$5:AK$34) -> 155000 | Z19: =SUMIF(償却資産入力!$C$5:$C$34,計算用シート!$A19,償却資産入力!AL$5:AL$34) -> 155000 | AA19: =SUMIF(償却資産入力!$C$5:$C$34,計算用シート!$A19,償却資産入力!AM$5:AM$34) -> 155000 | AB19: =SUMIF(償却資産入力!$C$5:$C$34,計算用シート!$A19,償却資産入力!AN$5:AN$34) -> 155000 | AC19: =SUMIF(償却資産入力!$C$5:$C$34,計算用シート!$A19,償却資産入力!AO$5:AO$34) -> 155000 | AD19: =SUMIF(償却資産入力!$C$5:$C$34,計算用シート!$A19,償却資産入力!AP$5:AP$34) -> 155000 | AE19: =SUMIF(償却資産入力!$C$5:$C$34,計算用シート!$A19,償却資産入力!AQ$5:AQ$34) -> 155000 | AF19: =SUMIF(償却資産入力!$C$5:$C$34,計算用シート!$A19,償却資産入力!AR$5:AR$34) -> 155000 | AG19: =SUMIF(償却資産入力!$C$5:$C$34,計算用シート!$A19,償却資産入力!AS$5:AS$34) -> 155000 | AH19: =SUMIF(償却資産入力!$C$5:$C$34,計算用シート!$A19,償却資産入力!AT$5:AT$34) -> 155000 | AI19: =SUMIF(償却資産入力!$C$5:$C$34,計算用シート!$A19,償却資産入力!AU$5:AU$34) -> 155000 | AJ19: =SUMIF(償却資産入力!$C$5:$C$34,計算用シート!$A19,償却資産入力!AV$5:AV$34) -> 155000 | AK19: =SUMIF(償却資産入力!$C$5:$C$34,計算用シート!$A19,償却資産入力!AW$5:AW$34) -> 155000 | AL19: =SUMIF(償却資産入力!$C$5:$C$34,計算用シート!$A19,償却資産入力!AX$5:AX$34) -> 155000 | AM19: =SUMIF(償却資産入力!$C$5:$C$34,計算用シート!$A19,償却資産入力!AY$5:AY$34) -> 155000 | AN19: =SUMIF(償却資産入力!$C$5:$C$34,計算用シート!$A19,償却資産入力!AZ$5:AZ$34) -> 155000 | AO19: =SUMIF(償却資産入力!$C$5:$C$34,計算用シート!$A19,償却資産入力!BA$5:BA$34) -> 155000 | AP19: =SUMIF(償却資産入力!$C$5:$C$34,計算用シート!$A19,償却資産入力!BB$5:BB$34) -> 155000 | AQ19: =SUMIF(償却資産入力!$C$5:$C$34,計算用シート!$A19,償却資産入力!BC$5:BC$34) -> 155000 | AR19: =SUMIF(償却資産入力!$C$5:$C$34,計算用シート!$A19,償却資産入力!BD$5:BD$34) -> 155000 | AS19: =SUMIF(償却資産入力!$C$5:$C$34,計算用シート!$A19,償却資産入力!BE$5:BE$34) -> 155000 | AT19: =SUMIF(償却資産入力!$C$5:$C$34,計算用シート!$A19,償却資産入力!BF$5:BF$34) -> 155000 | AU19: =SUMIF(償却資産入力!$C$5:$C$34,計算用シート!$A19,償却資産入力!BG$5:BG$34) -> 155000 | AV19: =SUMIF(償却資産入力!$C$5:$C$34,計算用シート!$A19,償却資産入力!BH$5:BH$34) -> 155000 | AW19: =SUMIF(償却資産入力!$C$5:$C$34,計算用シート!$A19,償却資産入力!BI$5:BI$34) -> 155000 | AX19: =SUMIF(償却資産入力!$C$5:$C$34,計算用シート!$A19,償却資産入力!BJ$5:BJ$34) -> 155000 | AY19: =SUMIF(償却資産入力!$C$5:$C$34,計算用シート!$A19,償却資産入力!BK$5:BK$34) -> 155000 | AZ19: =SUMIF(償却資産入力!$C$5:$C$34,計算用シート!$A19,償却資産入力!BL$5:BL$34) -> 155000 | BA19: =SUMIF(償却資産入力!$C$5:$C$34,計算用シート!$A19,償却資産入力!BM$5:BM$34) -> 155000 | BB19: =SUMIF(償却資産入力!$C$5:$C$34,計算用シート!$A19,償却資産入力!BN$5:BN$34) -> 155000 | BC19: =SUMIF(償却資産入力!$C$5:$C$34,計算用シート!$A19,償却資産入力!BO$5:BO$34) -> 155000 | BD19: =SUMIF(償却資産入力!$C$5:$C$34,計算用シート!$A19,償却資産入力!BP$5:BP$34) -> 155000 | BE19: =SUMIF(償却資産入力!$C$5:$C$34,計算用シート!$A19,償却資産入力!BQ$5:BQ$34) -> 155000 | BF19: =SUMIF(償却資産入力!$C$5:$C$34,計算用シート!$A19,償却資産入力!BR$5:BR$34) -> 155000 | BG19: =SUMIF(償却資産入力!$C$5:$C$34,計算用シート!$A19,償却資産入力!BS$5:BS$34) -> 155000 | BH19: =SUMIF(償却資産入力!$C$5:$C$34,計算用シート!$A19,償却資産入力!BT$5:BT$34) -> 155000 | BI19: =SUMIF(償却資産入力!$C$5:$C$34,計算用シート!$A19,償却資産入力!BU$5:BU$34) -> 155000 | BJ19: =SUMIF(償却資産入力!$C$5:$C$34,計算用シート!$A19,償却資産入力!BV$5:BV$34) -> 155000 | BK19: =SUMIF(償却資産入力!$C$5:$C$34,計算用シート!$A19,償却資産入力!BW$5:BW$34) -> 155000 | BL19: =SUMIF(償却資産入力!$C$5:$C$34,計算用シート!$A19,償却資産入力!BX$5:BX$34) -> 155000 | BM19: =SUMIF(償却資産入力!$C$5:$C$34,計算用シート!$A19,償却資産入力!BY$5:BY$34) -> 155000 | BN19: =SUMIF(償却資産入力!$C$5:$C$34,計算用シート!$A19,償却資産入力!BZ$5:BZ$34) -> 155000 | BO19: =SUMIF(償却資産入力!$C$5:$C$34,計算用シート!$A19,償却資産入力!CA$5:CA$34) -> 155000 | BP19: =SUMIF(償却資産入力!$C$5:$C$34,計算用シート!$A19,償却資産入力!CB$5:CB$34) -> 155000 | BQ19: =SUMIF(償却資産入力!$C$5:$C$34,計算用シート!$A19,償却資産入力!CC$5:CC$34) -> 155000 | BR19: =SUMIF(償却資産入力!$C$5:$C$34,計算用シート!$A19,償却資産入力!CD$5:CD$34) -> 155000 | BS19: =SUMIF(償却資産入力!$C$5:$C$34,計算用シート!$A19,償却資産入力!CE$5:CE$34) -> 155000 | BT19: =SUMIF(償却資産入力!$C$5:$C$34,計算用シート!$A19,償却資産入力!CF$5:CF$34) -> 155000 | BU19: =SUMIF(償却資産入力!$C$5:$C$34,計算用シート!$A19,償却資産入力!CG$5:CG$34) -> 155000 | BV19: =SUMIF(償却資産入力!$C$5:$C$34,計算用シート!$A19,償却資産入力!CH$5:CH$34) -> 155000 | BW19: =SUMIF(償却資産入力!$C$5:$C$34,計算用シート!$A19,償却資産入力!CI$5:CI$34) -> 155000 | BX19: =SUMIF(償却資産入力!$C$5:$C$34,計算用シート!$A19,償却資産入力!CJ$5:CJ$34) -> 155000 | BY19: =SUMIF(償却資産入力!$C$5:$C$34,計算用シート!$A19,償却資産入力!CK$5:CK$34) -> 155000 | BZ19: =SUMIF(償却資産入力!$C$5:$C$34,計算用シート!$A19,償却資産入力!CL$5:CL$34) -> 155000 | CA19: =SUMIF(償却資産入力!$C$5:$C$34,計算用シート!$A19,償却資産入力!CM$5:CM$34) -> 155000 | CB19: =SUMIF(償却資産入力!$C$5:$C$34,計算用シート!$A19,償却資産入力!CN$5:CN$34) -> 155000 | CC19: =SUMIF(償却資産入力!$C$5:$C$34,計算用シート!$A19,償却資産入力!CO$5:CO$34) -> 155000 | CD19: =SUMIF(償却資産入力!$C$5:$C$34,計算用シート!$A19,償却資産入力!CP$5:CP$34) -> 155000 | CE19: =SUMIF(償却資産入力!$C$5:$C$34,計算用シート!$A19,償却資産入力!CQ$5:CQ$34) -> 155000 | CF19: =SUMIF(償却資産入力!$C$5:$C$34,計算用シート!$A19,償却資産入力!CR$5:CR$34) -> 155000 | CG19: =SUMIF(償却資産入力!$C$5:$C$34,計算用シート!$A19,償却資産入力!CS$5:CS$34) -> 155000 | CH19: =SUMIF(償却資産入力!$C$5:$C$34,計算用シート!$A19,償却資産入力!CT$5:CT$34) -> 155000 | CI19: =SUMIF(償却資産入力!$C$5:$C$34,計算用シート!$A19,償却資産入力!CU$5:CU$34) -> 155000 | CJ19: =SUMIF(償却資産入力!$C$5:$C$34,計算用シート!$A19,償却資産入力!CV$5:CV$34) -> 155000 | CK19: =SUMIF(償却資産入力!$C$5:$C$34,計算用シート!$A19,償却資産入力!CW$5:CW$34) -> 155000 | CL19: =SUMIF(償却資産入力!$C$5:$C$34,計算用シート!$A19,償却資産入力!CX$5:CX$34) -> 155000 | CM19: =SUMIF(償却資産入力!$C$5:$C$34,計算用シート!$A19,償却資産入力!CY$5:CY$34) -> 155000

Sheet 申告書（提出用）
AX1: 第二十六号様式
L2: =償却資産入力!E1 -> 45292
B3: 原 村 長 | L3: 償 却 資 産 申 告 書 | AB3: ※ | AC3: 所 有 者 コ ー ド
K4: 様
A6: 所 有 者 | S6: 3 | T6: 個 人 番 号 又 は 法 人 番 号 | AI6: 8 | AJ6: 短縮耐用年数の承認 | AR6: 有 | AT6: ・ | AV6: 無
B7: ふりがな
B8: 1 住 所 | AI8: 9 | AJ8: 増 加 償 却 の 届 出 | AR8: 有 | AT8: ・ | AV8: 無
S10: 4 | T10: 事 業 種 目 （資本等の金額） | AI10: 10 | AJ10: 非 課 税 該 当 資 産 | AR10: 有 | AT10: ・ | AV10: 無
B12: 又は納税通 知書送達先 | Z12: （ | AE12: ）百万円 | AI12: 11 | AJ12: 課 税 標 準 の 特 例 | AR12: 有 | AT12: ・ | AV12: 無
K13: ＴＥＬ（ | Q13: ）
S14: 5 | T14: 事業開始年月 | AI14: 12 | AJ14: 特別償却又は圧縮記帳 | AR14: 有 | AT14: ・ | AV14: 無
B16: ふりがな | S16: 6 | T16: この申告に応答す る者の係及び氏名 | AI16: 13 | AJ16: 税務会計上の償却方法 | AR16: 定率法 | AT16: ・ | AV16: 定額法
B17: 2 氏 名
V18: ＴＥＬ( | AG18: ） | AI18: 14 | AJ18: 青 色 申 告 | AR18: 有 | AT18: ・ | AV18: 無
B19: 法人にあっ てはその名 称及び代表 者の氏名
S20: 7 | T20: 税 理 士 等 の 氏 名
K22: （屋号 | Q22: ） | V22: ＴＥＬ( | AG22: ）
A24: 資産の種類 | C24: 取 得 価 額 | AB24: 15 市（区）町村内 における事業所 等資産の所在地 | AJ24: ① ② ③
C25: 前年前に取得したもの (イ) | I25: 前年中に減少したもの (ロ) | N25: 前年中に取得したもの (ハ) | T25: 計（（イ）－（ロ）＋（ハ）） （ニ）
A26: 1 | B26: 構築物 | C26: =計算用シート!B5 -> 0 | N26: =計算用シート!D5 -> 0 | T26: =計算用シート!E5 -> 0
A28: 2 | B28: 機械及び | C28: =計算用シート!B6 -> 2285000 | N28: =計算用シート!D6 -> 0 | T28: =計算用シート!E6 -> 2285000
B29: 装置
A30: 3 | B30: 船 舶 | C30: =計算用シート!B7 -> 0 | N30: =計算用シート!D7 -> 0 | T30: =計算用シート!E7 -> 0
A32: 4 | B32: 航空機 | C32: =計算用シート!B8 -> 0 | N32: =計算用シート!D8 -> 0 | T32: =計算用シート!E8 -> 0 | AJ32: 賃主の名称等
AB33: 16 借 用 資 産
A34: 5 | B34: 車輌及び | C34: =計算用シート!B9 -> 0 | N34: =計算用シート!D9 -> 0 | T34: =計算用シート!E9 -> 0
B35: 運搬具 | AB35: （ 有 ・ 無 ）
A36: 6 | B36: 工具、器具 | C36: =計算用シート!B10 -> 3100000 | N36: =計算用シート!D10 -> 0 | T36: =計算用シート!E10 -> 3100000
B37: 及び備品 | AB37: 17 事業所用家屋の所有区分 | AN37: 自己所有 ・ 借家
A38: 7 | B38: 合 計 | C38: =SUM(C26:H37) -> 5385000 | I38: =SUM(I26,I28,I30,I32,I34,I36) -> 0 | N38: =SUM(N26:S37) -> 0 | T38: =SUM(T26:AA37) -> 5385000
F40: 資産の種類 | I40: ※ | J40: 評 価 額 | N40: ※ | O40: 決 定 価 格 | T40: ※ | U40: 課 税 標 準 額 | AB40: 18 備考（添付書類等）
M41: （ホ） | S41: （ヘ） | Z41: （ト） | AB41: 以下の項目に該当する場合は、記入してください
F42: 1 | G42: 構築物 | I42: =IFERROR(OFFSET(計算用シート!$B14,0,償却資産入力!$F$1-1,1),0) -> 0 | N42: =I42 -> 0
AC43: □ 資産増減なし
F44: 2 | G44: 機械及び | I44: =IFERROR(OFFSET(計算用シート!$B15,0,償却資産入力!$F$1-1,1),0) -> 921337 | N44: =I44 -> 921337 | AC44: □ 申告対象資産なし
G45: 装置
F46: 3 | G46: 船 舶 | I46: =IFERROR(OFFSET(計算用シート!$B16,0,償却資産入力!$F$1-1,1),0) -> 0 | N46: =I46 -> 0 | AC46: □ 廃業・解散、転出等 令和 年 月 日
F48: 4 | G48: 航空機 | I48: =IFERROR(OFFSET(計算用シート!$B17,0,償却資産入力!$F$1-1,1),0) -> 0 | N48: =I48 -> 0
F50: 5 | G50: 車輌及び | I50: =IFERROR(OFFSET(計算用シート!$B18,0,償却資産入力!$F$1-1,1),0) -> 0 | N50: =I50 -> 0
G51: 運搬具
F52: 6 | G52: 工具、器具 | I52: =IFERROR(OFFSET(計算用シート!$B19,0,償却資産入力!$F$1-1,1),0) -> 155000 | N52: =I52 -> 155000
G53: 及び備品
F54: 7 | G54: 合 計 | I54: =SUM(I42:M53) -> 1076337 | N54: =SUM(N42:S53) -> 1076337

Sheet 申告書（控用）
AX1: 第二十六号様式
L2: =償却資産入力!E1 -> 45292
B3: 原 村 長 | L3: 償 却 資 産 申 告 書 | AB3: ※ | AC3: 所 有 者 コ ー ド
K4: 様
A6: 所 有 者 | S6: 3 | T6: 個 人 番 号 又 は 法 人 番 号 | AI6: 8 | AJ6: 短縮耐用年数の承認 | AR6: 有 | AT6: ・ | AV6: 無
B7: ふりがな
B8: 1 住 所 | AI8: 9 | AJ8: 増 加 償 却 の 届 出 | AR8: 有 | AT8: ・ | AV8: 無
S10: 4 | T10: 事 業 種 目 （資本等の金額） | AI10: 10 | AJ10: 非 課 税 該 当 資 産 | AR10: 有 | AT10: ・ | AV10: 無
B12: 又は納税通 知書送達先 | Z12: （ | AE12: ）百万円 | AI12: 11 | AJ12: 課 税 標 準 の 特 例 | AR12: 有 | AT12: ・ | AV12: 無
K13: ＴＥＬ（ | Q13: ）
S14: 5 | T14: 事業開始年月 | AA14: 年 | AF14: 月 | AI14: 12 | AJ14: 特別償却又は圧縮記帳 | AR14: 有 | AT14: ・ | AV14: 無
B16: ふりがな | S16: 6 | T16: この申告に応答す る者の係及び氏名 | AI16: 13 | AJ16: 税務会計上の償却方法 | AR16: 定率法 | AT16: ・ | AV16: 定額法
B17: 2 氏 名
V18: ＴＥＬ( | AG18: ） | AI18: 14 | AJ18: 青 色 申 告 | AR18: 有 | AT18: ・ | AV18: 無
B19: 法人にあっ てはその名 称及び代表 者の氏名
S20: 7 | T20: 税 理 士 等 の 氏 名
K22: （屋号 | Q22: ） | V22: ＴＥＬ( | AG22: ）
A24: 資産の種類 | C24: 取 得 価 額 | AB24: 15 市（区）町村内 における事業所 等資産の所在地 | AJ24: ① ② ③
C25: 前年前に取得したもの (イ) | I25: 前年中に減少したもの (ロ) | N25: 前年中に取得したもの (ハ) | T25: 計（（イ）－（ロ）＋（ハ）） （ニ）
A26: 1 | B26: 構築物 | C26: =計算用シート!B5 -> 0 | I26: =計算用シート!C5 -> 0 | N26: =計算用シート!D5 -> 0 | T26: =計算用シート!E5 -> 0
A28: 2 | B28: 機械及び | C28: =計算用シート!B6 -> 2285000 | I28: =計算用シート!C6 -> 0 | N28: =計算用シート!D6 -> 0 | T28: =計算用シート!E6 -> 2285000
B29: 装置
A30: 3 | B30: 船 舶 | C30: =計算用シート!B7 -> 0 | I30: =計算用シート!C7 -> 0 | N30: =計算用シート!D7 -> 0 | T30: =計算用シート!E7 -> 0
A32: 4 | B32: 航空機 | C32: =計算用シート!B8 -> 0 | I32: =計算用シート!C8 -> 0 | N32: =計算用シート!D8 -> 0 | T32: =計算用シート!E8 -> 0 | AJ32: 賃主の名称等
AB33: 16 借 用 資 産
A34: 5 | B34: 車輌及び | C34: =計算用シート!B9 -> 0 | I34: =計算用シート!C9 -> 0 | N34: =計算用シート!D9 -> 0 | T34: =計算用シート!E9 -> 0
B35: 運搬具 | AB35: （ 有 ・ 無 ）
A36: 6 | B36: 工具、器具 | C36: =計算用シート!B10 -> 3100000 | I36: =計算用シート!C10 -> 0 | N36: =計算用シート!D10 -> 0 | T36: =計算用シート!E10 -> 3100000
B37: 及び備品 | AB37: 17 事業所用家屋の所有区分 | AN37: 自己所有 ・ 借家
A38: 7 | B38: 合 計 | C38: =SUM(C26:H37) -> 5385000 | I38: =SUM(I26:M37) -> 0 | N38: =SUM(N26:S37) -> 0 | T38: =SUM(T26:AA37) -> 5385000
F40: 資産の種類 | I40: ※ | J40: 評 価 額 | N40: ※ | O40: 決 定 価 格 | T40: ※ | U40: 課 税 標 準 額 | AB40: 18 備考（添付書類等）
M41: （ホ） | S41: （ヘ） | Z41: （ト） | AB41: 以下の項目に該当する場合は、記入してください
F42: 1 | G42: 構築物 | I42: =IFERROR(OFFSET(計算用シート!$B14,0,償却資産入力!$F$1-1,1),0) -> 0 | N42: =I42 -> 0
AC43: □ 資産増減なし
F44: 2 | G44: 機械及び | I44: =IFERROR(OFFSET(計算用シート!$B15,0,償却資産入力!$F$1-1,1),0) -> 921337 | N44: =I44 -> 921337 | AC44: □ 申告対象資産なし
G45: 装置
F46: 3 | G46: 船 舶 | I46: =IFERROR(OFFSET(計算用シート!$B16,0,償却資産入力!$F$1-1,1),0) -> 0 | N46: =I46 -> 0 | AC46: □ 廃業・解散、転出等 令和 年 月 日
F48: 4 | G48: 航空機 | I48: =IFERROR(OFFSET(計算用シート!$B17,0,償却資産入力!$F$1-1,1),0) -> 0 | N48: =I48 -> 0
F50: 5 | G50: 車輌及び | I50: =IFERROR(OFFSET(計算用シート!$B18,0,償却資産入力!$F$1-1,1),0) -> 0 | N50: =I50 -> 0
G51: 運搬具
F52: 6 | G52: 工具、器具 | I52: =IFERROR(OFFSET(計算用シート!$B19,0,償却資産入力!$F$1-1,1),0) -> 155000 | N52: =I52 -> 155000
G53: 及び備品
F54: 7 | G54: 合 計 | I54: =SUM(I42:M53) -> 1076337 | N54: =SUM(N42:S53) -> 1076337

Sheet 増加資産・全資産用（提出用）
AE1: 提 出 用 | AX1: 第二十六号様式別表一
A2: =償却資産入力!E1 -> 45292
O3: 種類別明細書（増加資産・全資産用） | AG3: 所 有 者 氏 名 | AW3: 枚のうち
A4: ※ | B4: 所 有 者 コ ー ド
AW6: 枚 目
A8: 行番号 | B8: 資産の種類 | C8: ※ | D8: 資 産 コ ー ド | I8: 資 産 の 名 称 等 | S8: 数 量 | U8: 取得年月 | AA8: （イ） | AB8: 耐用年数 | AD8: ※ （ロ） | AG8: ※ | AJ8: （ハ） | AK8: ※ | AO8: ※ | AT8: 増加事由 | AW8: 摘 要
X9: 取 得 価 額 | AE9: 減価残存率 | AG9: 価 額 | AK9: 課税標準 | AO9: 課 税 標 準 額
U10: 年号 | V10: 年 | W10: 月 | AK10: の 特 例
AK11: 率 | AM11: コード
A12: 01 | B12: =IF(償却資産入力!C5="","",償却資産入力!C5) -> 6 | C12: =IF(償却資産入力!D5="","",償却資産入力!D5) ->  | I12: =IF(償却資産入力!E5="","",償却資産入力!E5) -> 格納庫 | S12: =IF(償却資産入力!F5="","",償却資産入力!F5) -> 1 | U12: =IF(償却資産入力!H5="","",償却資産入力!H5) -> 3 | V12: =IF(償却資産入力!G5="","",償却資産入力!G5) -> 28491 | W12: =IF(償却資産入力!G5="","",償却資産入力!G5) -> 1978-01-01 | X12: =IF(償却資産入力!J5="","",償却資産入力!J5) -> 3100000 | AB12: =IF(償却資産入力!K5="","",償却資産入力!K5) -> 10 | AD12: =IF(V12="","0.",IF($A$2-365>V12,1-償却資産入力!M5,1-償却資産入力!L5)) -> 0.897 | AG12: =IF(X12="","",OFFSET(償却資産入力!N5,0,償却資産入力!$F$1-1,1)) -> 155000 | AT12: 1・2 3・4
A13: 02 | B13: =IF(償却資産入力!C6="","",償却資産入力!C6) -> 2 | C13: =IF(償却資産入力!D6="","",償却資産入力!D6) ->  | I13: =IF(償却資産入力!E6="","",償却資産入力!E6) -> 成形ロータリ | S13: =IF(償却資産入力!F6="","",償却資産入力!F6) -> 1 | U13: =IF(償却資産入力!H6="","",償却資産入力!H6) -> 5 | V13: =IF(償却資産入力!G6="","",償却資産入力!G6) -> 43862 | W13: =IF(償却資産入力!G6="","",償却資産入力!G6) -> 2020-02-01 | X13: =IF(償却資産入力!J6="","",償却資産入力!J6) -> 610000 | AB13: =IF(償却資産入力!K6="","",償却資産入力!K6) -> 7 | AD13: =IF(V13="","0.",IF($A$2-365>V13,1-償却資産入力!M6,1-償却資産入力!L6)) -> 0.86 | AG13: =IF(X13="","",OFFSET(償却資産入力!N6,0,償却資産入力!$F$1-1,1)) -> 195805 | AT13: 1・2 3・4
A14: 03 | B14: =IF(償却資産入力!C7="","",償却資産入力!C7) -> 2 | C14: =IF(償却資産入力!D7="","",償却資産入力!D7) ->  | I14: =IF(償却資産入力!E7="","",償却資産入力!E7) -> 管理機 | S14: =IF(償却資産入力!F7="","",償却資産入力!F7) -> 1 | U14: =IF(償却資産入力!H7="","",償却資産入力!H7) -> 5 | V14: =IF(償却資産入力!G7="","",償却資産入力!G7) -> 43862 | W14: =IF(償却資産入力!G7="","",償却資産入力!G7) -> 2020-02-01 | X14: =IF(償却資産入力!J7="","",償却資産入力!J7) -> 280000 | AB14: =IF(償却資産入力!K7="","",償却資産入力!K7) -> 7 | AD14: =IF(V14="","0.",IF($A$2-365>V14,1-償却資産入力!M7,1-償却資産入力!L7)) -> 0.86 | AG14: =IF(X14="","",OFFSET(償却資産入力!N7,0,償却資産入力!$F$1-1,1)) -> 89877 | AT14: 1・2 3・4
A15: 04 | B15: =IF(償却資産入力!C8="","",償却資産入力!C8) -> 2 | C15: =IF(償却資産入力!D8="","",償却資産入力!D8) ->  | I15: =IF(償却資産入力!E8="","",償却資産入力!E8) -> 動噴 | S15: =IF(償却資産入力!F8="","",償却資産入力!F8) -> 1 | U15: =IF(償却資産入力!H8="","",償却資産入力!H8) -> 5 | V15: =IF(償却資産入力!G8="","",償却資産入力!G8) -> 43862 | W15: =IF(償却資産入力!G8="","",償却資産入力!G8) -> 2020-02-01 | X15: =IF(償却資産入力!J8="","",償却資産入力!J8) -> 765000 | AB15: =IF(償却資産入力!K8="","",償却資産入力!K8) -> 7 | AD15: =IF(V15="","0.",IF($A$2-365>V15,1-償却資産入力!M8,1-償却資産入力!L8)) -> 0.86 | AG15: =IF(X15="","",OFFSET(償却資産入力!N8,0,償却資産入力!$F$1-1,1)) -> 245559 | AT15: 1・2 3・4
A16: 05 | B16: =IF(償却資産入力!C9="","",償却資産入力!C9) -> 2 | C16: =IF(償却資産入力!D9="","",償却資産入力!D9) ->  | I16: =IF(償却資産入力!E9="","",償却資産入力!E9) -> 運搬車 | S16: =IF(償却資産入力!F9="","",償却資産入力!F9) -> 1 | U16: =IF(償却資産入力!H9="","",償却資産入力!H9) -> 5 | V16: =IF(償却資産入力!G9="","",償却資産入力!G9) -> 44593 | W16: =IF(償却資産入力!G9="","",償却資産入力!G9) -> 2022-02-01 | X16: =IF(償却資産入力!J9="","",償却資産入力!J9) -> 630000 | AB16: =IF(償却資産入力!K9="","",償却資産入力!K9) -> 7 | AD16: =IF(V16="","0.",IF($A$2-365>V16,1-償却資産入力!M9,1-償却資産入力!L9)) -> 0.86 | AG16: =IF(X16="","",OFFSET(償却資産入力!N9,0,償却資産入力!$F$1-1,1)) -> 390096 | AT16: 1・2 3・4
A17: 06 | B17: =IF(償却資産入力!C10="","",償却資産入力!C10) ->  | C17: =IF(償却資産入力!D10="","",償却資産入力!D10) ->  | I17: =IF(償却資産入力!E10="","",償却資産入力!E10) ->  | S17: =IF(償却資産入力!F10="","",償却資産入力!F10) ->  | U17: =IF(償却資産入力!H10="","",償却資産入力!H10) ->  | V17: =IF(償却資産入力!G10="","",償却資産入力!G10) ->  | W17: =IF(償却資産入力!G10="","",償却資産入力!G10) ->  | X17: =IF(償却資産入力!J10="","",償却資産入力!J10) ->  | AB17: =IF(償却資産入力!K10="","",償却資産入力!K10) ->  | AD17: =IF(V17="","0.",IF($A$2-365>V17,1-償却資産入力!M10,1-償却資産入力!L10)) -> 0. | AG17: =IF(X17="","",OFFSET(償却資産入力!N10,0,償却資産入力!$F$1-1,1)) ->  | AT17: 1・2 3・4
A18: 07 | B18: =IF(償却資産入力!C11="","",償却資産入力!C11) ->  | C18: =IF(償却資産入力!D11="","",償却資産入力!D11) ->  | I18: =IF(償却資産入力!E11="","",償却資産入力!E11) ->  | S18: =IF(償却資産入力!F11="","",償却資産入力!F11) ->  | U18: =IF(償却資産入力!H11="","",償却資産入力!H11) ->  | V18: =IF(償却資産入力!G11="","",償却資産入力!G11) ->  | W18: =IF(償却資産入力!G11="","",償却資産入力!G11) ->  | X18: =IF(償却資産入力!J11="","",償却資産入力!J11) ->  | AB18: =IF(償却資産入力!K11="","",償却資産入力!K11) ->  | AD18: =IF(V18="","0.",IF($A$2-365>V18,1-償却資産入力!M11,1-償却資産入力!L11)) -> 0. | AG18: =IF(X18="","",OFFSET(償却資産入力!N11,0,償却資産入力!$F$1-1,1)) ->  | AT18: 1・2 3・4
A19: 08 | B19: =IF(償却資産入力!C12="","",償却資産入力!C12) ->  | C19: =IF(償却資産入力!D12="","",償却資産入力!D12) ->  | I19: =IF(償却資産入力!E12="","",償却資産入力!E12) ->  | S19: =IF(償却資産入力!F12="","",償却資産入力!F12) ->  | U19: =IF(償却資産入力!H12="","",償却資産入力!H12) ->  | V19: =IF(償却資産入力!G12="","",償却資産入力!G12) ->  | W19: =IF(償却資産入力!G12="","",償却資産入力!G12) ->  | X19: =IF(償却資産入力!J12="","",償却資産入力!J12) ->  | AB19: =IF(償却資産入力!K12="","",償却資産入力!K12) ->  | AD19: =IF(V19="","0.",IF($A$2-365>V19,1-償却資産入力!M12,1-償却資産入力!L12)) -> 0. | AG19: =IF(X19="","",OFFSET(償却資産入力!N12,0,償却資産入力!$F$1-1,1)) ->  | AT19: 1・2 3・4
A20: 09 | B20: =IF(償却資産入力!C13="","",償却資産入力!C13) ->  | C20: =IF(償却資産入力!D13="","",償却資産入力!D13) ->  | I20: =IF(償却資産入力!E13="","",償却資産入力!E13) ->  | S20: =IF(償却資産入力!F13="","",償却資産入力!F13) ->  | U20: =IF(償却資産入力!H13="","",償却資産入力!H13) ->  | V20: =IF(償却資産入力!G13="","",償却資産入力!G13) ->  | W20: =IF(償却資産入力!G13="","",償却資産入力!G13) ->  | X20: =IF(償却資産入力!J13="","",償却資産入力!J13) ->  | AB20: =IF(償却資産入力!K13="","",償却資産入力!K13) ->  | AD20: =IF(V20="","0.",IF($A$2-365>V20,1-償却資産入力!M13,1-償却資産入力!L13)) -> 0. | AG20: =IF(X20="","",OFFSET(償却資産入力!N13,0,償却資産入力!$F$1-1,1)) ->  | AT20: 1・2 3・4
A21: 10 | B21: =IF(償却資産入力!C14="","",償却資産入力!C14) ->  | C21: =IF(償却資産入力!D14="","",償却資産入力!D14) ->  | I21: =IF(償却資産入力!E14="","",償却資産入力!E14) ->  | S21: =IF(償却資産入力!F14="","",償却資産入力!F14) ->  | U21: =IF(償却資産入力!H14="","",償却資産入力!H14) ->  | V21: =IF(償却資産入力!G14="","",償却資産入力!G14) ->  | W21: =IF(償却資産入力!G14="","",償却資産入力!G14) ->  | X21: =IF(償却資産入力!J14="","",償却資産入力!J14) ->  | AB21: =IF(償却資産入力!K14="","",償却資産入力!K14) ->  | AD21: =IF(V21="","0.",IF($A$2-365>V21,1-償却資産入力!M14,1-償却資産入力!L14)) -> 0. | AG21: =IF(X21="","",OFFSET(償却資産入力!N14,0,償却資産入力!$F$1-1,1)) ->  | AT21: 1・2 3・4
A22: 11 | B22: =IF(償却資産入力!C15="","",償却資産入力!C15) ->  | C22: =IF(償却資産入力!D15="","",償却資産入力!D15) ->  | I22: =IF(償却資産入力!E15="","",償却資産入力!E15) ->  | S22: =IF(償却資産入力!F15="","",償却資産入力!F15) ->  | U22: =IF(償却資産入力!H15="","",償却資産入力!H15) ->  | V22: =IF(償却資産入力!G15="","",償却資産入力!G15) ->  | W22: =IF(償却資産入力!G15="","",償却資産入力!G15) ->  | X22: =IF(償却資産入力!J15="","",償却資産入力!J15) ->  | AB22: =IF(償却資産入力!K15="","",償却資産入力!K15) ->  | AD22: =IF(V22="","0.",IF($A$2-365>V22,1-償却資産入力!M15,1-償却資産入力!L15)) -> 0. | AG22: =IF(X22="","",OFFSET(償却資産入力!N15,0,償却資産入力!$F$1-1,1)) ->  | AT22: 1・2 3・4
A23: 12 | B23: =IF(償却資産入力!C16="","",償却資産入力!C16) ->  | C23: =IF(償却資産入力!D16="","",償却資産入力!D16) ->  | I23: =IF(償却資産入力!E16="","",償却資産入力!E16) ->  | S23: =IF(償却資産入力!F16="","",償却資産入力!F16) ->  | U23: =IF(償却資産入力!H16="","",償却資産入力!H16) ->  | V23: =IF(償却資産入力!G16="","",償却資産入力!G16) ->  | W23: =IF(償却資産入力!G16="","",償却資産入力!G16) ->  | X23: =IF(償却資産入力!J16="","",償却資産入力!J16) ->  | AB23: =IF(償却資産入力!K16="","",償却資産入力!K16) ->  | AD23: =IF(V23="","0.",IF($A$2-365>V23,1-償却資産入力!M16,1-償却資産入力!L16)) -> 0. | AG23: =IF(X23="","",OFFSET(償却資産入力!N16,0,償却資産入力!$F$1-1,1)) ->  | AT23: 1・2 3・4
A24: 13 | B24: =IF(償却資産入力!C17="","",償却資産入力!C17) ->  | C24: =IF(償却資産入力!D17="","",償却資産入力!D17) ->  | I24: =IF(償却資産入力!E17="","",償却資産入力!E17) ->  | S24: =IF(償却資産入力!F17="","",償却資産入力!F17) ->  | U24: =IF(償却資産入力!H17="","",償却資産入力!H17) ->  | V24: =IF(償却資産入力!G17="","",償却資産入力!G17) ->  | W24: =IF(償却資産入力!G17="","",償却資産入力!G17) ->  | X24: =IF(償却資産入力!J17="","",償却資産入力!J17) ->  | AB24: =IF(償却資産入力!K17="","",償却資産入力!K17) ->  | AD24: =IF(V24="","0.",IF($A$2-365>V24,1-償却資産入力!M17,1-償却資産入力!L17)) -> 0. | AG24: =IF(X24="","",OFFSET(償却資産入力!N17,0,償却資産入力!$F$1-1,1)) ->  | AT24: 1・2 3・4
A25: 14 | B25: =IF(償却資産入力!C18="","",償却資産入力!C18) ->  | C25: =IF(償却資産入力!D18="","",償却資産入力!D18) ->  | I25: =IF(償却資産入力!E18="","",償却資産入力!E18) ->  | S25: =IF(償却資産入力!F18="","",償却資産入力!F18) ->  | U25: =IF(償却資産入力!H18="","",償却資産入力!H18) ->  | V25: =IF(償却資産入力!G18="","",償却資産入力!G18) ->  | W25: =IF(償却資産入力!G18="","",償却資産入力!G18) ->  | X25: =IF(償却資産入力!J18="","",償却資産入力!J18) ->  | AB25: =IF(償却資産入力!K18="","",償却資産入力!K18) ->  | AD25: =IF(V25="","0.",IF($A$2-365>V25,1-償却資産入力!M18,1-償却資産入力!L18)) -> 0. | AG25: =IF(X25="","",OFFSET(償却資産入力!N18,0,償却資産入力!$F$1-1,1)) ->  | AT25: 1・2 3・4
A26: 15 | B26: =IF(償却資産入力!C19="","",償却資産入力!C19) ->  | C26: =IF(償却資産入力!D19="","",償却資産入力!D19) ->  | I26: =IF(償却資産入力!E19="","",償却資産入力!E19) ->  | S26: =IF(償却資産入力!F19="","",償却資産入力!F19) ->  | U26: =IF(償却資産入力!H19="","",償却資産入力!H19) ->  | V26: =IF(償却資産入力!G19="","",償却資産入力!G19) ->  | W26: =IF(償却資産入力!G19="","",償却資産入力!G19) ->  | X26: =IF(償却資産入力!J19="","",償却資産入力!J19) ->  | AB26: =IF(償却資産入力!K19="","",償却資産入力!K19) ->  | AD26: =IF(V26="","0.",IF($A$2-365>V26,1-償却資産入力!M19,1-償却資産入力!L19)) -> 0. | AG26: =IF(X26="","",OFFSET(償却資産入力!N19,0,償却資産入力!$F$1-1,1)) ->  | AT26: 1・2 3・4
P27: 小 計 | S27: =IF(S12="","",SUM(S12:T26)) -> 5 | X27: =IF(X12="","",SUM(X12:AA26)) -> 5385000 | AG27: =IF(AG12="","",SUM(AG12:AJ26)) -> 1076337
A28: （資産の種類欄には、下記の区分番号を記入してください。）
A30: 番号 | B30: 種類区分 | G30: 番号 | H30: 種類区分
A31: 1 | B31: 構築物 | G31: 4 | H31: 航空機 | N31: 注意 | P31: １．太わくの中だけ書いてください。（用紙が不足する場合はコピーしてください。）
A32: 2 | B32: 機械及び装置 | G32: 5 | H32: 車両及び運搬具 | P32: ２．「増加事由」の欄は、１ 新品取得、２ 中古品取得、３ 移動による受入 ４ その他のいずれかに○印を付けてください。
A33: 3 | B33: 船舶 | G33: 6 | H33: 工具、器具及び備品 | P33: ３．※印欄は記入しないでください。ただし、「資産コード」の欄は、独自に機械番号・管理番号をお持ちであれば、そのコードを記入してください。

Sheet 増加資産・全資産用（控用）
AE1: 控 用 | AX1: 第二十六号様式別表一
A2: =償却資産入力!E1 -> 45292
O3: 種類別明細書（増加資産・全資産用） | AG3: 所 有 者 氏 名 | AW3: 枚のうち
A4: ※ | B4: 所 有 者 コ ー ド
AW6: 枚 目
A8: 行番号 | B8: 資産の種類 | C8: ※ | D8: 資 産 コ ー ド | I8: 資 産 の 名 称 等 | S8: 数 量 | U8: 取得年月 | AA8: （イ） | AB8: 耐用年数 | AD8: ※ （ロ） | AG8: ※ | AJ8: （ハ） | AK8: ※ | AO8: ※ | AT8: 増加事由 | AW8: 摘 要
X9: 取 得 価 額 | AE9: 減価残存率 | AG9: 価 額 | AK9: 課税標準 | AO9: 課 税 標 準 額
U10: 年号 | V10: 年 | W10: 月 | AK10: の 特 例
AK11: 率 | AM11: コード
A12: 01 | B12: =IF(償却資産入力!C5="","",償却資産入力!C5) -> 6 | C12: =IF(償却資産入力!D5="","",償却資産入力!D5) ->  | I12: =IF(償却資産入力!E5="","",償却資産入力!E5) -> 格納庫 | S12: =IF(償却資産入力!F5="","",償却資産入力!F5) -> 1 | U12: =IF(償却資産入力!H5="","",償却資産入力!H5) -> 3 | V12: =IF(償却資産入力!G5="","",償却資産入力!G5) -> 28491 | W12: =IF(償却資産入力!G5="","",償却資産入力!G5) -> 1978-01-01 | X12: =IF(償却資産入力!J5="","",償却資産入力!J5) -> 3100000 | AB12: =IF(償却資産入力!K5="","",償却資産入力!K5) -> 10 | AD12: =IF(V12="","0.",IF($A$2-365>V12,1-償却資産入力!M5,1-償却資産入力!L5)) -> 0.897 | AG12: =IF(X12="","",OFFSET(償却資産入力!N5,0,償却資産入力!$F$1-1,1)) -> 155000 | AT12: 1・2 3・4
A13: 02 | B13: =IF(償却資産入力!C6="","",償却資産入力!C6) -> 2 | C13: =IF(償却資産入力!D6="","",償却資産入力!D6) ->  | I13: =IF(償却資産入力!E6="","",償却資産入力!E6) -> 成形ロータリ | S13: =IF(償却資産入力!F6="","",償却資産入力!F6) -> 1 | U13: =IF(償却資産入力!H6="","",償却資産入力!H6) -> 5 | V13: =IF(償却資産入力!G6="","",償却資産入力!G6) -> 43862 | W13: =IF(償却資産入力!G6="","",償却資産入力!G6) -> 2020-02-01 | X13: =IF(償却資産入力!J6="","",償却資産入力!J6) -> 610000 | AB13: =IF(償却資産入力!K6="","",償却資産入力!K6) -> 7 | AD13: =IF(V13="","0.",IF($A$2-365>V13,1-償却資産入力!M6,1-償却資産入力!L6)) -> 0.86 | AG13: =IF(X13="","",OFFSET(償却資産入力!N6,0,償却資産入力!$F$1-1,1)) -> 195805 | AT13: 1・2 3・4
A14: 03 | B14: =IF(償却資産入力!C7="","",償却資産入力!C7) -> 2 | C14: =IF(償却資産入力!D7="","",償却資産入力!D7) ->  | I14: =IF(償却資産入力!E7="","",償却資産入力!E7) -> 管理機 | S14: =IF(償却資産入力!F7="","",償却資産入力!F7) -> 1 | U14: =IF(償却資産入力!H7="","",償却資産入力!H7) -> 5 | V14: =IF(償却資産入力!G7="","",償却資産入力!G7) -> 43862 | W14: =IF(償却資産入力!G7="","",償却資産入力!G7) -> 2020-02-01 | X14: =IF(償却資産入力!J7="","",償却資産入力!J7) -> 280000 | AB14: =IF(償却資産入力!K7="","",償却資産入力!K7) -> 7 | AD14: =IF(V14="","0.",IF($A$2-365>V14,1-償却資産入力!M7,1-償却資産入力!L7)) -> 0.86 | AG14: =IF(X14="","",OFFSET(償却資産入力!N7,0,償却資産入力!$F$1-1,1)) -> 89877 | AT14: 1・2 3・4
A15: 04 | B15: =IF(償却資産入力!C8="","",償却資産入力!C8) -> 2 | C15: =IF(償却資産入力!D8="","",償却資産入力!D8) ->  | I15: =IF(償却資産入力!E8="","",償却資産入力!E8) -> 動噴 | S15: =IF(償却資産入力!F8="","",償却資産入力!F8) -> 1 | U15: =IF(償却資産入力!H8="","",償却資産入力!H8) -> 5 | V15: =IF(償却資産入力!G8="","",償却資産入力!G8) -> 43862 | W15: =IF(償却資産入力!G8="","",償却資産入力!G8) -> 2020-02-01 | X15: =IF(償却資産入力!J8="","",償却資産入力!J8) -> 765000 | AB15: =IF(償却資産入力!K8="","",償却資産入力!K8) -> 7 | AD15: =IF(V15="","0.",IF($A$2-365>V15,1-償却資産入力!M8,1-償却資産入力!L8)) -> 0.86 | AG15: =IF(X15="","",OFFSET(償却資産入力!N8,0,償却資産入力!$F$1-1,1)) -> 245559 | AT15: 1・2 3・4
A16: 05 | B16: =IF(償却資産入力!C9="","",償却資産入力!C9) -> 2 | C16: =IF(償却資産入力!D9="","",償却資産入力!D9) ->  | I16: =IF(償却資産入力!E9="","",償却資産入力!E9) -> 運搬車 | S16: =IF(償却資産入力!F9="","",償却資産入力!F9) -> 1 | U16: =IF(償却資産入力!H9="","",償却資産入力!H9) -> 5 | V16: =IF(償却資産入力!G9="","",償却資産入力!G9) -> 44593 | W16: =IF(償却資産入力!G9="","",償却資産入力!G9) -> 2022-02-01 | X16: =IF(償却資産入力!J9="","",償却資産入力!J9) -> 630000 | AB16: =IF(償却資産入力!K9="","",償却資産入力!K9) -> 7 | AD16: =IF(V16="","0.",IF($A$2-365>V16,1-償却資産入力!M9,1-償却資産入力!L9)) -> 0.86 | AG16: =IF(X16="","",OFFSET(償却資産入力!N9,0,償却資産入力!$F$1-1,1)) -> 390096 | AT16: 1・2 3・4
A17: 06 | B17: =IF(償却資産入力!C10="","",償却資産入力!C10) ->  | C17: =IF(償却資産入力!D10="","",償却資産入力!D10) ->  | I17: =IF(償却資産入力!E10="","",償却資産入力!E10) ->  | S17: =IF(償却資産入力!F10="","",償却資産入力!F10) ->  | U17: =IF(償却資産入力!H10="","",償却資産入力!H10) ->  | V17: =IF(償却資産入力!G10="","",償却資産入力!G10) ->  | W17: =IF(償却資産入力!G10="","",償却資産入力!G10) ->  | X17: =IF(償却資産入力!J10="","",償却資産入力!J10) ->  | AB17: =IF(償却資産入力!K10="","",償却資産入力!K10) ->  | AD17: =IF(V17="","0.",IF($A$2-365>V17,1-償却資産入力!M10,1-償却資産入力!L10)) -> 0. | AG17: =IF(X17="","",OFFSET(償却資産入力!N10,0,償却資産入力!$F$1-1,1)) ->  | AT17: 1・2 3・4
A18: 07 | B18: =IF(償却資産入力!C11="","",償却資産入力!C11) ->  | C18: =IF(償却資産入力!D11="","",償却資産入力!D11) ->  | I18: =IF(償却資産入力!E11="","",償却資産入力!E11) ->  | S18: =IF(償却資産入力!F11="","",償却資産入力!F11) ->  | U18: =IF(償却資産入力!H11="","",償却資産入力!H11) ->  | V18: =IF(償却資産入力!G11="","",償却資産入力!G11) ->  | W18: =IF(償却資産入力!G11="","",償却資産入力!G11) ->  | X18: =IF(償却資産入力!J11="","",償却資産入力!J11) ->  | AB18: =IF(償却資産入力!K11="","",償却資産入力!K11) ->  | AD18: =IF(V18="","0.",IF($A$2-365>V18,1-償却資産入力!M11,1-償却資産入力!L11)) -> 0. | AG18: =IF(X18="","",OFFSET(償却資産入力!N11,0,償却資産入力!$F$1-1,1)) ->  | AT18: 1・2 3・4
A19: 08 | B19: =IF(償却資産入力!C12="","",償却資産入力!C12) ->  | C19: =IF(償却資産入力!D12="","",償却資産入力!D12) ->  | I19: =IF(償却資産入力!E12="","",償却資産入力!E12) ->  | S19: =IF(償却資産入力!F12="","",償却資産入力!F12) ->  | U19: =IF(償却資産入力!H12="","",償却資産入力!H12) ->  | V19: =IF(償却資産入力!G12="","",償却資産入力!G12) ->  | W19: =IF(償却資産入力!G12="","",償却資産入力!G12) ->  | X19: =IF(償却資産入力!J12="","",償却資産入力!J12) ->  | AB19: =IF(償却資産入力!K12="","",償却資産入力!K12) ->  | AD19: =IF(V19="","0.",IF($A$2-365>V19,1-償却資産入力!M12,1-償却資産入力!L12)) -> 0. | AG19: =IF(X19="","",OFFSET(償却資産入力!N12,0,償却資産入力!$F$1-1,1)) ->  | AT19: 1・2 3・4
A20: 09 | B20: =IF(償却資産入力!C13="","",償却資産入力!C13) ->  | C20: =IF(償却資産入力!D13="","",償却資産入力!D13) ->  | I20: =IF(償却資産入力!E13="","",償却資産入力!E13) ->  | S20: =IF(償却資産入力!F13="","",償却資産入力!F13) ->  | U20: =IF(償却資産入力!H13="","",償却資産入力!H13) ->  | V20: =IF(償却資産入力!G13="","",償却資産入力!G13) ->  | W20: =IF(償却資産入力!G13="","",償却資産入力!G13) ->  | X20: =IF(償却資産入力!J13="","",償却資産入力!J13) ->  | AB20: =IF(償却資産入力!K13="","",償却資産入力!K13) ->  | AD20: =IF(V20="","0.",IF($A$2-365>V20,1-償却資産入力!M13,1-償却資産入力!L13)) -> 0. | AG20: =IF(X20="","",OFFSET(償却資産入力!N13,0,償却資産入力!$F$1-1,1)) ->  | AT20: 1・2 3・4
A21: 10 | B21: =IF(償却資産入力!C14="","",償却資産入力!C14) ->  | C21: =IF(償却資産入力!D14="","",償却資産入力!D14) ->  | I21: =IF(償却資産入力!E14="","",償却資産入力!E14) ->  | S21: =IF(償却資産入力!F14="","",償却資産入力!F14) ->  | U21: =IF(償却資産入力!H14="","",償却資産入力!H14) ->  | V21: =IF(償却資産入力!G14="","",償却資産入力!G14) ->  | W21: =IF(償却資産入力!G14="","",償却資産入力!G14) ->  | X21: =IF(償却資産入力!J14="","",償却資産入力!J14) ->  | AB21: =IF(償却資産入力!K14="","",償却資産入力!K14) ->  | AD21: =IF(V21="","0.",IF($A$2-365>V21,1-償却資産入力!M14,1-償却資産入力!L14)) -> 0. | AG21: =IF(X21="","",OFFSET(償却資産入力!N14,0,償却資産入力!$F$1-1,1)) ->  | AT21: 1・2 3・4
A22: 11 | B22: =IF(償却資産入力!C15="","",償却資産入力!C15) ->  | C22: =IF(償却資産入力!D15="","",償却資産入力!D15) ->  | I22: =IF(償却資産入力!E15="","",償却資産入力!E15) ->  | S22: =IF(償却資産入力!F15="","",償却資産入力!F15) ->  | U22: =IF(償却資産入力!H15="","",償却資産入力!H15) ->  | V22: =IF(償却資産入力!G15="","",償却資産入力!G15) ->  | W22: =IF(償却資産入力!G15="","",償却資産入力!G15) ->  | X22: =IF(償却資産入力!J15="","",償却資産入力!J15) ->  | AB22: =IF(償却資産入力!K15="","",償却資産入力!K15) ->  | AD22: =IF(V22="","0.",IF($A$2-365>V22,1-償却資産入力!M15,1-償却資産入力!L15)) -> 0. | AG22: =IF(X22="","",OFFSET(償却資産入力!N15,0,償却資産入力!$F$1-1,1)) ->  | AT22: 1・2 3・4
A23: 12 | B23: =IF(償却資産入力!C16="","",償却資産入力!C16) ->  | C23: =IF(償却資産入力!D16="","",償却資産入力!D16) ->  | I23: =IF(償却資産入力!E16="","",償却資産入力!E16) ->  | S23: =IF(償却資産入力!F16="","",償却資産入力!F16) ->  | U23: =IF(償却資産入力!H16="","",償却資産入力!H16) ->  | V23: =IF(償却資産入力!G16="","",償却資産入力!G16) ->  | W23: =IF(償却資産入力!G16="","",償却資産入力!G16) ->  | X23: =IF(償却資産入力!J16="","",償却資産入力!J16) ->  | AB23: =IF(償却資産入力!K16="","",償却資産入力!K16) ->  | AD23: =IF(V23="","0.",IF($A$2-365>V23,1-償却資産入力!M16,1-償却資産入力!L16)) -> 0. | AG23: =IF(X23="","",OFFSET(償却資産入力!N16,0,償却資産入力!$F$1-1,1)) ->  | AT23: 1・2 3・4
A24: 13 | B24: =IF(償却資産入力!C17="","",償却資産入力!C17) ->  | C24: =IF(償却資産入力!D17="","",償却資産入力!D17) ->  | I24: =IF(償却資産入力!E17="","",償却資産入力!E17) ->  | S24: =IF(償却資産入力!F17="","",償却資産入力!F17) ->  | U24: =IF(償却資産入力!H17="","",償却資産入力!H17) ->  | V24: =IF(償却資産入力!G17="","",償却資産入力!G17) ->  | W24: =IF(償却資産入力!G17="","",償却資産入力!G17) ->  | X24: =IF(償却資産入力!J17="","",償却資産入力!J17) ->  | AB24: =IF(償却資産入力!K17="","",償却資産入力!K17) ->  | AD24: =IF(V24="","0.",IF($A$2-365>V24,1-償却資産入力!M17,1-償却資産入力!L17)) -> 0. | AG24: =IF(X24="","",OFFSET(償却資産入力!N17,0,償却資産入力!$F$1-1,1)) ->  | AT24: 1・2 3・4
A25: 14 | B25: =IF(償却資産入力!C18="","",償却資産入力!C18) ->  | C25: =IF(償却資産入力!D18="","",償却資産入力!D18) ->  | I25: =IF(償却資産入力!E18="","",償却資産入力!E18) ->  | S25: =IF(償却資産入力!F18="","",償却資産入力!F18) ->  | U25: =IF(償却資産入力!H18="","",償却資産入力!H18) ->  | V25: =IF(償却資産入力!G18="","",償却資産入力!G18) ->  | W25: =IF(償却資産入力!G18="","",償却資産入力!G18) ->  | X25: =IF(償却資産入力!J18="","",償却資産入力!J18) ->  | AB25: =IF(償却資産入力!K18="","",償却資産入力!K18) ->  | AD25: =IF(V25="","0.",IF($A$2-365>V25,1-償却資産入力!M18,1-償却資産入力!L18)) -> 0. | AG25: =IF(X25="","",OFFSET(償却資産入力!N18,0,償却資産入力!$F$1-1,1)) ->  | AT25: 1・2 3・4
A26: 15 | B26: =IF(償却資産入力!C19="","",償却資産入力!C19) ->  | C26: =IF(償却資産入力!D19="","",償却資産入力!D19) ->  | I26: =IF(償却資産入力!E19="","",償却資産入力!E19) ->  | S26: =IF(償却資産入力!F19="","",償却資産入力!F19) ->  | U26: =IF(償却資産入力!H19="","",償却資産入力!H19) ->  | V26: =IF(償却資産入力!G19="","",償却資産入力!G19) ->  | W26: =IF(償却資産入力!G19="","",償却資産入力!G19) ->  | X26: =IF(償却資産入力!J19="","",償却資産入力!J19) ->  | AB26: =IF(償却資産入力!K19="","",償却資産入力!K19) ->  | AD26: =IF(V26="","0.",IF($A$2-365>V26,1-償却資産入力!M19,1-償却資産入力!L19)) -> 0. | AG26: =IF(X26="","",OFFSET(償却資産入力!N19,0,償却資産入力!$F$1-1,1)) ->  | AT26: 1・2 3・4
P27: 小 計 | S27: =IF(S12="","",SUM(S12:T26)) -> 5 | X27: =IF(X12="","",SUM(X12:AA26)) -> 5385000 | AG27: =IF(AG12="","",SUM(AG12:AJ26)) -> 1076337
A28: （資産の種類欄には、下記の区分番号を記入してください。）
A30: 番号 | B30: 種類区分 | G30: 番号 | H30: 種類区分
A31: 1 | B31: 構築物 | G31: 4 | H31: 航空機 | N31: 注意 | P31: １．太わくの中だけ書いてください。（用紙が不足する場合はコピーしてください。）
A32: 2 | B32: 機械及び装置 | G32: 5 | H32: 車両及び運搬具 | P32: ２．「増加事由」の欄は、１ 新品取得、２ 中古品取得、３ 移動による受入 ４ その他のいずれかに○印を付けてください。
A33: 3 | B33: 船舶 | G33: 6 | H33: 工具、器具及び備品 | P33: ３．※印欄は記入しないでください。ただし、「資産コード」の欄は、独自に機械番号・管理番号をお持ちであれば、そのコードを記入してください。

Sheet 減少資産用（提出用）
AH1: 提 出 用 | AN1: 第二十六号様式別表二
A2: =償却資産入力!E1 -> 45292
U3: 種 類 別 明 細 書 （減少資産用） | AI3: 所 有 者 氏 名 | AM3: 枚のうち
A4: ※ | B4: 所 有 者 コ ー ド
AM6: 枚 目
A8: 行番号 | B8: 資産の種類 | C8: 抹 消 コ ー ド （品目番号） | O8: 資 産 の 名 称 等 | Y8: 数 量 | Z8: 取得年月 | AC8: 取 得 価 額 | AG8: 耐用年数 | AH8: 申告年度 | AI8: 減少の事由及び区分 | AK8: 摘 要
Z10: 年号 | AA10: 年 | AB10: 月 | AI10: 1 売却 2 滅 失 | AJ10: 1 全部
AI11: 3 移動 4 その他 | AJ11: 2 一部
A12: 01 | AI12: 1 ・ 2 ・ 3 ・ 4 | AJ12: 1 ・ 2
A14: 02 | AI14: 1 ・ 2 ・ 3 ・ 4 | AJ14: 1 ・ 2
A16: 03 | AI16: 1 ・ 2 ・ 3 ・ 4 | AJ16: 1 ・ 2
A18: 04 | AI18: 1 ・ 2 ・ 3 ・ 4 | AJ18: 1 ・ 2
A20: 05 | AI20: 1 ・ 2 ・ 3 ・ 4 | AJ20: 1 ・ 2
A22: 06 | AI22: 1 ・ 2 ・ 3 ・ 4 | AJ22: 1 ・ 2
A24: 07 | AI24: 1 ・ 2 ・ 3 ・ 4 | AJ24: 1 ・ 2
A26: 08 | AI26: 1 ・ 2 ・ 3 ・ 4 | AJ26: 1 ・ 2
A28: 09 | AI28: 1 ・ 2 ・ 3 ・ 4 | AJ28: 1 ・ 2
A30: 10 | AI30: 1 ・ 2 ・ 3 ・ 4 | AJ30: 1 ・ 2
A32: 11 | AI32: 1 ・ 2 ・ 3 ・ 4 | AJ32: 1 ・ 2
A34: 12 | AI34: 1 ・ 2 ・ 3 ・ 4 | AJ34: 1 ・ 2
A36: 13 | AI36: 1 ・ 2 ・ 3 ・ 4 | AJ36: 1 ・ 2
A38: 14 | AI38: 1 ・ 2 ・ 3 ・ 4 | AJ38: 1 ・ 2
A40: 15 | AI40: 1 ・ 2 ・ 3 ・ 4 | AJ40: 1 ・ 2
V42: 小 計 | AC42: =IF(AC12="","",SUM(AC12:AF41)) -> 
S46: 注意 １．太わくの中だけ書いてください。（用紙が不足する場合はコピーしてください。） ２．「年号」の欄は、３．昭和 ４．平成 ５.令和となっています。
A57: ※ 新規に申告される方は、１～１８のすべての項目について記入してください。

Sheet 減少資産用（控用）
AH1: 控 用 | AN1: 第二十六号様式別表二
A2: =償却資産入力!E1 -> 45292
U3: 種 類 別 明 細 書 （減少資産用） | AI3: 所 有 者 氏 名 | AM3: 枚のうち
A4: ※ | B4: 所 有 者 コ ー ド
AM6: 枚 目
A8: 行番号 | B8: 資産の種類 | C8: 抹 消 コ ー ド （品目番号） | O8: 資 産 の 名 称 等 | Y8: 数 量 | Z8: 取得年月 | AC8: 取 得 価 額 | AG8: 耐用年数 | AH8: 申告年度 | AI8: 減少の事由及び区分 | AK8: 摘 要
Z10: 年号 | AA10: 年 | AB10: 月 | AI10: 1 売却 2 滅 失 | AJ10: 1 全部
AI11: 3 移動 4 その他 | AJ11: 2 一部
A12: 01 | B12: =IF('減少資産用（提出用）'!B12="","",('減少資産用（提出用）'!B12)) ->  | C12: =IF('減少資産用（提出用）'!C12="","",('減少資産用（提出用）'!C12)) ->  | O12: =IF('減少資産用（提出用）'!O12="","",('減少資産用（提出用）'!O12)) ->  | Y12: =IF('減少資産用（提出用）'!Y12="","",('減少資産用（提出用）'!Y12)) ->  | Z12: =IF('減少資産用（提出用）'!Z12="","",('減少資産用（提出用）'!Z12)) ->  | AA12: =IF('減少資産用（提出用）'!AA12="","",('減少資産用（提出用）'!AA12)) ->  | AB12: =IF('減少資産用（提出用）'!AB12="","",('減少資産用（提出用）'!AB12)) ->  | AC12: =IF('減少資産用（提出用）'!AC12="","",('減少資産用（提出用）'!AC12)) ->  | AG12: =IF('減少資産用（提出用）'!AG12="","",('減少資産用（提出用）'!AG12)) ->  | AH12: =IF('減少資産用（提出用）'!AH12="","",('減少資産用（提出用）'!AH12)) ->  | AI12: 1 ・ 2 ・ 3 ・ 4 | AJ12: 1 ・ 2
A14: 02 | B14: =IF('減少資産用（提出用）'!B14="","",('減少資産用（提出用）'!B14)) ->  | C14: =IF('減少資産用（提出用）'!C14="","",('減少資産用（提出用）'!C14)) ->  | O14: =IF('減少資産用（提出用）'!O14="","",('減少資産用（提出用）'!O14)) ->  | Y14: =IF('減少資産用（提出用）'!Y14="","",('減少資産用（提出用）'!Y14)) ->  | Z14: =IF('減少資産用（提出用）'!Z14="","",('減少資産用（提出用）'!Z14)) ->  | AA14: =IF('減少資産用（提出用）'!AA14="","",('減少資産用（提出用）'!AA14)) ->  | AB14: =IF('減少資産用（提出用）'!AB14="","",('減少資産用（提出用）'!AB14)) ->  | AC14: =IF('減少資産用（提出用）'!AC14="","",('減少資産用（提出用）'!AC14)) ->  | AG14: =IF('減少資産用（提出用）'!AG14="","",('減少資産用（提出用）'!AG14)) ->  | AH14: =IF('減少資産用（提出用）'!AH14="","",('減少資産用（提出用）'!AH14)) ->  | AI14: 1 ・ 2 ・ 3 ・ 4 | AJ14: 1 ・ 2
A16: 03 | B16: =IF('減少資産用（提出用）'!B16="","",('減少資産用（提出用）'!B16)) ->  | C16: =IF('減少資産用（提出用）'!C16="","",('減少資産用（提出用）'!C16)) ->  | O16: =IF('減少資産用（提出用）'!O16="","",('減少資産用（提出用）'!O16)) ->  | Y16: =IF('減少資産用（提出用）'!Y16="","",('減少資産用（提出用）'!Y16)) ->  | Z16: =IF('減少資産用（提出用）'!Z16="","",('減少資産用（提出用）'!Z16)) ->  | AA16: =IF('減少資産用（提出用）'!AA16="","",('減少資産用（提出用）'!AA16)) ->  | AB16: =IF('減少資産用（提出用）'!AB16="","",('減少資産用（提出用）'!AB16)) ->  | AC16: =IF('減少資産用（提出用）'!AC16="","",('減少資産用（提出用）'!AC16)) ->  | AG16: =IF('減少資産用（提出用）'!AG16="","",('減少資産用（提出用）'!AG16)) ->  | AH16: =IF('減少資産用（提出用）'!AH16="","",('減少資産用（提出用）'!AH16)) ->  | AI16: 1 ・ 2 ・ 3 ・ 4 | AJ16: 1 ・ 2
A18: 04 | B18: =IF('減少資産用（提出用）'!B18="","",('減少資産用（提出用）'!B18)) ->  | C18: =IF('減少資産用（提出用）'!C18="","",('減少資産用（提出用）'!C18)) ->  | O18: =IF('減少資産用（提出用）'!O18="","",('減少資産用（提出用）'!O18)) ->  | Y18: =IF('減少資産用（提出用）'!Y18="","",('減少資産用（提出用）'!Y18)) ->  | Z18: =IF('減少資産用（提出用）'!Z18="","",('減少資産用（提出用）'!Z18)) ->  | AA18: =IF('減少資産用（提出用）'!AA18="","",('減少資産用（提出用）'!AA18)) ->  | AB18: =IF('減少資産用（提出用）'!AB18="","",('減少資産用（提出用）'!AB18)) ->  | AC18: =IF('減少資産用（提出用）'!AC18="","",('減少資産用（提出用）'!AC18)) ->  | AG18: =IF('減少資産用（提出用）'!AG18="","",('減少資産用（提出用）'!AG18)) ->  | AH18: =IF('減少資産用（提出用）'!AH18="","",('減少資産用（提出用）'!AH18)) ->  | AI18: 1 ・ 2 ・ 3 ・ 4 | AJ18: 1 ・ 2
A20: 05 | B20: =IF('減少資産用（提出用）'!B20="","",('減少資産用（提出用）'!B20)) ->  | C20: =IF('減少資産用（提出用）'!C20="","",('減少資産用（提出用）'!C20)) ->  | O20: =IF('減少資産用（提出用）'!O20="","",('減少資産用（提出用）'!O20)) ->  | Y20: =IF('減少資産用（提出用）'!Y20="","",('減少資産用（提出用）'!Y20)) ->  | Z20: =IF('減少資産用（提出用）'!Z20="","",('減少資産用（提出用）'!Z20)) ->  | AA20: =IF('減少資産用（提出用）'!AA20="","",('減少資産用（提出用）'!AA20)) ->  | AB20: =IF('減少資産用（提出用）'!AB20="","",('減少資産用（提出用）'!AB20)) ->  | AC20: =IF('減少資産用（提出用）'!AC20="","",('減少資産用（提出用）'!AC20)) ->  | AG20: =IF('減少資産用（提出用）'!AG20="","",('減少資産用（提出用）'!AG20)) ->  | AH20: =IF('減少資産用（提出用）'!AH20="","",('減少資産用（提出用）'!AH20)) ->  | AI20: 1 ・ 2 ・ 3 ・ 4 | AJ20: 1 ・ 2
A22: 06 | B22: =IF('減少資産用（提出用）'!B22="","",('減少資産用（提出用）'!B22)) ->  | C22: =IF('減少資産用（提出用）'!C22="","",('減少資産用（提出用）'!C22)) ->  | O22: =IF('減少資産用（提出用）'!O22="","",('減少資産用（提出用）'!O22)) ->  | Y22: =IF('減少資産用（提出用）'!Y22="","",('減少資産用（提出用）'!Y22)) ->  | Z22: =IF('減少資産用（提出用）'!Z22="","",('減少資産用（提出用）'!Z22)) ->  | AA22: =IF('減少資産用（提出用）'!AA22="","",('減少資産用（提出用）'!AA22)) ->  | AB22: =IF('減少資産用（提出用）'!AB22="","",('減少資産用（提出用）'!AB22)) ->  | AC22: =IF('減少資産用（提出用）'!AC22="","",('減少資産用（提出用）'!AC22)) ->  | AG22: =IF('減少資産用（提出用）'!AG22="","",('減少資産用（提出用）'!AG22)) ->  | AH22: =IF('減少資産用（提出用）'!AH22="","",('減少資産用（提出用）'!AH22)) ->  | AI22: 1 ・ 2 ・ 3 ・ 4 | AJ22: 1 ・ 2
A24: 07 | B24: =IF('減少資産用（提出用）'!B24="","",('減少資産用（提出用）'!B24)) ->  | C24: =IF('減少資産用（提出用）'!C24="","",('減少資産用（提出用）'!C24)) ->  | O24: =IF('減少資産用（提出用）'!O24="","",('減少資産用（提出用）'!O24)) ->  | Y24: =IF('減少資産用（提出用）'!Y24="","",('減少資産用（提出用）'!Y24)) ->  | Z24: =IF('減少資産用（提出用）'!Z24="","",('減少資産用（提出用）'!Z24)) ->  | AA24: =IF('減少資産用（提出用）'!AA24="","",('減少資産用（提出用）'!AA24)) ->  | AB24: =IF('減少資産用（提出用）'!AB24="","",('減少資産用（提出用）'!AB24)) ->  | AC24: =IF('減少資産用（提出用）'!AC24="","",('減少資産用（提出用）'!AC24)) ->  | AG24: =IF('減少資産用（提出用）'!AG24="","",('減少資産用（提出用）'!AG24)) ->  | AH24: =IF('減少資産用（提出用）'!AH24="","",('減少資産用（提出用）'!AH24)) ->  | AI24: 1 ・ 2 ・ 3 ・ 4 | AJ24: 1 ・ 2
A26: 08 | B26: =IF('減少資産用（提出用）'!B26="","",('減少資産用（提出用）'!B26)) ->  | C26: =IF('減少資産用（提出用）'!C26="","",('減少資産用（提出用）'!C26)) ->  | O26: =IF('減少資産用（提出用）'!O26="","",('減少資産用（提出用）'!O26)) ->  | Y26: =IF('減少資産用（提出用）'!Y26="","",('減少資産用（提出用）'!Y26)) ->  | Z26: =IF('減少資産用（提出用）'!Z26="","",('減少資産用（提出用）'!Z26)) ->  | AA26: =IF('減少資産用（提出用）'!AA26="","",('減少資産用（提出用）'!AA26)) ->  | AB26: =IF('減少資産用（提出用）'!AB26="","",('減少資産用（提出用）'!AB26)) ->  | AC26: =IF('減少資産用（提出用）'!AC26="","",('減少資産用（提出用）'!AC26)) ->  | AG26: =IF('減少資産用（提出用）'!AG26="","",('減少資産用（提出用）'!AG26)) ->  | AH26: =IF('減少資産用（提出用）'!AH26="","",('減少資産用（提出用）'!AH26)) ->  | AI26: 1 ・ 2 ・ 3 ・ 4 | AJ26: 1 ・ 2
A28: 09 | B28: =IF('減少資産用（提出用）'!B28="","",('減少資産用（提出用）'!B28)) ->  | C28: =IF('減少資産用（提出用）'!C28="","",('減少資産用（提出用）'!C28)) ->  | O28: =IF('減少資産用（提出用）'!O28="","",('減少資産用（提出用）'!O28)) ->  | Y28: =IF('減少資産用（提出用）'!Y28="","",('減少資産用（提出用）'!Y28)) ->  | Z28: =IF('減少資産用（提出用）'!Z28="","",('減少資産用（提出用）'!Z28)) ->  | AA28: =IF('減少資産用（提出用）'!AA28="","",('減少資産用（提出用）'!AA28)) ->  | AB28: =IF('減少資産用（提出用）'!AB28="","",('減少資産用（提出用）'!AB28)) ->  | AC28: =IF('減少資産用（提出用）'!AC28="","",('減少資産用（提出用）'!AC28)) ->  | AG28: =IF('減少資産用（提出用）'!AG28="","",('減少資産用（提出用）'!AG28)) ->  | AH28: =IF('減少資産用（提出用）'!AH28="","",('減少資産用（提出用）'!AH28)) ->  | AI28: 1 ・ 2 ・ 3 ・ 4 | AJ28: 1 ・ 2
A30: 10 | B30: =IF('減少資産用（提出用）'!B30="","",('減少資産用（提出用）'!B30)) ->  | C30: =IF('減少資産用（提出用）'!C30="","",('減少資産用（提出用）'!C30)) ->  | O30: =IF('減少資産用（提出用）'!O30="","",('減少資産用（提出用）'!O30)) ->  | Y30: =IF('減少資産用（提出用）'!Y30="","",('減少資産用（提出用）'!Y30)) ->  | Z30: =IF('減少資産用（提出用）'!Z30="","",('減少資産用（提出用）'!Z30)) ->  | AA30: =IF('減少資産用（提出用）'!AA30="","",('減少資産用（提出用）'!AA30)) ->  | AB30: =IF('減少資産用（提出用）'!AB30="","",('減少資産用（提出用）'!AB30)) ->  | AC30: =IF('減少資産用（提出用）'!AC30="","",('減少資産用（提出用）'!AC30)) ->  | AG30: =IF('減少資産用（提出用）'!AG30="","",('減少資産用（提出用）'!AG30)) ->  | AH30: =IF('減少資産用（提出用）'!AH30="","",('減少資産用（提出用）'!AH30)) ->  | AI30: 1 ・ 2 ・ 3 ・ 4 | AJ30: 1 ・ 2
A32: 11 | B32: =IF('減少資産用（提出用）'!B32="","",('減少資産用（提出用）'!B32)) ->  | C32: =IF('減少資産用（提出用）'!C32="","",('減少資産用（提出用）'!C32)) ->  | O32: =IF('減少資産用（提出用）'!O32="","",('減少資産用（提出用）'!O32)) ->  | Y32: =IF('減少資産用（提出用）'!Y32="","",('減少資産用（提出用）'!Y32)) ->  | Z32: =IF('減少資産用（提出用）'!Z32="","",('減少資産用（提出用）'!Z32)) ->  | AA32: =IF('減少資産用（提出用）'!AA32="","",('減少資産用（提出用）'!AA32)) ->  | AB32: =IF('減少資産用（提出用）'!AB32="","",('減少資産用（提出用）'!AB32)) ->  | AC32: =IF('減少資産用（提出用）'!AC32="","",('減少資産用（提出用）'!AC32)) ->  | AG32: =IF('減少資産用（提出用）'!AG32="","",('減少資産用（提出用）'!AG32)) ->  | AH32: =IF('減少資産用（提出用）'!AH32="","",('減少資産用（提出用）'!AH32)) ->  | AI32: 1 ・ 2 ・ 3 ・ 4 | AJ32: 1 ・ 2
A34: 12 | B34: =IF('減少資産用（提出用）'!B34="","",('減少資産用（提出用）'!B34)) ->  | C34: =IF('減少資産用（提出用）'!C34="","",('減少資産用（提出用）'!C34)) ->  | O34: =IF('減少資産用（提出用）'!O34="","",('減少資産用（提出用）'!O34)) ->  | Y34: =IF('減少資産用（提出用）'!Y34="","",('減少資産用（提出用）'!Y34)) ->  | Z34: =IF('減少資産用（提出用）'!Z34="","",('減少資産用（提出用）'!Z34)) ->  | AA34: =IF('減少資産用（提出用）'!AA34="","",('減少資産用（提出用）'!AA34)) ->  | AB34: =IF('減少資産用（提出用）'!AB34="","",('減少資産用（提出用）'!AB34)) ->  | AC34: =IF('減少資産用（提出用）'!AC34="","",('減少資産用（提出用）'!AC34)) ->  | AG34: =IF('減少資産用（提出用）'!AG34="","",('減少資産用（提出用）'!AG34)) ->  | AH34: =IF('減少資産用（提出用）'!AH34="","",('減少資産用（提出用）'!AH34)) ->  | AI34: 1 ・ 2 ・ 3 ・ 4 | AJ34: 1 ・ 2
A36: 13 | B36: =IF('減少資産用（提出用）'!B36="","",('減少資産用（提出用）'!B36)) ->  | C36: =IF('減少資産用（提出用）'!C36="","",('減少資産用（提出用）'!C36)) ->  | O36: =IF('減少資産用（提出用）'!O36="","",('減少資産用（提出用）'!O36)) ->  | Y36: =IF('減少資産用（提出用）'!Y36="","",('減少資産用（提出用）'!Y36)) ->  | Z36: =IF('減少資産用（提出用）'!Z36="","",('減少資産用（提出用）'!Z36)) ->  | AA36: =IF('減少資産用（提出用）'!AA36="","",('減少資産用（提出用）'!AA36)) ->  | AB36: =IF('減少資産用（提出用）'!AB36="","",('減少資産用（提出用）'!AB36)) ->  | AC36: =IF('減少資産用（提出用）'!AC36="","",('減少資産用（提出用）'!AC36)) ->  | AG36: =IF('減少資産用（提出用）'!AG36="","",('減少資産用（提出用）'!AG36)) ->  | AH36: =IF('減少資産用（提出用）'!AH36="","",('減少資産用（提出用）'!AH36)) ->  | AI36: 1 ・ 2 ・ 3 ・ 4 | AJ36: 1 ・ 2
A38: 14 | B38: =IF('減少資産用（提出用）'!B38="","",('減少資産用（提出用）'!B38)) ->  | C38: =IF('減少資産用（提出用）'!C38="","",('減少資産用（提出用）'!C38)) ->  | O38: =IF('減少資産用（提出用）'!O38="","",('減少資産用（提出用）'!O38)) ->  | Y38: =IF('減少資産用（提出用）'!Y38="","",('減少資産用（提出用）'!Y38)) ->  | Z38: =IF('減少資産用（提出用）'!Z38="","",('減少資産用（提出用）'!Z38)) ->  | AA38: =IF('減少資産用（提出用）'!AA38="","",('減少資産用（提出用）'!AA38)) ->  | AB38: =IF('減少資産用（提出用）'!AB38="","",('減少資産用（提出用）'!AB38)) ->  | AC38: =IF('減少資産用（提出用）'!AC38="","",('減少資産用（提出用）'!AC38)) ->  | AG38: =IF('減少資産用（提出用）'!AG38="","",('減少資産用（提出用）'!AG38)) ->  | AH38: =IF('減少資産用（提出用）'!AH38="","",('減少資産用（提出用）'!AH38)) ->  | AI38: 1 ・ 2 ・ 3 ・ 4 | AJ38: 1 ・ 2
A40: 15 | B40: =IF('減少資産用（提出用）'!B40="","",('減少資産用（提出用）'!B40)) ->  | C40: =IF('減少資産用（提出用）'!C40="","",('減少資産用（提出用）'!C40)) ->  | O40: =IF('減少資産用（提出用）'!O40="","",('減少資産用（提出用）'!O40)) ->  | Y40: =IF('減少資産用（提出用）'!Y40="","",('減少資産用（提出用）'!Y40)) ->  | Z40: =IF('減少資産用（提出用）'!Z40="","",('減少資産用（提出用）'!Z40)) ->  | AA40: =IF('減少資産用（提出用）'!AA40="","",('減少資産用（提出用）'!AA40)) ->  | AB40: =IF('減少資産用（提出用）'!AB40="","",('減少資産用（提出用）'!AB40)) ->  | AC40: =IF('減少資産用（提出用）'!AC40="","",('減少資産用（提出用）'!AC40)) ->  | AG40: =IF('減少資産用（提出用）'!AG40="","",('減少資産用（提出用）'!AG40)) ->  | AH40: =IF('減少資産用（提出用）'!AH40="","",('減少資産用（提出用）'!AH40)) ->  | AI40: 1 ・ 2 ・ 3 ・ 4 | AJ40: 1 ・ 2
V42: 小 計 | AC42: =IF(AC12="","",SUM(AC12:AF41)) -> 
S46: 注意 １．太わくの中だけ書いてください。（用紙が不足する場合はコピーしてください。） ２．「年号」の欄は、３．昭和 ４．平成 ５.令和となっています。
A57: ※ 新規に申告される方は、１～１８のすべての項目について記入してください。
